{"text_format":"1","workbook":"xlsx","n_sheets":12,"sheets":["注意","説明","メニュー","名簿","大会申込","国体1次","三重陸協記録会","県選","ロードレース","SF","振込票貼付用紙","作業"],"not_rendered":{"charts":0,"images":7,"macros":1,"external_links":1,"defined_names":31,"comments":0,"pivot_tables":0},"unopened":[],"bounds":{"document_bytes":16777216,"sheet_cells":100000,"rows_first":2000,"rows_last":500,"rows_between":2000,"halvings":0,"cell_chars":16384,"cell_head_chars":4096},"cells_cut":0,"cells_raw":0,"read":"whole","date_system":"1900"}

{"sheet":"注意","index":0,"n_rows":69,"n_cols":1,"rows_kept":69,"cut":false,"hidden":false,"merged":[]}
["マクロが無効になっています。"]
["最新バージョンのエクセル(2007）使用の場合は、シートの上部にセキュリティの警告が出ますので"]
["右側のオプションをクリックし、「このコンテンツを有効にする」にチェックを入れて下さい。"]
["それ以前のエクセルは下記に従って下さい。"]
["入力を行うには，マクロを有効にする必要があります。"]
["マクロを有効にしてファイルを開いてください。"]
["エクセル2002以前のバージョンでは動作しません。エクセル2002以降のパソコンで作業して下さい"]
["マクロを有効にするには，"]
["１）上部メニューを「ツール(T)→マクロ(M)→セキュリティ(S)」の順に開きます。"]
[]
[]
[]
[]
[]
[]
[]
[]
[]
[]
[]
[]
[]
[]
[]
[]
[]
[]
[]
[]
[]
[]
[]
[]
[]
[]
["２）「セキュリティレベル」を「中」に設定してください。"]
[]
[]
[]
[]
[]
[]
[]
[]
[]
[]
[]
[]
[]
[]
[]
[]
[]
[]
[]
["３）EXCELをいったん終了（ファイルを保存しない）し，再度ファイルを開きます。"]
["４）マクロを有効にするかどうか聞いてきます。ここで「マクロを有効にする」を選択します。"]
[]
[]
[]
[]
[]
[]
[]
[]
[]
[]
[]
["何らかの原因でマクロが停止した場合は，いったんファイルを保存し，再度開き直してください。"]

{"sheet":"説明","index":1,"n_rows":65,"n_cols":7,"rows_kept":65,"cut":false,"hidden":false,"merged":[[64,0,64,11]]}
["個人用　メール大会申込概要",null,null,null,"2018Ver1"]
[]
["エクセル２００２以前のバージョンでは正常に動作しません。"]
[]
[null,null,"前年度のファイルは使用できません。削除のこと。"]
["注意事項①",null,"①参加料は"]
[null,null,"　振込票貼付用紙に貼付の上、三重陸協事務局まで送付のこと。"]
[null,null,"　 期日までの振込みがない場合は出場を認めない。"]
[null,null,"②送信後の選手変更・種目変更は受付けないので、よく確認の上申し込むこと。"]
[null,null,"③振込人の名称は所属名で記載のこと。(個人は個人名とする。）"]
[null,null,"④極端に早い振込みも間違いのもとになりますのでご配慮のこと。"]
[null,null,"⑤認知書が必要な大会は入力印刷の上、捺印の上、当日受付で係員に渡すこと。"]
[]
[]
[null,null,"振込先","　　百五銀行　生桑(ｲｸﾜ)支店　普通預金　口座番号　４４０２６６　口座名　一般財団法人三重陸上競技協会"]
[]
[]
[null,null,"競技時間等は大会1週間前にホームページに掲載するので通知はしない。"]
[null,null,"大会参加費は一覧表に記載されるので確認の上、振り込むこと。"]
[]
["入力について"]
[null,"①メニューより選手入力へのボタンを押して下さい。ここで必要事項を入力して下さい"]
[null,"必要事項を全て入力しないと、あとで申込ファイルの作成ができません"]
[]
[null,"②メニューより大会申込へのボタンを押して下さい。"]
[null,null,"参加する選手の種目と記録を入力して下さい。"]
[]
[]
[]
[null,"③各ページに右記のボタンがりますので"]
[null,"　　最後に必ず押して下さい"]
[null,null,"このエクセルファイルが保存されている同じ場所に新しいファイルが作成されます。"]
[]
[null,null,"メニューへ戻り、上書き保存ボタンを押しましょう。"]
[]
[null,"④新しく保存されたファイルをメールに添付してお送り下さい。"]
[]
[]
["申込み送付時の注意点"]
[null,"　　　　　　　①　必ずメールに添付して下さい。(添付を忘れる方が多い）"]
[null,"　　　　　　　②　資格審査の上、正式受理確認メールを返信いたします。"]
[null,"　　　　　　　③　発信ミスが時々あります。必ず正式受理メールを確認して下さい。"]
[null,"　　　　　　　④　１日経っても返信がない場合は、お問合せ下さい。"]
[null,"　　　　　　　⑤　締切日の午後6時必着となっています。"]
[]
[null,null,"メール宛先",null,"mousikomi★mierk.jp"]
[]
[]
["今年の改良点"]
[null,null,"①選手入力画面で選手の公認記録を入力しておくと、自動で反映されます。"]
[]
[]
["連絡事項"]
[null,null,"全ての大会申込及び登録は下記のアドレスとなっています。"]
[]
[null,null,null,"mousikomi★mierk.jp　"]
[]
[]
[null,null,"尚、問い合わせ等は下記のアドレスとなります。"]
[]
[]
[]
[null,null,null,"問い合わせ",null,null,"info★mierk.jp"]
[]
["メールアドレスの★を＠に変えて送信して下さい"]

{"sheet":"メニュー","index":2,"n_rows":19,"n_cols":8,"rows_kept":19,"cut":false,"hidden":false,"merged":[[3,2,3,6],[22,1,22,8]]}
[]
[]
[]
[null,null," "]
[]
[]
[]
[]
[]
[]
[null,"ここより順にお願いします"]
[]
[]
[]
[]
[]
[]
[null,null,null,null,null,null,null,"このファイルは個人登録で"]
[null,null,null,null,null,null,null,"所属先が三重陸協の方のみです"]

{"sheet":"名簿","index":3,"n_rows":118,"n_cols":68,"rows_kept":118,"cut":false,"hidden":false,"merged":[[6,0,7,0],[8,24,57,24],[4,4,4,6],[4,8,4,12],[6,5,7,5],[6,4,7,4],[6,15,7,15],[6,16,7,16],[6,6,7,6],[6,7,7,7],[6,3,7,3],[1,12,1,14],[6,57,6,58],[6,17,7,17],[6,8,7,8],[6,9,7,9],[6,10,6,12]]}
[null,null,null,null,"入力上の注意"]
[null,null,null,null,null,null,"①申込者・連絡先は必ず入力のこと"]
[null,null,null,null,null,null,"②選手の一行目は必ず入力して下さい。全てに反映されません。"]
[null,null,null,null,"申込者"]
["申込者",null,null,null,null,null,null,"緊急連絡先(携帯)"]
[]
[null,"登録月日",null,"陸連ID","登録ＮＯ","登録の種類","名　前","フリガナ(全角)","学年又は年齢","性別","生年月日",null,null,null,null,"所属先","学校番号","所属地",null,null,null,null,null,null,null,null,"男","公認記録記載欄(随時記録が更新された場合は、変更入力して下さい。全ての申し込みに反映されます。",null,null,null,null,null,null,null,null,null,null,null,null,null,null,null,null,null,null,null,null,null,null,null,null,null,null,null,null,null,"走高跳の記録(予想)"]
[null,"(○／○○）",null,null,null,null,null,null,null,null,"年(西暦）","月","日",null,null,null,null,null,null,null,null,null,null,null,null,null,"女",100,200,400,800,1500,3000,5000,10000,"110H","100H","400H","3000SC","3000W","5000W","走高跳","棒高跳","走幅跳","三段跳","砲丸投","円盤投","ハンマー投","やり投","少年3000","少年B110JH","少年B100YH","110JH","少年砲丸投","少年B砲丸投","少年円盤投","少年ハンマー投","8種","7種","TRIM","数","空","名","姓","名"]
[1,null,null,"",null,null,null,null,null,null,null,null,null,{"$f":"CONCATENATE(L9,BO9)","v":"0"},{"$f":"IF(J9=\"\",\"\",IF(J9=\"男\",1,2))","v":""},"三重陸協",230000,{"$f":"IF(P9=\"\",\"\",VLOOKUP(P9,#REF!,7,FALSE))","v":{"$error":"#REF!"}},null,null,null,null,null,"三重陸協",null,{"$f":"ASC(H9)","v":""},null,null,null,null,null,null,null,null,null,null,null,null,null,null,null,null,null,null,null,null,null,null,null,{"$f":"AG9","v":0},{"$f":"AJ9","v":0},{"$f":"AK9","v":0},{"$f":"AJ9","v":0},{"$f":"AT9","v":0},{"$f":"AT9","v":0},{"$f":"AU9","v":0},{"$f":"AV9","v":0},{"$f":"AP9","v":0},{"$f":"AP9","v":0},{"$f":"TRIM(G9)","v":""},{"$f":"IF(BH9=\"\",\"\",LEN(BH9))","v":""},{"$f":"IF(BH9=\"\",\"\",FIND(\"　\",BH9,1))","v":""},{"$f":"IF(BH9=\"\",\"\",BI9-BJ9)","v":""},{"$f":"IF(BH9=\"\",\"\",LEFT(BH9,BJ9-1))","v":""},{"$f":"IF(BH9=\"\",\"\",RIGHT(BH9,BK9))","v":""},{"$f":"IF(BH9=\"\",\"\",IF(BI9=4,CONCATENATE(BL9,\"　\",\"　\",BM9),IF(BI9=6,CONCATENATE(BL9,BM9),BH9)))","v":""},{"$f":"IF(M9<10,CONCATENATE(\"0\",M9),M9)","v":"0"},{"$f":"K9","v":0}]
[2,null,null,"",null,null,null,null,null,null,null,null,null,"0","",{"$f":"IF(G10=\"\",\"\",$P$9)","v":""},{"$f":"IF(P10=\"\",\"\",VLOOKUP(P10,#REF!,2,FALSE))","v":""},{"$f":"IF(P10=\"\",\"\",VLOOKUP(P10,#REF!,7,FALSE))","v":""},null,null,null,null,null,"NTN",null,{"$f":"ASC(H10)","v":""},null,null,null,null,null,null,null,null,null,null,null,null,null,null,null,null,null,null,null,null,null,null,null,0,0,0,0,{"$f":"AT10","v":0},{"$f":"AT10","v":0},{"$f":"AU10","v":0},{"$f":"AV10","v":0},{"$f":"AP10","v":0},{"$f":"AP10","v":0},{"$f":"TRIM(G10)","v":""},{"$f":"IF(BH10=\"\",\"\",LEN(BH10))","v":""},{"$f":"IF(BH10=\"\",\"\",FIND(\"　\",BH10,1))","v":""},{"$f":"IF(BH10=\"\",\"\",BI10-BJ10)","v":""},{"$f":"IF(BH10=\"\",\"\",LEFT(BH10,BJ10-1))","v":""},{"$f":"IF(BH10=\"\",\"\",RIGHT(BH10,BK10))","v":""},{"$f":"IF(BH10=\"\",\"\",IF(BI10=4,CONCATENATE(BL10,\"　\",\"　\",BM10),IF(BI10=6,CONCATENATE(BL10,BM10),BH10)))","v":""},{"$f":"IF(M10<10,CONCATENATE(\"0\",M10),M10)","v":"0"},{"$f":"CONCATENATE(19,K10)","v":"19"}]
[3,null,null,"",null,null,null,null,null,null,null,null,null,"0","",{"$f":"IF(G11=\"\",\"\",$P$9)","v":""},{"$f":"IF(P11=\"\",\"\",VLOOKUP(P11,#REF!,2,FALSE))","v":""},{"$f":"IF(P11=\"\",\"\",VLOOKUP(P11,#REF!,7,FALSE))","v":""},null,null,null,null,null,"四日市TFC",null,"",null,null,null,null,null,null,null,null,null,null,null,null,null,null,null,null,null,null,null,null,null,null,null,0,0,0,0,0,0,0,0,0,0,"","","","","","","","0",{"$f":"CONCATENATE(19,K11)","v":"19"}]
[4,null,null,"",null,null,null,null,null,null,null,null,null,"0","","",{"$f":"IF(P12=\"\",\"\",VLOOKUP(P12,#REF!,2,FALSE))","v":""},{"$f":"IF(P12=\"\",\"\",VLOOKUP(P12,#REF!,7,FALSE))","v":""},null,null,null,null,null,"NTRC",null,"",null,null,null,null,null,null,null,null,null,null,null,null,null,null,null,null,null,null,null,null,null,null,null,0,0,0,0,0,0,0,0,0,0,"","","","","","","","0",{"$f":"CONCATENATE(19,K12)","v":"19"}]
[5,null,null,"",null,null,null,null,null,null,null,null,null,"0","","",{"$f":"IF(P13=\"\",\"\",VLOOKUP(P13,#REF!,2,FALSE))","v":""},{"$f":"IF(P13=\"\",\"\",VLOOKUP(P13,#REF!,7,FALSE))","v":""},null,null,null,null,null,"米鈴AC",null,"",null,null,null,null,null,null,null,null,null,null,null,null,null,null,null,null,null,null,null,null,null,null,null,0,0,0,0,0,0,0,0,0,0,"","","","","","","","0",{"$f":"CONCATENATE(19,K13)","v":"19"}]
[6,null,null,"",null,null,null,null,null,null,null,null,null,"0","","",{"$f":"IF(P14=\"\",\"\",VLOOKUP(P14,#REF!,2,FALSE))","v":""},{"$f":"IF(P14=\"\",\"\",VLOOKUP(P14,#REF!,7,FALSE))","v":""},null,null,null,null,null,"県教員ｸﾗﾌﾞ",null,"",null,null,null,null,null,null,null,null,null,null,null,null,null,null,null,null,null,null,null,null,null,null,null,0,0,0,0,0,0,0,0,0,0,"","","","","","","","0","19"]
[7,null,null,"",null,null,null,null,null,null,null,null,null,"0","","",{"$f":"IF(P15=\"\",\"\",VLOOKUP(P15,#REF!,2,FALSE))","v":""},{"$f":"IF(P15=\"\",\"\",VLOOKUP(P15,#REF!,7,FALSE))","v":""},null,null,null,null,null,"柳河精機",null,"",null,null,null,null,null,null,null,null,null,null,null,null,null,null,null,null,null,null,null,null,null,null,null,0,0,0,0,0,0,0,0,0,0,"","","","","","","","0","19"]
[8,null,null,"",null,null,null,null,null,null,null,null,null,"0","","",{"$f":"IF(P16=\"\",\"\",VLOOKUP(P16,#REF!,2,FALSE))","v":""},{"$f":"IF(P16=\"\",\"\",VLOOKUP(P16,#REF!,7,FALSE))","v":""},null,null,null,null,null,"八千代工業",null,"",null,null,null,null,null,null,null,null,null,null,null,null,null,null,null,null,null,null,null,null,null,null,null,0,0,0,0,0,0,0,0,0,0,"","","","","","","","0","19"]
[9,null,null,"",null,null,null,null,null,null,null,null,null,"0","","",{"$f":"IF(P17=\"\",\"\",VLOOKUP(P17,#REF!,2,FALSE))","v":""},{"$f":"IF(P17=\"\",\"\",VLOOKUP(P17,#REF!,7,FALSE))","v":""},null,null,null,null,null,"県庁AC",null,"",null,null,null,null,null,null,null,null,null,null,null,null,null,null,null,null,null,null,null,null,null,null,null,0,0,0,0,0,0,0,0,0,0,"","","","","","","","0","19"]
[10,null,null,"",null,null,null,null,null,null,null,null,null,"0","","",{"$f":"IF(P18=\"\",\"\",VLOOKUP(P18,#REF!,2,FALSE))","v":""},{"$f":"IF(P18=\"\",\"\",VLOOKUP(P18,#REF!,7,FALSE))","v":""},null,null,null,null,null,"三重大医学部",null,"",null,null,null,null,null,null,null,null,null,null,null,null,null,null,null,null,null,null,null,null,null,null,null,0,0,0,0,0,0,0,0,0,0,"","","","","","","","0","19"]
[11,null,null,"",null,null,null,null,null,null,null,null,null,"0","","",{"$f":"IF(P19=\"\",\"\",VLOOKUP(P19,#REF!,2,FALSE))","v":""},{"$f":"IF(P19=\"\",\"\",VLOOKUP(P19,#REF!,7,FALSE))","v":""},null,null,null,null,null,"八千代翔友",null,"",null,null,null,null,null,null,null,null,null,null,null,null,null,null,null,null,null,null,null,null,null,null,null,0,0,0,0,0,0,0,0,0,0,"","","","","","","","0","19"]
[12,null,null,"",null,null,null,null,null,null,null,null,null,"0","","",{"$f":"IF(P20=\"\",\"\",VLOOKUP(P20,#REF!,2,FALSE))","v":""},{"$f":"IF(P20=\"\",\"\",VLOOKUP(P20,#REF!,7,FALSE))","v":""},null,null,null,null,null,"ﾃﾞﾝｿｰ",null,"",null,null,null,null,null,null,null,null,null,null,null,null,null,null,null,null,null,null,null,null,null,null,null,0,0,0,0,0,0,0,0,0,0,"","","","","","","","0","19"]
[13,null,null,"",null,null,null,null,null,null,null,null,null,"0","","",{"$f":"IF(P21=\"\",\"\",VLOOKUP(P21,#REF!,2,FALSE))","v":""},{"$f":"IF(P21=\"\",\"\",VLOOKUP(P21,#REF!,7,FALSE))","v":""},null,null,null,null,null,"Ise TC",null,"",null,null,null,null,null,null,null,null,null,null,null,null,null,null,null,null,null,null,null,null,null,null,null,0,0,0,0,0,0,0,0,0,0,"","","","","","","","0","19"]
[14,null,null,"",null,null,null,null,null,null,null,null,null,"0","","",{"$f":"IF(P22=\"\",\"\",VLOOKUP(P22,#REF!,2,FALSE))","v":""},{"$f":"IF(P22=\"\",\"\",VLOOKUP(P22,#REF!,7,FALSE))","v":""},null,null,null,null,null,"ｳｲﾗﾝ",null,"",null,null,null,null,null,null,null,null,null,null,null,null,null,null,null,null,null,null,null,null,null,null,null,0,0,0,0,0,0,0,0,0,0,"","","","","","","","0","19"]
[15,null,null,"",null,null,null,null,null,null,null,null,null,"0","","",{"$f":"IF(P23=\"\",\"\",VLOOKUP(P23,#REF!,2,FALSE))","v":""},{"$f":"IF(P23=\"\",\"\",VLOOKUP(P23,#REF!,7,FALSE))","v":""},null,null,null,null,null,"日本陸送",null,"",null,null,null,null,null,null,null,null,null,null,null,null,null,null,null,null,null,null,null,null,null,null,null,0,0,0,0,0,0,0,0,0,0,"","","","","","","","0","19"]
[16,null,null,"",null,null,null,null,null,null,null,null,null,"0","","",{"$f":"IF(P24=\"\",\"\",VLOOKUP(P24,#REF!,2,FALSE))","v":""},{"$f":"IF(P24=\"\",\"\",VLOOKUP(P24,#REF!,7,FALSE))","v":""},null,null,null,null,null,"三菱化学",null,"",null,null,null,null,null,null,null,null,null,null,null,null,null,null,null,null,null,null,null,null,null,null,null,0,0,0,0,0,0,0,0,0,0,"","","","","","","","0","19"]
[17,null,null,"",null,null,null,null,null,null,null,null,null,"0","","",{"$f":"IF(P25=\"\",\"\",VLOOKUP(P25,#REF!,2,FALSE))","v":""},{"$f":"IF(P25=\"\",\"\",VLOOKUP(P25,#REF!,7,FALSE))","v":""},null,null,null,null,null,"ASSA-TC",null,"",null,null,null,null,null,null,null,null,null,null,null,null,null,null,null,null,null,null,null,null,null,null,null,0,0,0,0,0,0,0,0,0,0,"","","","","","","","0","19"]
[18,null,null,"",null,null,null,null,null,null,null,null,null,"0","","",{"$f":"IF(P26=\"\",\"\",VLOOKUP(P26,#REF!,2,FALSE))","v":""},{"$f":"IF(P26=\"\",\"\",VLOOKUP(P26,#REF!,7,FALSE))","v":""},null,null,null,null,null,"四日市ｳｪﾙﾈｽ",null,"",null,null,null,null,null,null,null,null,null,null,null,null,null,null,null,null,null,null,null,null,null,null,null,0,0,0,0,0,0,0,0,0,0,"","","","","","","","0","19"]
[19,null,null,"",null,null,null,null,null,null,null,null,null,"0","","",{"$f":"IF(P27=\"\",\"\",VLOOKUP(P27,#REF!,2,FALSE))","v":""},{"$f":"IF(P27=\"\",\"\",VLOOKUP(P27,#REF!,7,FALSE))","v":""},null,null,null,null,null,"三重TFC",null,"",null,null,null,null,null,null,null,null,null,null,null,null,null,null,null,null,null,null,null,null,null,null,null,0,0,0,0,0,0,0,0,0,0,"","","","","","","","0","19"]
[20,null,null,null,null,null,null,null,null,null,null,null,null,"0","","",{"$f":"IF(P28=\"\",\"\",VLOOKUP(P28,#REF!,2,FALSE))","v":""},{"$f":"IF(P28=\"\",\"\",VLOOKUP(P28,#REF!,7,FALSE))","v":""},null,null,null,null,null,"ｼﾝﾌｫﾆｱ ﾃｸﾉﾛｼﾞｰ",null,"",null,null,null,null,null,null,null,null,null,null,null,null,null,null,null,null,null,null,null,null,null,null,null,0,0,0,0,0,0,0,0,0,0,"","","","","","","","0","19"]
[21,null,null,null,null,null,null,null,null,null,null,null,null,"0","","",{"$f":"IF(P29=\"\",\"\",VLOOKUP(P29,#REF!,2,FALSE))","v":""},{"$f":"IF(P29=\"\",\"\",VLOOKUP(P29,#REF!,7,FALSE))","v":""},null,null,null,null,null,"ﾌﾘｰｽﾀｲﾙ",null,"",null,null,null,null,null,null,null,null,null,null,null,null,null,null,null,null,null,null,null,null,null,null,null,0,0,0,0,0,0,0,0,0,0,"","","","","","","","0","19"]
[22,null,null,null,null,null,null,null,null,null,null,null,null,"0","","",{"$f":"IF(P30=\"\",\"\",VLOOKUP(P30,#REF!,2,FALSE))","v":""},{"$f":"IF(P30=\"\",\"\",VLOOKUP(P30,#REF!,7,FALSE))","v":""},null,null,null,null,null,"ULTIMATE",null,"",null,null,null,null,null,null,null,null,null,null,null,null,null,null,null,null,null,null,null,null,null,null,null,0,0,0,0,0,0,0,0,0,0,"","","","","","","","0","19"]
[23,null,null,null,null,null,null,null,null,null,null,null,null,"0","","",{"$f":"IF(P31=\"\",\"\",VLOOKUP(P31,#REF!,2,FALSE))","v":""},{"$f":"IF(P31=\"\",\"\",VLOOKUP(P31,#REF!,7,FALSE))","v":""},null,null,null,null,null,"松阪市役所",null,"",null,null,null,null,null,null,null,null,null,null,null,null,null,null,null,null,null,null,null,null,null,null,null,0,0,0,0,0,0,0,0,0,0,"","","","","","","","0","19"]
[24,null,null,null,null,null,null,null,null,null,null,null,null,"0","","",{"$f":"IF(P32=\"\",\"\",VLOOKUP(P32,#REF!,2,FALSE))","v":""},{"$f":"IF(P32=\"\",\"\",VLOOKUP(P32,#REF!,7,FALSE))","v":""},null,null,null,null,null,"おがわｸﾗﾌﾞ",null,"",null,null,null,null,null,null,null,null,null,null,null,null,null,null,null,null,null,null,null,null,null,null,null,0,0,0,0,0,0,0,0,0,0,"","","","","","","","0","19"]
[25,null,null,null,null,null,null,null,null,null,null,null,null,"0","","",{"$f":"IF(P33=\"\",\"\",VLOOKUP(P33,#REF!,2,FALSE))","v":""},{"$f":"IF(P33=\"\",\"\",VLOOKUP(P33,#REF!,7,FALSE))","v":""},null,null,null,null,null,"橋南ｽﾎﾟｸ",null,"",null,null,null,null,null,null,null,null,null,null,null,null,null,null,null,null,null,null,null,null,null,null,null,0,0,0,0,0,0,0,0,0,0,"","","","","","","","0","19"]
[26,null,null,null,null,null,null,null,null,null,null,null,null,"0","","",{"$f":"IF(P34=\"\",\"\",VLOOKUP(P34,#REF!,2,FALSE))","v":""},{"$f":"IF(P34=\"\",\"\",VLOOKUP(P34,#REF!,7,FALSE))","v":""},null,null,null,null,null,"ISE-ALUMNI",null,"",null,null,null,null,null,null,null,null,null,null,null,null,null,null,null,null,null,null,null,null,null,null,null,0,0,0,0,0,0,0,0,0,0,"","","","","","","","0","19"]
[27,null,null,null,null,null,null,null,null,null,null,null,null,"0","","",{"$f":"IF(P35=\"\",\"\",VLOOKUP(P35,#REF!,2,FALSE))","v":""},{"$f":"IF(P35=\"\",\"\",VLOOKUP(P35,#REF!,7,FALSE))","v":""},null,null,null,null,null,"eA三重",null,"",null,null,null,null,null,null,null,null,null,null,null,null,null,null,null,null,null,null,null,null,null,null,null,0,0,0,0,0,0,0,0,0,0,"","","","","","","","0","19"]
[28,null,null,null,null,null,null,null,null,null,null,null,null,"0","","",{"$f":"IF(P36=\"\",\"\",VLOOKUP(P36,#REF!,2,FALSE))","v":""},{"$f":"IF(P36=\"\",\"\",VLOOKUP(P36,#REF!,7,FALSE))","v":""},null,null,null,null,null,"Hi FIVE",null,"",null,null,null,null,null,null,null,null,null,null,null,null,null,null,null,null,null,null,null,null,null,null,null,0,0,0,0,0,0,0,0,0,0,"","","","","","","","0","19"]
[29,null,null,null,null,null,null,null,null,null,null,null,null,"0","","",{"$f":"IF(P37=\"\",\"\",VLOOKUP(P37,#REF!,2,FALSE))","v":""},{"$f":"IF(P37=\"\",\"\",VLOOKUP(P37,#REF!,7,FALSE))","v":""},null,null,null,null,null,"iDEAR",null,"",null,null,null,null,null,null,null,null,null,null,null,null,null,null,null,null,null,null,null,null,null,null,null,0,0,0,0,0,0,0,0,0,0,"","","","","","","","0","19"]
[30,null,null,null,null,null,null,null,null,null,null,null,null,"0","","",{"$f":"IF(P38=\"\",\"\",VLOOKUP(P38,#REF!,2,FALSE))","v":""},{"$f":"IF(P38=\"\",\"\",VLOOKUP(P38,#REF!,7,FALSE))","v":""},null,null,null,null,null,"JACK",null,"",null,null,null,null,null,null,null,null,null,null,null,null,null,null,null,null,null,null,null,null,null,null,null,0,0,0,0,0,0,0,0,0,0,"","","","","","","","0","19"]
[31,null,null,null,null,null,null,null,null,null,null,null,null,"0","","",{"$f":"IF(P39=\"\",\"\",VLOOKUP(P39,#REF!,2,FALSE))","v":""},{"$f":"IF(P39=\"\",\"\",VLOOKUP(P39,#REF!,7,FALSE))","v":""},null,null,null,null,null,"K's-AC",null,"",null,null,null,null,null,null,null,null,null,null,null,null,null,null,null,null,null,null,null,null,null,null,null,0,0,0,0,0,0,0,0,0,0,"","","","","","","","0","19"]
[32,null,null,null,null,null,null,null,null,null,null,null,null,"0","","",{"$f":"IF(P40=\"\",\"\",VLOOKUP(P40,#REF!,2,FALSE))","v":""},{"$f":"IF(P40=\"\",\"\",VLOOKUP(P40,#REF!,7,FALSE))","v":""},null,null,null,null,null,"NURF",null,"",null,null,null,null,null,null,null,null,null,null,null,null,null,null,null,null,null,null,null,null,null,null,null,0,0,0,0,0,0,0,0,0,0,"","","","","","","","0","19"]
[33,null,null,null,null,null,null,null,null,null,null,null,null,{"$f":"CONCATENATE(L41,BO41)","v":"0"},"","",{"$f":"IF(P41=\"\",\"\",VLOOKUP(P41,#REF!,2,FALSE))","v":""},{"$f":"IF(P41=\"\",\"\",VLOOKUP(P41,#REF!,7,FALSE))","v":""},null,null,null,null,null,"楠ｽﾎﾟｰﾂｸ",null,"",null,null,null,null,null,null,null,null,null,null,null,null,null,null,null,null,null,null,null,null,null,null,null,{"$f":"AG41","v":0},{"$f":"AJ41","v":0},{"$f":"AK41","v":0},{"$f":"AJ41","v":0},0,0,0,0,0,0,"","","","","","","","0","19"]
[34,null,null,null,null,null,null,null,null,null,null,null,null,"0","","",{"$f":"IF(P42=\"\",\"\",VLOOKUP(P42,#REF!,2,FALSE))","v":""},{"$f":"IF(P42=\"\",\"\",VLOOKUP(P42,#REF!,7,FALSE))","v":""},null,null,null,null,null,"M&K",null,"",null,null,null,null,null,null,null,null,null,null,null,null,null,null,null,null,null,null,null,null,null,null,null,0,0,0,0,{"$f":"AT42","v":0},0,0,{"$f":"AV42","v":0},0,0,"","","","","","","","0","19"]
[35,null,null,null,null,null,null,null,null,null,null,null,null,"0","","",{"$f":"IF(P43=\"\",\"\",VLOOKUP(P43,#REF!,2,FALSE))","v":""},{"$f":"IF(P43=\"\",\"\",VLOOKUP(P43,#REF!,7,FALSE))","v":""},null,null,null,null,null,"K.L.O.R",null,"",null,null,null,null,null,null,null,null,null,null,null,null,null,null,null,null,null,null,null,null,null,null,null,0,0,0,0,0,0,0,0,0,0,"","","","","","","","0","19"]
[36,null,null,null,null,null,null,null,null,null,null,null,null,"0","","",{"$f":"IF(P44=\"\",\"\",VLOOKUP(P44,#REF!,2,FALSE))","v":""},{"$f":"IF(P44=\"\",\"\",VLOOKUP(P44,#REF!,7,FALSE))","v":""},null,null,null,null,null,"ｼｬｶﾘｷ",null,"",null,null,null,null,null,null,null,null,null,null,null,null,null,null,null,null,null,null,null,null,null,null,null,0,0,0,0,0,0,0,0,0,0,"","","","","","","","0","19"]
[37,null,null,null,null,null,null,null,null,null,null,null,null,"0","","",{"$f":"IF(P45=\"\",\"\",VLOOKUP(P45,#REF!,2,FALSE))","v":""},{"$f":"IF(P45=\"\",\"\",VLOOKUP(P45,#REF!,7,FALSE))","v":""},null,null,null,null,null,"T.G.K",null,"",null,null,null,null,null,null,null,null,null,null,null,null,null,null,null,null,null,null,null,null,null,null,null,0,0,0,0,0,0,0,0,0,0,"","","","","","","","0","19"]
[38,null,null,null,null,null,null,null,null,null,null,null,null,"0","","",{"$f":"IF(P46=\"\",\"\",VLOOKUP(P46,#REF!,2,FALSE))","v":""},{"$f":"IF(P46=\"\",\"\",VLOOKUP(P46,#REF!,7,FALSE))","v":""},null,null,null,null,null,"伊賀TC",null,"",null,null,null,null,null,null,null,null,null,null,null,null,null,null,null,null,null,null,null,null,null,null,null,0,0,0,0,0,0,0,0,0,0,"","","","","","","","0","19"]
[39,null,null,null,null,null,null,null,null,null,null,null,null,"0","","",{"$f":"IF(P47=\"\",\"\",VLOOKUP(P47,#REF!,2,FALSE))","v":""},{"$f":"IF(P47=\"\",\"\",VLOOKUP(P47,#REF!,7,FALSE))","v":""},null,null,null,null,null,"三重ﾏｽﾀｰｽﾞ",null,"",null,null,null,null,null,null,null,null,null,null,null,null,null,null,null,null,null,null,null,null,null,null,null,0,0,0,0,0,0,0,0,0,0,"","","","","","","","0","19"]
[40,null,null,null,null,null,null,null,null,null,null,null,null,"0","","",{"$f":"IF(P48=\"\",\"\",VLOOKUP(P48,#REF!,2,FALSE))","v":""},{"$f":"IF(P48=\"\",\"\",VLOOKUP(P48,#REF!,7,FALSE))","v":""},null,null,null,null,null,"北海道教育大",null,"",null,null,null,null,null,null,null,null,null,null,null,null,null,null,null,null,null,null,null,null,null,null,null,0,0,0,0,0,0,0,0,0,0,"","","","","","","","0","19"]
[41,null,null,null,null,null,null,null,null,null,null,null,null,"0","","",{"$f":"IF(P49=\"\",\"\",VLOOKUP(P49,#REF!,2,FALSE))","v":""},{"$f":"IF(P49=\"\",\"\",VLOOKUP(P49,#REF!,7,FALSE))","v":""},null,null,null,null,null,"酪農園大",null,"",null,null,null,null,null,null,null,null,null,null,null,null,null,null,null,null,null,null,null,null,null,null,null,0,0,0,0,0,0,0,0,0,0,"","","","","","","","0","19"]
[42,null,null,null,null,null,null,null,null,null,null,null,null,"0","","",{"$f":"IF(P50=\"\",\"\",VLOOKUP(P50,#REF!,2,FALSE))","v":""},{"$f":"IF(P50=\"\",\"\",VLOOKUP(P50,#REF!,7,FALSE))","v":""},null,null,null,null,null,"東北大",null,"",null,null,null,null,null,null,null,null,null,null,null,null,null,null,null,null,null,null,null,null,null,null,null,0,0,0,0,0,0,0,0,0,0,"","","","","","","","0","19"]
[43,null,null,null,null,null,null,null,null,null,null,null,null,"0","","",{"$f":"IF(P51=\"\",\"\",VLOOKUP(P51,#REF!,2,FALSE))","v":""},{"$f":"IF(P51=\"\",\"\",VLOOKUP(P51,#REF!,7,FALSE))","v":""},null,null,null,null,null,"筑波大",null,"",null,null,null,null,null,null,null,null,null,null,null,null,null,null,null,null,null,null,null,null,null,null,null,0,0,0,0,0,0,0,0,0,0,"","","","","","","","0","19"]
[44,null,null,null,null,null,null,null,null,null,null,null,null,"0","","",{"$f":"IF(P52=\"\",\"\",VLOOKUP(P52,#REF!,2,FALSE))","v":""},{"$f":"IF(P52=\"\",\"\",VLOOKUP(P52,#REF!,7,FALSE))","v":""},null,null,null,null,null,"東京大",null,"",null,null,null,null,null,null,null,null,null,null,null,null,null,null,null,null,null,null,null,null,null,null,null,0,0,0,0,0,0,0,0,0,0,"","","","","","","","0","19"]
[45,null,null,null,null,null,null,null,null,null,null,null,null,"0","","",{"$f":"IF(P53=\"\",\"\",VLOOKUP(P53,#REF!,2,FALSE))","v":""},{"$f":"IF(P53=\"\",\"\",VLOOKUP(P53,#REF!,7,FALSE))","v":""},null,null,null,null,null,"お茶の水女子大",null,"",null,null,null,null,null,null,null,null,null,null,null,null,null,null,null,null,null,null,null,null,null,null,null,0,0,0,0,0,0,0,0,0,0,"","","","","","","","0","19"]
[46,null,null,null,null,null,null,null,null,null,null,null,null,"0","","",{"$f":"IF(P54=\"\",\"\",VLOOKUP(P54,#REF!,2,FALSE))","v":""},{"$f":"IF(P54=\"\",\"\",VLOOKUP(P54,#REF!,7,FALSE))","v":""},null,null,null,null,null,"横浜国立大",null,"",null,null,null,null,null,null,null,null,null,null,null,null,null,null,null,null,null,null,null,null,null,null,null,0,0,0,0,0,0,0,0,0,0,"","","","","","","","0","19"]
[47,null,null,null,null,null,null,null,null,null,null,null,null,"0","","",{"$f":"IF(P55=\"\",\"\",VLOOKUP(P55,#REF!,2,FALSE))","v":""},{"$f":"IF(P55=\"\",\"\",VLOOKUP(P55,#REF!,7,FALSE))","v":""},null,null,null,null,null,"首都大東京",null,"",null,null,null,null,null,null,null,null,null,null,null,null,null,null,null,null,null,null,null,null,null,null,null,0,0,0,0,0,0,0,0,0,0,"","","","","","","","0","19"]
[48,null,null,null,null,null,null,null,null,null,null,null,null,"0","","",{"$f":"IF(P56=\"\",\"\",VLOOKUP(P56,#REF!,2,FALSE))","v":""},{"$f":"IF(P56=\"\",\"\",VLOOKUP(P56,#REF!,7,FALSE))","v":""},null,null,null,null,null,"麗澤大",null,"",null,null,null,null,null,null,null,null,null,null,null,null,null,null,null,null,null,null,null,null,null,null,null,0,0,0,0,0,0,0,0,0,0,"","","","","","","","0","19"]
[49,null,null,null,null,null,null,null,null,null,null,null,null,"0","","",{"$f":"IF(P57=\"\",\"\",VLOOKUP(P57,#REF!,2,FALSE))","v":""},{"$f":"IF(P57=\"\",\"\",VLOOKUP(P57,#REF!,7,FALSE))","v":""},null,null,null,null,null,"青山学院大",null,"",null,null,null,null,null,null,null,null,null,null,null,null,null,null,null,null,null,null,null,null,null,null,null,0,0,0,0,0,0,0,0,0,0,"","","","","","","","0","19"]
[50,null,null,null,null,null,null,null,null,null,null,null,null,"0","","",{"$f":"IF(P58=\"\",\"\",VLOOKUP(P58,#REF!,2,FALSE))","v":""},{"$f":"IF(P58=\"\",\"\",VLOOKUP(P58,#REF!,7,FALSE))","v":""},null,null,null,null,null,"亜細亜大",null,"",null,null,null,null,null,null,null,null,null,null,null,null,null,null,null,null,null,null,null,null,null,null,null,0,0,0,0,0,0,0,0,0,0,"","","","","","","","0","19"]
[null,null,null,null,null,null,null,null,null,null,null,null,null,null,null,null,null,null,null,null,null,null,null,"慶應義塾大"]
[null,null,null,null,"この書式は個人登録者専用です。大学生及びチーム登録者は専用書式を利用して下さい。",null,null,null,null,null,null,null,null,null,null,null,null,null,null,null,null,null,null,"国士舘大"]
[null,null,null,null,null,null,null,null,null,null,null,null,null,null,null,null,null,null,null,null,null,null,null,"駒澤大"]
[null,null,null,null,null,null,null,null,null,null,null,null,null,null,null,null,null,null,null,null,null,null,null,"順天堂大"]
[null,null,null,null,null,null,null,null,null,null,null,null,null,null,null,null,null,null,null,null,null,null,null,"大東文化大"]
[null,null,null,null,null,null,null,null,null,null,null,null,null,null,null,null,null,null,null,null,null,null,null,"拓殖大"]
[null,null,null,null,null,null,null,null,null,null,null,null,null,null,null,null,null,null,null,null,null,null,null,"中央大"]
[null,null,null,null,null,null,null,null,null,null,null,null,null,null,null,null,null,null,null,null,null,null,null,"帝京大"]
[null,null,null,null,null,null,null,null,null,null,null,null,null,null,null,null,null,null,null,null,null,null,null,"東海大"]
[null,null,null,null,null,null,null,null,null,null,null,null,null,null,null,null,null,null,null,null,null,null,null,"東京農業大"]
[null,null,null,null,null,null,null,null,null,null,null,null,null,null,null,null,null,null,null,null,null,null,null,"東洋大"]
[null,null,null,null,null,null,null,null,null,null,null,null,null,null,null,null,null,null,null,null,null,null,null,"日本大"]
[null,null,null,null,null,null,null,null,null,null,null,null,null,null,null,null,null,null,null,null,null,null,null,"日本体育大"]
[null,null,null,null,null,null,null,null,null,null,null,null,null,null,null,null,null,null,null,null,null,null,null,"法政大"]
[null,null,null,null,null,null,null,null,null,null,null,null,null,null,null,null,null,null,null,null,null,null,null,"明治大"]
[null,null,null,null,null,null,null,null,null,null,null,null,null,null,null,null,null,null,null,null,null,null,null,"立教大"]
[null,null,null,null,null,null,null,null,null,null,null,null,null,null,null,null,null,null,null,null,null,null,null,"早稲田大"]
[null,null,null,null,null,null,null,null,null,null,null,null,null,null,null,null,null,null,null,null,null,null,null,"神奈川大"]
[null,null,null,null,null,null,null,null,null,null,null,null,null,null,null,null,null,null,null,null,null,null,null,"信州大"]
[null,null,null,null,null,null,null,null,null,null,null,null,null,null,null,null,null,null,null,null,null,null,null,"金沢医科大"]
[null,null,null,null,null,null,null,null,null,null,null,null,null,null,null,null,null,null,null,null,null,null,null,"名古屋大"]
[null,null,null,null,null,null,null,null,null,null,null,null,null,null,null,null,null,null,null,null,null,null,null,"愛知教育大"]
[null,null,null,null,null,null,null,null,null,null,null,null,null,null,null,null,null,null,null,null,null,null,null,"三重大"]
[null,null,null,null,null,null,null,null,null,null,null,null,null,null,null,null,null,null,null,null,null,null,null,"岐阜経済大"]
[null,null,null,null,null,null,null,null,null,null,null,null,null,null,null,null,null,null,null,null,null,null,null,"愛知大"]
[null,null,null,null,null,null,null,null,null,null,null,null,null,null,null,null,null,null,null,null,null,null,null,"愛知院大"]
[null,null,null,null,null,null,null,null,null,null,null,null,null,null,null,null,null,null,null,null,null,null,null,"愛知工業大"]
[null,null,null,null,null,null,null,null,null,null,null,null,null,null,null,null,null,null,null,null,null,null,null,"大同大"]
[null,null,null,null,null,null,null,null,null,null,null,null,null,null,null,null,null,null,null,null,null,null,null,"中京大"]
[null,null,null,null,null,null,null,null,null,null,null,null,null,null,null,null,null,null,null,null,null,null,null,"至学館大"]
[null,null,null,null,null,null,null,null,null,null,null,null,null,null,null,null,null,null,null,null,null,null,null,"名城大"]
[null,null,null,null,null,null,null,null,null,null,null,null,null,null,null,null,null,null,null,null,null,null,null,"皇學館大"]
[null,null,null,null,null,null,null,null,null,null,null,null,null,null,null,null,null,null,null,null,null,null,null,"愛知淑徳大"]
[null,null,null,null,null,null,null,null,null,null,null,null,null,null,null,null,null,null,null,null,null,null,null,"三重中京大"]
[null,null,null,null,null,null,null,null,null,null,null,null,null,null,null,null,null,null,null,null,null,null,null,"四日市大"]
[null,null,null,null,null,null,null,null,null,null,null,null,null,null,null,null,null,null,null,null,null,null,null,"鈴鹿高専"]
[null,null,null,null,null,null,null,null,null,null,null,null,null,null,null,null,null,null,null,null,null,null,null,"近大高専"]
[null,null,null,null,null,null,null,null,null,null,null,null,null,null,null,null,null,null,null,null,null,null,null,"京都大"]
[null,null,null,null,null,null,null,null,null,null,null,null,null,null,null,null,null,null,null,null,null,null,null,"京都教育大"]
[null,null,null,null,null,null,null,null,null,null,null,null,null,null,null,null,null,null,null,null,null,null,null,"大阪大"]
[null,null,null,null,null,null,null,null,null,null,null,null,null,null,null,null,null,null,null,null,null,null,null,"大阪教育大"]
[null,null,null,null,null,null,null,null,null,null,null,null,null,null,null,null,null,null,null,null,null,null,null,"奈良教育大"]
[null,null,null,null,null,null,null,null,null,null,null,null,null,null,null,null,null,null,null,null,null,null,null,"京都産業大"]
[null,null,null,null,null,null,null,null,null,null,null,null,null,null,null,null,null,null,null,null,null,null,null,"同志社大"]
[null,null,null,null,null,null,null,null,null,null,null,null,null,null,null,null,null,null,null,null,null,null,null,"立命館大"]
[null,null,null,null,null,null,null,null,null,null,null,null,null,null,null,null,null,null,null,null,null,null,null,"大阪体育大"]
[null,null,null,null,null,null,null,null,null,null,null,null,null,null,null,null,null,null,null,null,null,null,null,"関西大"]
[null,null,null,null,null,null,null,null,null,null,null,null,null,null,null,null,null,null,null,null,null,null,null,"関西医科大"]
[null,null,null,null,null,null,null,null,null,null,null,null,null,null,null,null,null,null,null,null,null,null,null,"関西外国語大"]
[null,null,null,null,null,null,null,null,null,null,null,null,null,null,null,null,null,null,null,null,null,null,null,"近畿大"]
[null,null,null,null,null,null,null,null,null,null,null,null,null,null,null,null,null,null,null,null,null,null,null,"桃山院大"]
[null,null,null,null,null,null,null,null,null,null,null,null,null,null,null,null,null,null,null,null,null,null,null,"関西学院大"]
[null,null,null,null,null,null,null,null,null,null,null,null,null,null,null,null,null,null,null,null,null,null,null,"天理大"]
[null,null,null,null,null,null,null,null,null,null,null,null,null,null,null,null,null,null,null,null,null,null,null,"摂南大"]
[null,null,null,null,null,null,null,null,null,null,null,null,null,null,null,null,null,null,null,null,null,null,null,"大阪国際大"]
[null,null,null,null,null,null,null,null,null,null,null,null,null,null,null,null,null,null,null,null,null,null,null,"太成学院大"]
[null,null,null,null,null,null,null,null,null,null,null,null,null,null,null,null,null,null,null,null,null,null,null,"広島大"]
[null,null,null,null,null,null,null,null,null,null,null,null,null,null,null,null,null,null,null,null,null,null,null,"福岡教育大"]
[null,null,null,null,null,null,null,null,null,null,null,null,null,null,null,null,null,null,null,null,null,null,null,"宮崎大"]
[null,null,null,null,null,null,null,null,null,null,null,null,null,null,null,null,null,null,null,null,null,null,null,"鹿屋体育大"]

{"sheet":"大会申込","index":4,"n_rows":15,"n_cols":7,"rows_kept":15,"cut":false,"hidden":false,"merged":[[3,2,3,6],[8,6,8,7],[4,2,4,6]]}
[]
[]
[]
[]
[null,null,"大学生はこの書式で申し込まないで下さい"]
[]
[]
[]
[]
[]
[]
[]
[]
[]
[null,null,null,null,null,null,"インターネットに接続できれば申込できます"]

{"sheet":"国体1次","index":5,"n_rows":58,"n_cols":65,"rows_kept":58,"cut":false,"hidden":false,"merged":[[4,4,4,5],[1,8,1,9],[1,35,1,38],[5,47,5,48],[3,8,3,9],[2,8,2,9],[4,8,4,9],[5,10,5,11]]}
[null,null,null,null,"所属名",{"$f":"IF(名簿!$P$9=\"\",\"\",名簿!$P$9)","v":"三重陸協"},null,null,"国体第1次選考競技会"]
[null,null,null,null,"所属コード",{"$f":"名簿!$Q$9","v":230000},"男子参加人数",null,{"$f":"COUNTIF($I$7:$I$56,1)-COUNTIF($BH$7:$BH$56,0)","v":0},null,null,null,null,null,null,null,"プログラム必要冊数",null,null,null,"冊"]
[null,null,null,null,"申込者名",{"$f":"IF(名簿!$E$5=\"\",\"\",名簿!$E$5)","v":""},"女子参加人数",null,{"$f":"COUNTIF($I$7:$I$56,2)-COUNTIF($BI$7:$BI$56,0)","v":0}]
[null,null,null,null,"連絡先",{"$f":"IF(名簿!$I$5=\"\",\"\",名簿!$I$5)","v":""},"参加費",null,{"$f":"$AF$58*1000+T2*800","v":0},null,null,null,null,null,{"$f":"$AF$58","v":0}]
[null,null,null,null,"選手入力を先にして下さい",null,"種目",null,{"$f":"AW56","v":0},null,null,null,null,null,null,null,null,null,null,null,null,null,null,null,null,null,null,null,null,null,null,null,null,null,null,null,null,null,null,null,null,null,null,null,null,null,null,null,null,null,null,null,null,null,null,null,null,null,null,null,null,null,"男子","女子"]
["競技者コード","所属コード","所属コード2","ナンバーA","ナンバー","競技者名","カナ名","掲示板名","性別","学年又は年齢","生年月日",null,"所属地","陸連ｺｰﾄﾞ","1種目","コード","記録","オープンF","記録F","2種目","コード","記録","オープンF","記録F","種目3","コード","記録3","オープンF","記録F","4×400R","コード","記録","オープンF","記録F","リレー","コード","記録5","オープンF","記録F",null,null,null,100,null,null,null,null,"種目別参加人数",null,null,null,null,null,null,null,100,100,null,"種目数","男子","女子",100,1,100,40]
[null,{"$f":"名簿!Q9","v":230000},null,null,{"$f":"名簿!E9","v":0},{"$f":"名簿!BN9","v":""},{"$f":"名簿!Z9","v":""},{"$f":"F7","v":""},{"$f":"名簿!O9","v":""},null,{"$f":"名簿!K9","v":0},{"$f":"名簿!N9","v":"0"},{"$f":"名簿!R9","v":{"$error":"#REF!"}},{"$f":"名簿!D9","v":""},null,{"$f":"IF(O7=\"\",\"\",IF(I7=1,VLOOKUP(O7,$BJ$6:$BK$30,2,FALSE),IF(I7=2,VLOOKUP(O7,$BL$6:$BM$24,2,FALSE))))","v":""},{"$f":"IF(O7=\"\",\"\",HLOOKUP(O7,名簿!$AB$8:$BG$58,2,FALSE))","v":""},0,2,null,{"$f":"IF(T7=\"\",\"\",IF(I7=1,VLOOKUP(T7,$BJ$6:$BK$30,2,FALSE),IF(I7=2,VLOOKUP(T7,$BL$6:$BM$24,2,FALSE))))","v":""},{"$f":"IF(T7=\"\",\"\",HLOOKUP(T7,名簿!$AB$8:$BG$58,2,FALSE))","v":""},0,2,null,{"$f":"IF(Y7=\"\",\"\",IF(I7=1,VLOOKUP(Y7,#REF!,2,FALSE),IF(I7=2,VLOOKUP(Y7,#REF!,2,FALSE))))","v":""},null,0,2,null,{"$f":"IF(AD7=\"\",\"\",IF(I7=1,VLOOKUP(AD7,#REF!,2,FALSE),IF(I7=2,VLOOKUP(AD7,#REF!,2,FALSE))))","v":""},null,0,2,null,{"$f":"IF(AI7=\"\",\"\",IF(I7=1,VLOOKUP(AI7,#REF!,2,FALSE),IF(I7=2,VLOOKUP(AI7,#REF!,2,FALSE))))","v":""},null,0,2,null,null,null,200,{"$f":"IF(O7=\"\",\"\",1)","v":""},{"$f":"IF(OR(AR7=1,T7=\"\"),0,1)","v":0},{"$f":"IF(OR(AR7=1,AS7=1,AD7=\"\"),0,1)","v":0},{"$f":"IF(T7=\"\",\"\",1)","v":""},"男子",null,null,null,null,null,null,null,200,200,null,{"$f":"COUNT(AR7,AU7)","v":0},{"$f":"IF(I7=1,BG7,\"\")","v":""},{"$f":"IF(I7=2,BG7,\"\")","v":""},200,2,200,41]
[null,{"$f":"名簿!Q10","v":""},null,null,null,null,null,null,null,null,null,null,null,null,null,null,null,null,null,null,null,null,0,2,null,{"$f":"IF(Y8=\"\",\"\",IF(I8=1,VLOOKUP(Y8,#REF!,2,FALSE),IF(I8=2,VLOOKUP(Y8,#REF!,2,FALSE))))","v":""},null,0,2,null,{"$f":"IF(AD8=\"\",\"\",IF(I8=1,VLOOKUP(AD8,#REF!,2,FALSE),IF(I8=2,VLOOKUP(AD8,#REF!,2,FALSE))))","v":""},null,0,2,null,{"$f":"IF(AI8=\"\",\"\",IF(I8=1,VLOOKUP(AI8,#REF!,2,FALSE),IF(I8=2,VLOOKUP(AI8,#REF!,2,FALSE))))","v":""},null,0,2,null,null,null,400,"",0,0,"",100,{"$f":"COUNTIF($P$7:$P$56,1)+COUNTIF($U$7:$U$56,1)","v":0},null,null,null,null,null,null,400,400,null,{"$f":"COUNT(AR8,AU8)","v":0},"","",400,3,400,42]
[null,{"$f":"名簿!Q11","v":""},null,null,null,null,null,null,null,null,null,null,null,null,null,null,null,null,null,null,null,null,0,2,null,{"$f":"IF(Y9=\"\",\"\",IF(I9=1,VLOOKUP(Y9,#REF!,2,FALSE),IF(I9=2,VLOOKUP(Y9,#REF!,2,FALSE))))","v":""},null,0,2,null,{"$f":"IF(AD9=\"\",\"\",IF(I9=1,VLOOKUP(AD9,#REF!,2,FALSE),IF(I9=2,VLOOKUP(AD9,#REF!,2,FALSE))))","v":""},null,0,2,null,{"$f":"IF(AI9=\"\",\"\",IF(I9=1,VLOOKUP(AI9,#REF!,2,FALSE),IF(I9=2,VLOOKUP(AI9,#REF!,2,FALSE))))","v":""},null,0,2,null,null,null,800,"",0,0,"",200,{"$f":"COUNTIF($P$7:$P$56,2)+COUNTIF($U$7:$U$56,2)","v":0},null,null,null,null,null,null,800,800,null,0,"","",800,4,800,43]
[null,{"$f":"名簿!Q12","v":""},null,null,null,null,null,null,null,null,null,null,null,null,null,null,null,null,null,null,null,null,0,2,null,{"$f":"IF(Y10=\"\",\"\",IF(I10=1,VLOOKUP(Y10,#REF!,2,FALSE),IF(I10=2,VLOOKUP(Y10,#REF!,2,FALSE))))","v":""},null,0,2,null,{"$f":"IF(AD10=\"\",\"\",IF(I10=1,VLOOKUP(AD10,#REF!,2,FALSE),IF(I10=2,VLOOKUP(AD10,#REF!,2,FALSE))))","v":""},null,0,2,null,{"$f":"IF(AI10=\"\",\"\",IF(I10=1,VLOOKUP(AI10,#REF!,2,FALSE),IF(I10=2,VLOOKUP(AI10,#REF!,2,FALSE))))","v":""},null,0,2,null,null,null,1500,"",0,0,"",400,{"$f":"COUNTIF($P$7:$P$56,3)+COUNTIF($U$7:$U$56,3)","v":0},null,null,null,null,null,null,1500,1500,null,0,"","",1500,5,1500,44]
[null,{"$f":"名簿!Q13","v":""},null,null,null,null,null,null,null,null,null,null,null,null,null,null,null,null,null,null,null,null,0,2,null,{"$f":"IF(Y11=\"\",\"\",IF(I11=1,VLOOKUP(Y11,#REF!,2,FALSE),IF(I11=2,VLOOKUP(Y11,#REF!,2,FALSE))))","v":""},null,0,2,null,{"$f":"IF(AD11=\"\",\"\",IF(I11=1,VLOOKUP(AD11,#REF!,2,FALSE),IF(I11=2,VLOOKUP(AD11,#REF!,2,FALSE))))","v":""},null,0,2,null,{"$f":"IF(AI11=\"\",\"\",IF(I11=1,VLOOKUP(AI11,#REF!,2,FALSE),IF(I11=2,VLOOKUP(AI11,#REF!,2,FALSE))))","v":""},null,0,2,null,null,null,5000,"",0,0,"",800,{"$f":"COUNTIF($P$7:$P$56,4)+COUNTIF($U$7:$U$56,4)","v":0},null,null,null,null,null,null,"少年3000",3000,null,0,"","","少年3000",6,3000,45]
[null,{"$f":"名簿!Q14","v":""},null,null,null,null,null,null,null,null,null,null,null,null,null,null,null,null,null,null,null,null,0,2,null,{"$f":"IF(Y12=\"\",\"\",IF(I12=1,VLOOKUP(Y12,#REF!,2,FALSE),IF(I12=2,VLOOKUP(Y12,#REF!,2,FALSE))))","v":""},null,0,2,null,{"$f":"IF(AD12=\"\",\"\",IF(I12=1,VLOOKUP(AD12,#REF!,2,FALSE),IF(I12=2,VLOOKUP(AD12,#REF!,2,FALSE))))","v":""},null,0,2,null,{"$f":"IF(AI12=\"\",\"\",IF(I12=1,VLOOKUP(AI12,#REF!,2,FALSE),IF(I12=2,VLOOKUP(AI12,#REF!,2,FALSE))))","v":""},null,0,2,null,null,null,10000,"",0,0,"",1500,{"$f":"COUNTIF($P$7:$P$56,5)+COUNTIF($U$7:$U$56,5)","v":0},null,null,null,null,null,null,5000,5000,null,0,"","",5000,7,5000,46]
[null,{"$f":"名簿!Q15","v":""},null,null,null,null,null,null,null,null,null,null,null,null,null,null,null,null,null,null,null,null,0,2,null,{"$f":"IF(Y13=\"\",\"\",IF(I13=1,VLOOKUP(Y13,#REF!,2,FALSE),IF(I13=2,VLOOKUP(Y13,#REF!,2,FALSE))))","v":""},null,0,2,null,{"$f":"IF(AD13=\"\",\"\",IF(I13=1,VLOOKUP(AD13,#REF!,2,FALSE),IF(I13=2,VLOOKUP(AD13,#REF!,2,FALSE))))","v":""},null,0,2,null,{"$f":"IF(AI13=\"\",\"\",IF(I13=1,VLOOKUP(AI13,#REF!,2,FALSE),IF(I13=2,VLOOKUP(AI13,#REF!,2,FALSE))))","v":""},null,0,2,null,null,null,"100H","",0,0,"","少年3000",{"$f":"COUNTIF($P$7:$P$56,24)+COUNTIF($U$7:$U$56,24)","v":0},null,null,null,null,null,null,10000,10000,null,0,"","",10000,8,10000,47]
[null,{"$f":"名簿!Q16","v":""},null,null,null,null,null,null,null,null,null,null,null,null,null,null,null,null,null,null,null,null,0,2,null,{"$f":"IF(Y14=\"\",\"\",IF(I14=1,VLOOKUP(Y14,#REF!,2,FALSE),IF(I14=2,VLOOKUP(Y14,#REF!,2,FALSE))))","v":""},null,0,2,null,{"$f":"IF(AD14=\"\",\"\",IF(I14=1,VLOOKUP(AD14,#REF!,2,FALSE),IF(I14=2,VLOOKUP(AD14,#REF!,2,FALSE))))","v":""},null,0,2,null,{"$f":"IF(AI14=\"\",\"\",IF(I14=1,VLOOKUP(AI14,#REF!,2,FALSE),IF(I14=2,VLOOKUP(AI14,#REF!,2,FALSE))))","v":""},null,0,2,null,null,null,"110H","",0,0,"",5000,{"$f":"COUNTIF($P$7:$P$56,6)+COUNTIF($U$7:$U$56,6)","v":0},null,null,null,null,null,null,"110H","100H",null,0,"","","110H",9,"100H",48]
[null,{"$f":"名簿!Q17","v":""},null,null,null,null,null,null,null,null,null,null,null,null,null,null,null,null,null,null,null,null,0,2,null,{"$f":"IF(Y15=\"\",\"\",IF(I15=1,VLOOKUP(Y15,#REF!,2,FALSE),IF(I15=2,VLOOKUP(Y15,#REF!,2,FALSE))))","v":""},null,0,2,null,{"$f":"IF(AD15=\"\",\"\",IF(I15=1,VLOOKUP(AD15,#REF!,2,FALSE),IF(I15=2,VLOOKUP(AD15,#REF!,2,FALSE))))","v":""},null,0,2,null,{"$f":"IF(AI15=\"\",\"\",IF(I15=1,VLOOKUP(AI15,#REF!,2,FALSE),IF(I15=2,VLOOKUP(AI15,#REF!,2,FALSE))))","v":""},null,0,2,null,null,null,"400H","",0,0,"",10000,{"$f":"COUNTIF($P$7:$P$56,7)+COUNTIF($U$7:$U$56,7)","v":0},null,null,null,null,null,null,"400H","400H",null,0,"","","400H",10,"400H",49]
[null,{"$f":"名簿!Q18","v":""},null,null,null,null,null,null,null,null,null,null,null,null,null,null,null,null,null,null,null,null,0,2,null,{"$f":"IF(Y16=\"\",\"\",IF(I16=1,VLOOKUP(Y16,#REF!,2,FALSE),IF(I16=2,VLOOKUP(Y16,#REF!,2,FALSE))))","v":""},null,0,2,null,{"$f":"IF(AD16=\"\",\"\",IF(I16=1,VLOOKUP(AD16,#REF!,2,FALSE),IF(I16=2,VLOOKUP(AD16,#REF!,2,FALSE))))","v":""},null,0,2,null,{"$f":"IF(AI16=\"\",\"\",IF(I16=1,VLOOKUP(AI16,#REF!,2,FALSE),IF(I16=2,VLOOKUP(AI16,#REF!,2,FALSE))))","v":""},null,0,2,null,null,null,"3000SC","",0,0,"","110H",{"$f":"COUNTIF($P$7:$P$56,8)+COUNTIF($U$7:$U$56,8)","v":0},null,null,null,null,null,null,"3000SC","5000W",null,0,"","","3000SC",12,"5000W",52]
[null,{"$f":"名簿!Q19","v":""},null,null,null,null,null,null,null,null,null,null,null,null,null,null,null,null,null,null,null,null,0,2,null,{"$f":"IF(Y17=\"\",\"\",IF(I17=1,VLOOKUP(Y17,#REF!,2,FALSE),IF(I17=2,VLOOKUP(Y17,#REF!,2,FALSE))))","v":""},null,0,2,null,{"$f":"IF(AD17=\"\",\"\",IF(I17=1,VLOOKUP(AD17,#REF!,2,FALSE),IF(I17=2,VLOOKUP(AD17,#REF!,2,FALSE))))","v":""},null,0,2,null,{"$f":"IF(AI17=\"\",\"\",IF(I17=1,VLOOKUP(AI17,#REF!,2,FALSE),IF(I17=2,VLOOKUP(AI17,#REF!,2,FALSE))))","v":""},null,0,2,null,null,null,"5000W","",0,0,"",null,{"$f":"COUNTIF($P$7:$P$56,28)+COUNTIF($U$7:$U$56,28)","v":0},null,null,null,null,null,null,"5000W","走高跳",null,0,"","","5000W",15,"走高跳",55]
[null,{"$f":"名簿!Q20","v":""},null,null,null,null,null,null,null,null,null,null,null,null,null,null,null,null,null,null,null,null,0,2,null,{"$f":"IF(Y18=\"\",\"\",IF(I18=1,VLOOKUP(Y18,#REF!,2,FALSE),IF(I18=2,VLOOKUP(Y18,#REF!,2,FALSE))))","v":""},null,0,2,null,{"$f":"IF(AD18=\"\",\"\",IF(I18=1,VLOOKUP(AD18,#REF!,2,FALSE),IF(I18=2,VLOOKUP(AD18,#REF!,2,FALSE))))","v":""},null,0,2,null,{"$f":"IF(AI18=\"\",\"\",IF(I18=1,VLOOKUP(AI18,#REF!,2,FALSE),IF(I18=2,VLOOKUP(AI18,#REF!,2,FALSE))))","v":""},null,0,2,null,null,null,"走高跳","",0,0,"","400H",{"$f":"COUNTIF($P$7:$P$56,9)+COUNTIF($U$7:$U$56,9)","v":0},null,null,null,null,null,null,"走高跳","棒高跳",null,0,"","","走高跳",16,"棒高跳",56]
[null,{"$f":"名簿!Q21","v":""},null,null,null,null,null,null,null,null,null,null,null,null,null,null,null,null,null,null,null,null,0,2,null,{"$f":"IF(Y19=\"\",\"\",IF(I19=1,VLOOKUP(Y19,#REF!,2,FALSE),IF(I19=2,VLOOKUP(Y19,#REF!,2,FALSE))))","v":""},null,0,2,null,{"$f":"IF(AD19=\"\",\"\",IF(I19=1,VLOOKUP(AD19,#REF!,2,FALSE),IF(I19=2,VLOOKUP(AD19,#REF!,2,FALSE))))","v":""},null,0,2,null,{"$f":"IF(AI19=\"\",\"\",IF(I19=1,VLOOKUP(AI19,#REF!,2,FALSE),IF(I19=2,VLOOKUP(AI19,#REF!,2,FALSE))))","v":""},null,0,2,null,null,null,"棒高跳","",0,0,"","3000SC",{"$f":"COUNTIF($P$7:$P$56,10)+COUNTIF($U$7:$U$56,10)","v":0},null,null,null,null,null,null,"棒高跳","走幅跳",null,0,"","","棒高跳",17,"走幅跳",57]
[null,{"$f":"名簿!Q22","v":""},null,null,null,null,null,null,null,null,null,null,null,null,null,null,null,null,null,null,null,null,0,2,null,{"$f":"IF(Y20=\"\",\"\",IF(I20=1,VLOOKUP(Y20,#REF!,2,FALSE),IF(I20=2,VLOOKUP(Y20,#REF!,2,FALSE))))","v":""},null,0,2,null,{"$f":"IF(AD20=\"\",\"\",IF(I20=1,VLOOKUP(AD20,#REF!,2,FALSE),IF(I20=2,VLOOKUP(AD20,#REF!,2,FALSE))))","v":""},null,0,2,null,{"$f":"IF(AI20=\"\",\"\",IF(I20=1,VLOOKUP(AI20,#REF!,2,FALSE),IF(I20=2,VLOOKUP(AI20,#REF!,2,FALSE))))","v":""},null,0,2,null,null,null,"走幅跳","",0,0,"","5000W",{"$f":"COUNTIF($P$7:$P$56,12)+COUNTIF($U$7:$U$56,12)","v":0},null,null,null,null,null,null,"走幅跳","三段跳",null,0,"","","走幅跳",18,"三段跳",58]
[null,{"$f":"名簿!Q23","v":""},null,null,null,null,null,null,null,null,null,null,null,null,null,null,null,null,null,null,null,null,0,2,null,{"$f":"IF(Y21=\"\",\"\",IF(I21=1,VLOOKUP(Y21,#REF!,2,FALSE),IF(I21=2,VLOOKUP(Y21,#REF!,2,FALSE))))","v":""},null,0,2,null,{"$f":"IF(AD21=\"\",\"\",IF(I21=1,VLOOKUP(AD21,#REF!,2,FALSE),IF(I21=2,VLOOKUP(AD21,#REF!,2,FALSE))))","v":""},null,0,2,null,{"$f":"IF(AI21=\"\",\"\",IF(I21=1,VLOOKUP(AI21,#REF!,2,FALSE),IF(I21=2,VLOOKUP(AI21,#REF!,2,FALSE))))","v":""},null,0,2,null,null,null,"三段跳","",0,0,"","走高跳",{"$f":"COUNTIF($P$7:$P$56,15)+COUNTIF($U$7:$U$56,15)","v":0},null,null,null,null,null,null,"少年B走幅跳","砲丸投",null,0,"","","少年B走幅跳",19,"砲丸投",59]
[null,{"$f":"名簿!Q24","v":""},null,null,null,null,null,null,null,null,null,null,null,null,null,null,null,null,null,null,null,null,0,2,null,{"$f":"IF(Y22=\"\",\"\",IF(I22=1,VLOOKUP(Y22,#REF!,2,FALSE),IF(I22=2,VLOOKUP(Y22,#REF!,2,FALSE))))","v":""},null,0,2,null,{"$f":"IF(AD22=\"\",\"\",IF(I22=1,VLOOKUP(AD22,#REF!,2,FALSE),IF(I22=2,VLOOKUP(AD22,#REF!,2,FALSE))))","v":""},null,0,2,null,{"$f":"IF(AI22=\"\",\"\",IF(I22=1,VLOOKUP(AI22,#REF!,2,FALSE),IF(I22=2,VLOOKUP(AI22,#REF!,2,FALSE))))","v":""},null,0,2,null,null,null,"砲丸投","",0,0,"","棒高跳",{"$f":"COUNTIF($P$7:$P$56,16)+COUNTIF($U$7:$U$56,16)","v":0},null,null,null,null,null,null,"三段跳","円盤投",null,0,"","","三段跳",20,"円盤投",60]
[null,{"$f":"名簿!Q25","v":""},null,null,null,null,null,null,null,null,null,null,null,null,null,null,null,null,null,null,null,null,0,2,null,{"$f":"IF(Y23=\"\",\"\",IF(I23=1,VLOOKUP(Y23,#REF!,2,FALSE),IF(I23=2,VLOOKUP(Y23,#REF!,2,FALSE))))","v":""},null,0,2,null,{"$f":"IF(AD23=\"\",\"\",IF(I23=1,VLOOKUP(AD23,#REF!,2,FALSE),IF(I23=2,VLOOKUP(AD23,#REF!,2,FALSE))))","v":""},null,0,2,null,{"$f":"IF(AI23=\"\",\"\",IF(I23=1,VLOOKUP(AI23,#REF!,2,FALSE),IF(I23=2,VLOOKUP(AI23,#REF!,2,FALSE))))","v":""},null,0,2,null,null,null,"円盤投","",0,0,"","走幅跳",{"$f":"COUNTIF($P$7:$P$56,17)+COUNTIF($U$7:$U$56,17)","v":0},null,null,null,null,null,null,"砲丸投","ハンマー投",null,0,"","","砲丸投",21,"ハンマー投",61]
[null,{"$f":"名簿!Q26","v":""},null,null,null,null,null,null,null,null,null,null,null,null,null,null,null,null,null,null,null,null,0,2,null,{"$f":"IF(Y24=\"\",\"\",IF(I24=1,VLOOKUP(Y24,#REF!,2,FALSE),IF(I24=2,VLOOKUP(Y24,#REF!,2,FALSE))))","v":""},null,0,2,null,{"$f":"IF(AD24=\"\",\"\",IF(I24=1,VLOOKUP(AD24,#REF!,2,FALSE),IF(I24=2,VLOOKUP(AD24,#REF!,2,FALSE))))","v":""},null,0,2,null,{"$f":"IF(AI24=\"\",\"\",IF(I24=1,VLOOKUP(AI24,#REF!,2,FALSE),IF(I24=2,VLOOKUP(AI24,#REF!,2,FALSE))))","v":""},null,0,2,null,null,null,"ハンマー投","",0,0,"","三段跳",{"$f":"COUNTIF($P$7:$P$56,18)+COUNTIF($U$7:$U$56,18)","v":0},null,null,null,null,null,null,"少年砲丸投","やり投",null,0,"","","少年砲丸投",22,"やり投",62]
[null,{"$f":"名簿!Q27","v":""},null,null,null,null,null,null,null,null,null,null,null,null,null,null,null,null,null,null,null,null,0,2,null,{"$f":"IF(Y25=\"\",\"\",IF(I25=1,VLOOKUP(Y25,#REF!,2,FALSE),IF(I25=2,VLOOKUP(Y25,#REF!,2,FALSE))))","v":""},null,0,2,null,{"$f":"IF(AD25=\"\",\"\",IF(I25=1,VLOOKUP(AD25,#REF!,2,FALSE),IF(I25=2,VLOOKUP(AD25,#REF!,2,FALSE))))","v":""},null,0,2,null,{"$f":"IF(AI25=\"\",\"\",IF(I25=1,VLOOKUP(AI25,#REF!,2,FALSE),IF(I25=2,VLOOKUP(AI25,#REF!,2,FALSE))))","v":""},null,0,2,null,null,null,"やり投","",0,0,"","砲丸投",{"$f":"COUNTIF($P$7:$P$56,19)+COUNTIF($U$7:$U$56,19)","v":0},null,null,null,null,null,null,"少年B砲丸投",null,null,0,"","","少年B砲丸投",23]
[null,{"$f":"名簿!Q28","v":""},null,null,null,null,null,null,null,null,null,null,null,null,null,null,null,null,null,null,null,null,0,2,null,{"$f":"IF(Y26=\"\",\"\",IF(I26=1,VLOOKUP(Y26,#REF!,2,FALSE),IF(I26=2,VLOOKUP(Y26,#REF!,2,FALSE))))","v":""},null,0,2,null,{"$f":"IF(AD26=\"\",\"\",IF(I26=1,VLOOKUP(AD26,#REF!,2,FALSE),IF(I26=2,VLOOKUP(AD26,#REF!,2,FALSE))))","v":""},null,0,2,null,{"$f":"IF(AI26=\"\",\"\",IF(I26=1,VLOOKUP(AI26,#REF!,2,FALSE),IF(I26=2,VLOOKUP(AI26,#REF!,2,FALSE))))","v":""},null,0,2,null,null,null,"少年B100H","",0,0,"","円盤投",{"$f":"COUNTIF($P$7:$P$56,20)+COUNTIF($U$7:$U$56,20)","v":0},null,null,null,null,null,null,"円盤投げ",null,null,0,"","","円盤投げ",24]
[null,{"$f":"名簿!Q29","v":""},null,null,null,null,null,null,null,null,null,null,null,null,null,null,null,null,null,null,null,null,0,2,null,{"$f":"IF(Y27=\"\",\"\",IF(I27=1,VLOOKUP(Y27,#REF!,2,FALSE),IF(I27=2,VLOOKUP(Y27,#REF!,2,FALSE))))","v":""},null,0,2,null,{"$f":"IF(AD27=\"\",\"\",IF(I27=1,VLOOKUP(AD27,#REF!,2,FALSE),IF(I27=2,VLOOKUP(AD27,#REF!,2,FALSE))))","v":""},null,0,2,null,{"$f":"IF(AI27=\"\",\"\",IF(I27=1,VLOOKUP(AI27,#REF!,2,FALSE),IF(I27=2,VLOOKUP(AI27,#REF!,2,FALSE))))","v":""},null,0,2,null,null,null,"少年3000","",0,0,"","ハンマー投",{"$f":"COUNTIF($P$7:$P$56,21)+COUNTIF($U$7:$U$56,21)","v":0},null,null,null,null,null,null,"少年円盤投",null,null,0,"","","少年円盤投",25]
[null,{"$f":"名簿!Q30","v":""},null,null,null,null,null,null,null,null,null,null,null,null,null,null,null,null,null,null,null,null,0,2,null,{"$f":"IF(Y28=\"\",\"\",IF(I28=1,VLOOKUP(Y28,#REF!,2,FALSE),IF(I28=2,VLOOKUP(Y28,#REF!,2,FALSE))))","v":""},null,0,2,null,{"$f":"IF(AD28=\"\",\"\",IF(I28=1,VLOOKUP(AD28,#REF!,2,FALSE),IF(I28=2,VLOOKUP(AD28,#REF!,2,FALSE))))","v":""},null,0,2,null,{"$f":"IF(AI28=\"\",\"\",IF(I28=1,VLOOKUP(AI28,#REF!,2,FALSE),IF(I28=2,VLOOKUP(AI28,#REF!,2,FALSE))))","v":""},null,0,2,null,null,null,"少年砲丸投","",0,0,"","やり投",{"$f":"COUNTIF($P$7:$P$56,22)+COUNTIF($U$7:$U$56,22)","v":0},null,null,null,null,null,null,"ハンマー投",null,null,0,"","","ハンマー投",26]
[null,{"$f":"名簿!Q31","v":""},null,null,null,null,null,null,null,null,null,null,null,null,null,null,null,null,null,null,null,null,0,2,null,{"$f":"IF(Y29=\"\",\"\",IF(I29=1,VLOOKUP(Y29,#REF!,2,FALSE),IF(I29=2,VLOOKUP(Y29,#REF!,2,FALSE))))","v":""},null,0,2,null,{"$f":"IF(AD29=\"\",\"\",IF(I29=1,VLOOKUP(AD29,#REF!,2,FALSE),IF(I29=2,VLOOKUP(AD29,#REF!,2,FALSE))))","v":""},null,0,2,null,{"$f":"IF(AI29=\"\",\"\",IF(I29=1,VLOOKUP(AI29,#REF!,2,FALSE),IF(I29=2,VLOOKUP(AI29,#REF!,2,FALSE))))","v":""},null,0,2,null,null,null,"少年円盤投","",0,0,"","少年砲丸投",{"$f":"COUNTIF($P$7:$P$56,25)+COUNTIF($U$7:$U$56,25)","v":0},null,null,null,null,null,null,"少年ハンマー投",null,null,0,"","","少年ハンマー投",27]
[null,{"$f":"名簿!Q32","v":""},null,null,null,null,null,null,null,null,null,null,null,null,null,null,null,null,null,null,null,null,0,2,null,{"$f":"IF(Y30=\"\",\"\",IF(I30=1,VLOOKUP(Y30,#REF!,2,FALSE),IF(I30=2,VLOOKUP(Y30,#REF!,2,FALSE))))","v":""},null,0,2,null,{"$f":"IF(AD30=\"\",\"\",IF(I30=1,VLOOKUP(AD30,#REF!,2,FALSE),IF(I30=2,VLOOKUP(AD30,#REF!,2,FALSE))))","v":""},null,0,2,null,{"$f":"IF(AI30=\"\",\"\",IF(I30=1,VLOOKUP(AI30,#REF!,2,FALSE),IF(I30=2,VLOOKUP(AI30,#REF!,2,FALSE))))","v":""},null,0,2,null,null,null,"少年ハンマー投","",0,0,"","少年円盤投",{"$f":"COUNTIF($P$7:$P$56,26)+COUNTIF($U$7:$U$56,26)","v":0},null,null,null,null,null,null,"やり投",null,null,0,"","","やり投",29]
[null,{"$f":"名簿!Q33","v":""},null,null,null,null,null,null,null,null,null,null,null,null,null,null,null,null,null,null,null,null,0,2,null,{"$f":"IF(Y31=\"\",\"\",IF(I31=1,VLOOKUP(Y31,#REF!,2,FALSE),IF(I31=2,VLOOKUP(Y31,#REF!,2,FALSE))))","v":""},null,0,2,null,{"$f":"IF(AD31=\"\",\"\",IF(I31=1,VLOOKUP(AD31,#REF!,2,FALSE),IF(I31=2,VLOOKUP(AD31,#REF!,2,FALSE))))","v":""},null,0,2,null,{"$f":"IF(AI31=\"\",\"\",IF(I31=1,VLOOKUP(AI31,#REF!,2,FALSE),IF(I31=2,VLOOKUP(AI31,#REF!,2,FALSE))))","v":""},null,0,2,null,null,null,"男子A","",0,0,"","少年Ｂ砲丸投",{"$f":"COUNTIF($P$7:$P$56,29)+COUNTIF($U$7:$U$56,29)","v":0},null,null,null,null,null,null,null,null,null,0,"",""]
[null,{"$f":"名簿!Q34","v":""},null,null,null,null,null,null,null,null,null,null,null,null,null,null,null,null,null,null,null,null,0,2,null,{"$f":"IF(Y32=\"\",\"\",IF(I32=1,VLOOKUP(Y32,#REF!,2,FALSE),IF(I32=2,VLOOKUP(Y32,#REF!,2,FALSE))))","v":""},null,0,2,null,{"$f":"IF(AD32=\"\",\"\",IF(I32=1,VLOOKUP(AD32,#REF!,2,FALSE),IF(I32=2,VLOOKUP(AD32,#REF!,2,FALSE))))","v":""},null,0,2,null,{"$f":"IF(AI32=\"\",\"\",IF(I32=1,VLOOKUP(AI32,#REF!,2,FALSE),IF(I32=2,VLOOKUP(AI32,#REF!,2,FALSE))))","v":""},null,0,2,null,null,null,"男子B","",0,0,"","少年ハンマー投",{"$f":"COUNTIF($P$7:$P$56,27)+COUNTIF($U$7:$U$56,27)","v":0},null,null,null,null,null,null,null,null,null,0,"",""]
[null,{"$f":"名簿!Q35","v":""},null,null,null,null,null,null,null,null,null,null,null,null,null,null,null,null,null,null,null,null,0,2,null,{"$f":"IF(Y33=\"\",\"\",IF(I33=1,VLOOKUP(Y33,#REF!,2,FALSE),IF(I33=2,VLOOKUP(Y33,#REF!,2,FALSE))))","v":""},null,0,2,null,{"$f":"IF(AD33=\"\",\"\",IF(I33=1,VLOOKUP(AD33,#REF!,2,FALSE),IF(I33=2,VLOOKUP(AD33,#REF!,2,FALSE))))","v":""},null,0,2,null,{"$f":"IF(AI33=\"\",\"\",IF(I33=1,VLOOKUP(AI33,#REF!,2,FALSE),IF(I33=2,VLOOKUP(AI33,#REF!,2,FALSE))))","v":""},null,0,2,null,null,null,"男子C","",0,0,"","計",{"$f":"SUM($AW$8:$AW$32)","v":0},null,null,null,null,null,null,null,null,null,0,"",""]
[null,{"$f":"名簿!Q36","v":""},null,null,null,null,null,null,null,null,null,null,null,null,null,null,null,null,null,null,null,null,0,2,null,{"$f":"IF(Y34=\"\",\"\",IF(I34=1,VLOOKUP(Y34,#REF!,2,FALSE),IF(I34=2,VLOOKUP(Y34,#REF!,2,FALSE))))","v":""},null,0,2,null,{"$f":"IF(AD34=\"\",\"\",IF(I34=1,VLOOKUP(AD34,#REF!,2,FALSE),IF(I34=2,VLOOKUP(AD34,#REF!,2,FALSE))))","v":""},null,0,2,null,{"$f":"IF(AI34=\"\",\"\",IF(I34=1,VLOOKUP(AI34,#REF!,2,FALSE),IF(I34=2,VLOOKUP(AI34,#REF!,2,FALSE))))","v":""},null,0,2,null,null,null,"女子A","",0,0,"","女子",null,null,null,null,null,null,null,null,null,null,0,"",""]
[null,{"$f":"名簿!Q37","v":""},null,null,null,null,null,null,null,null,null,null,null,null,null,null,null,null,null,null,null,null,0,2,null,{"$f":"IF(Y35=\"\",\"\",IF(I35=1,VLOOKUP(Y35,#REF!,2,FALSE),IF(I35=2,VLOOKUP(Y35,#REF!,2,FALSE))))","v":""},null,0,2,null,{"$f":"IF(AD35=\"\",\"\",IF(I35=1,VLOOKUP(AD35,#REF!,2,FALSE),IF(I35=2,VLOOKUP(AD35,#REF!,2,FALSE))))","v":""},null,0,2,null,{"$f":"IF(AI35=\"\",\"\",IF(I35=1,VLOOKUP(AI35,#REF!,2,FALSE),IF(I35=2,VLOOKUP(AI35,#REF!,2,FALSE))))","v":""},null,0,2,null,null,null,"女子B","",0,0,"",100,{"$f":"COUNTIF($P$7:$P$56,40)+COUNTIF($U$7:$U$56,40)","v":0},null,null,null,null,null,null,null,null,null,0,"",""]
[null,{"$f":"名簿!Q38","v":""},null,null,null,null,null,null,null,null,null,null,null,null,null,null,null,null,null,null,null,null,0,2,null,{"$f":"IF(Y36=\"\",\"\",IF(I36=1,VLOOKUP(Y36,#REF!,2,FALSE),IF(I36=2,VLOOKUP(Y36,#REF!,2,FALSE))))","v":""},null,0,2,null,{"$f":"IF(AD36=\"\",\"\",IF(I36=1,VLOOKUP(AD36,#REF!,2,FALSE),IF(I36=2,VLOOKUP(AD36,#REF!,2,FALSE))))","v":""},null,0,2,null,{"$f":"IF(AI36=\"\",\"\",IF(I36=1,VLOOKUP(AI36,#REF!,2,FALSE),IF(I36=2,VLOOKUP(AI36,#REF!,2,FALSE))))","v":""},null,0,2,null,null,null,"女子C","",0,0,"",200,{"$f":"COUNTIF($P$7:$P$56,41)+COUNTIF($U$7:$U$56,41)","v":0},null,null,null,null,null,null,null,null,null,0,"",""]
[null,{"$f":"名簿!Q39","v":""},null,null,null,null,null,null,null,null,null,null,null,null,null,null,null,null,null,null,null,null,0,2,null,{"$f":"IF(Y37=\"\",\"\",IF(I37=1,VLOOKUP(Y37,#REF!,2,FALSE),IF(I37=2,VLOOKUP(Y37,#REF!,2,FALSE))))","v":""},null,0,2,null,{"$f":"IF(AD37=\"\",\"\",IF(I37=1,VLOOKUP(AD37,#REF!,2,FALSE),IF(I37=2,VLOOKUP(AD37,#REF!,2,FALSE))))","v":""},null,0,2,null,{"$f":"IF(AI37=\"\",\"\",IF(I37=1,VLOOKUP(AI37,#REF!,2,FALSE),IF(I37=2,VLOOKUP(AI37,#REF!,2,FALSE))))","v":""},null,0,2,null,null,null,null,"",0,0,"",400,{"$f":"COUNTIF($P$7:$P$56,42)+COUNTIF($U$7:$U$56,42)","v":0},null,null,null,null,null,null,null,null,null,0,"",""]
[null,{"$f":"名簿!Q40","v":""},null,null,null,null,null,null,null,null,null,null,null,null,null,null,null,null,null,null,null,null,0,2,null,{"$f":"IF(Y38=\"\",\"\",IF(I38=1,VLOOKUP(Y38,#REF!,2,FALSE),IF(I38=2,VLOOKUP(Y38,#REF!,2,FALSE))))","v":""},null,0,2,null,{"$f":"IF(AD38=\"\",\"\",IF(I38=1,VLOOKUP(AD38,#REF!,2,FALSE),IF(I38=2,VLOOKUP(AD38,#REF!,2,FALSE))))","v":""},null,0,2,null,{"$f":"IF(AI38=\"\",\"\",IF(I38=1,VLOOKUP(AI38,#REF!,2,FALSE),IF(I38=2,VLOOKUP(AI38,#REF!,2,FALSE))))","v":""},null,0,2,null,null,null,null,"",0,0,"",800,{"$f":"COUNTIF($P$7:$P$56,43)+COUNTIF($U$7:$U$56,43)","v":0},null,null,null,null,null,null,null,null,null,0,"",""]
[null,{"$f":"名簿!Q41","v":""},null,null,null,null,null,null,null,null,null,null,null,null,null,null,null,null,null,null,null,null,0,2,null,{"$f":"IF(Y39=\"\",\"\",IF(I39=1,VLOOKUP(Y39,#REF!,2,FALSE),IF(I39=2,VLOOKUP(Y39,#REF!,2,FALSE))))","v":""},null,0,2,null,{"$f":"IF(AD39=\"\",\"\",IF(I39=1,VLOOKUP(AD39,#REF!,2,FALSE),IF(I39=2,VLOOKUP(AD39,#REF!,2,FALSE))))","v":""},null,0,2,null,{"$f":"IF(AI39=\"\",\"\",IF(I39=1,VLOOKUP(AI39,#REF!,2,FALSE),IF(I39=2,VLOOKUP(AI39,#REF!,2,FALSE))))","v":""},null,0,2,null,null,null,null,"",{"$f":"IF(OR(AR39=1,T39=\"\"),0,1)","v":0},{"$f":"IF(OR(AR39=1,AS39=1,AD39=\"\"),0,1)","v":0},"",1500,{"$f":"COUNTIF($P$7:$P$56,44)+COUNTIF($U$7:$U$56,44)","v":0},null,null,null,null,null,null,null,null,null,0,{"$f":"IF(I39=1,BG39,\"\")","v":""},{"$f":"IF(I39=2,BG39,\"\")","v":""}]
[null,{"$f":"名簿!Q42","v":""},null,null,null,null,null,null,null,null,null,null,null,null,null,null,null,null,null,null,null,null,0,2,null,{"$f":"IF(Y40=\"\",\"\",IF(I40=1,VLOOKUP(Y40,#REF!,2,FALSE),IF(I40=2,VLOOKUP(Y40,#REF!,2,FALSE))))","v":""},null,0,2,null,{"$f":"IF(AD40=\"\",\"\",IF(I40=1,VLOOKUP(AD40,#REF!,2,FALSE),IF(I40=2,VLOOKUP(AD40,#REF!,2,FALSE))))","v":""},null,0,2,null,{"$f":"IF(AI40=\"\",\"\",IF(I40=1,VLOOKUP(AI40,#REF!,2,FALSE),IF(I40=2,VLOOKUP(AI40,#REF!,2,FALSE))))","v":""},null,0,2,null,null,null,null,"",0,0,"","少年3000",{"$f":"COUNTIF($P$7:$P$56,64)+COUNTIF($U$7:$U$56,64)","v":0},null,null,null,null,null,null,null,null,null,0,"",""]
[null,{"$f":"名簿!Q43","v":""},null,null,null,null,null,null,null,null,null,null,null,null,null,null,null,null,null,null,null,null,0,2,null,{"$f":"IF(Y41=\"\",\"\",IF(I41=1,VLOOKUP(Y41,#REF!,2,FALSE),IF(I41=2,VLOOKUP(Y41,#REF!,2,FALSE))))","v":""},null,0,2,null,{"$f":"IF(AD41=\"\",\"\",IF(I41=1,VLOOKUP(AD41,#REF!,2,FALSE),IF(I41=2,VLOOKUP(AD41,#REF!,2,FALSE))))","v":""},null,0,2,null,{"$f":"IF(AI41=\"\",\"\",IF(I41=1,VLOOKUP(AI41,#REF!,2,FALSE),IF(I41=2,VLOOKUP(AI41,#REF!,2,FALSE))))","v":""},null,0,2,null,null,null,null,"",0,0,"",5000,{"$f":"COUNTIF($P$7:$P$56,46)+COUNTIF($U$7:$U$56,46)","v":0},null,null,null,null,null,null,null,null,null,0,"",""]
[null,{"$f":"名簿!Q44","v":""},null,null,null,null,null,null,null,null,null,null,null,null,null,null,null,null,null,null,null,null,0,2,null,{"$f":"IF(Y42=\"\",\"\",IF(I42=1,VLOOKUP(Y42,#REF!,2,FALSE),IF(I42=2,VLOOKUP(Y42,#REF!,2,FALSE))))","v":""},null,0,2,null,{"$f":"IF(AD42=\"\",\"\",IF(I42=1,VLOOKUP(AD42,#REF!,2,FALSE),IF(I42=2,VLOOKUP(AD42,#REF!,2,FALSE))))","v":""},null,0,2,null,{"$f":"IF(AI42=\"\",\"\",IF(I42=1,VLOOKUP(AI42,#REF!,2,FALSE),IF(I42=2,VLOOKUP(AI42,#REF!,2,FALSE))))","v":""},null,0,2,null,null,null,null,"",0,0,"",10000,{"$f":"COUNTIF($P$7:$P$56,47)+COUNTIF($U$7:$U$56,47)","v":0},null,null,null,null,null,null,null,null,null,0,"",""]
[null,{"$f":"名簿!Q45","v":""},null,null,null,null,null,null,null,null,null,null,null,null,null,null,null,null,null,null,null,null,0,2,null,{"$f":"IF(Y43=\"\",\"\",IF(I43=1,VLOOKUP(Y43,#REF!,2,FALSE),IF(I43=2,VLOOKUP(Y43,#REF!,2,FALSE))))","v":""},null,0,2,null,{"$f":"IF(AD43=\"\",\"\",IF(I43=1,VLOOKUP(AD43,#REF!,2,FALSE),IF(I43=2,VLOOKUP(AD43,#REF!,2,FALSE))))","v":""},null,0,2,null,{"$f":"IF(AI43=\"\",\"\",IF(I43=1,VLOOKUP(AI43,#REF!,2,FALSE),IF(I43=2,VLOOKUP(AI43,#REF!,2,FALSE))))","v":""},null,0,2,null,null,null,null,"",0,0,"","100H",{"$f":"COUNTIF($P$7:$P$56,48)+COUNTIF($U$7:$U$56,48)","v":0},null,null,null,null,null,null,null,null,null,0,"",""]
[null,{"$f":"名簿!Q46","v":""},null,null,null,null,null,null,null,null,null,null,null,null,null,null,null,null,null,null,null,null,0,2,null,{"$f":"IF(Y44=\"\",\"\",IF(I44=1,VLOOKUP(Y44,#REF!,2,FALSE),IF(I44=2,VLOOKUP(Y44,#REF!,2,FALSE))))","v":""},null,0,2,null,{"$f":"IF(AD44=\"\",\"\",IF(I44=1,VLOOKUP(AD44,#REF!,2,FALSE),IF(I44=2,VLOOKUP(AD44,#REF!,2,FALSE))))","v":""},null,0,2,null,{"$f":"IF(AI44=\"\",\"\",IF(I44=1,VLOOKUP(AI44,#REF!,2,FALSE),IF(I44=2,VLOOKUP(AI44,#REF!,2,FALSE))))","v":""},null,0,2,null,null,null,null,"",0,0,"","少年B100YH",{"$f":"COUNTIF($P$7:$P$56,65)+COUNTIF($U$7:$U$56,65)","v":0},null,null,null,null,null,null,null,null,null,0,"",""]
[null,{"$f":"名簿!Q47","v":""},null,null,null,null,null,null,null,null,null,null,null,null,null,null,null,null,null,null,null,null,0,2,null,{"$f":"IF(Y45=\"\",\"\",IF(I45=1,VLOOKUP(Y45,#REF!,2,FALSE),IF(I45=2,VLOOKUP(Y45,#REF!,2,FALSE))))","v":""},null,0,2,null,{"$f":"IF(AD45=\"\",\"\",IF(I45=1,VLOOKUP(AD45,#REF!,2,FALSE),IF(I45=2,VLOOKUP(AD45,#REF!,2,FALSE))))","v":""},null,0,2,null,{"$f":"IF(AI45=\"\",\"\",IF(I45=1,VLOOKUP(AI45,#REF!,2,FALSE),IF(I45=2,VLOOKUP(AI45,#REF!,2,FALSE))))","v":""},null,0,2,null,null,null,null,"",0,0,"","400H",{"$f":"COUNTIF($P$7:$P$56,49)+COUNTIF($U$7:$U$56,49)","v":0},null,null,null,null,null,null,null,null,null,0,"",""]
[null,{"$f":"名簿!Q48","v":""},null,null,null,null,null,null,null,null,null,null,null,null,null,null,null,null,null,null,null,null,0,2,null,{"$f":"IF(Y46=\"\",\"\",IF(I46=1,VLOOKUP(Y46,#REF!,2,FALSE),IF(I46=2,VLOOKUP(Y46,#REF!,2,FALSE))))","v":""},null,0,2,null,{"$f":"IF(AD46=\"\",\"\",IF(I46=1,VLOOKUP(AD46,#REF!,2,FALSE),IF(I46=2,VLOOKUP(AD46,#REF!,2,FALSE))))","v":""},null,0,2,null,{"$f":"IF(AI46=\"\",\"\",IF(I46=1,VLOOKUP(AI46,#REF!,2,FALSE),IF(I46=2,VLOOKUP(AI46,#REF!,2,FALSE))))","v":""},null,0,2,null,null,null,null,"",0,0,"","5000W",{"$f":"COUNTIF($P$7:$P$56,52)+COUNTIF($U$7:$U$56,52)","v":0},null,null,null,null,null,null,null,null,null,0,"",""]
[null,{"$f":"名簿!Q49","v":""},null,null,null,null,null,null,null,null,null,null,null,null,null,null,null,null,null,null,null,null,0,2,null,{"$f":"IF(Y47=\"\",\"\",IF(I47=1,VLOOKUP(Y47,#REF!,2,FALSE),IF(I47=2,VLOOKUP(Y47,#REF!,2,FALSE))))","v":""},null,0,2,null,{"$f":"IF(AD47=\"\",\"\",IF(I47=1,VLOOKUP(AD47,#REF!,2,FALSE),IF(I47=2,VLOOKUP(AD47,#REF!,2,FALSE))))","v":""},null,0,2,null,{"$f":"IF(AI47=\"\",\"\",IF(I47=1,VLOOKUP(AI47,#REF!,2,FALSE),IF(I47=2,VLOOKUP(AI47,#REF!,2,FALSE))))","v":""},null,0,2,null,null,null,null,"",0,0,"","走高跳",{"$f":"COUNTIF($P$7:$P$56,55)+COUNTIF($U$7:$U$56,55)","v":0},null,null,null,null,null,null,null,null,null,0,"",""]
[null,{"$f":"名簿!Q50","v":""},null,null,null,null,null,null,null,null,null,null,null,null,null,null,null,null,null,null,null,null,0,2,null,{"$f":"IF(Y48=\"\",\"\",IF(I48=1,VLOOKUP(Y48,#REF!,2,FALSE),IF(I48=2,VLOOKUP(Y48,#REF!,2,FALSE))))","v":""},null,0,2,null,{"$f":"IF(AD48=\"\",\"\",IF(I48=1,VLOOKUP(AD48,#REF!,2,FALSE),IF(I48=2,VLOOKUP(AD48,#REF!,2,FALSE))))","v":""},null,0,2,null,{"$f":"IF(AI48=\"\",\"\",IF(I48=1,VLOOKUP(AI48,#REF!,2,FALSE),IF(I48=2,VLOOKUP(AI48,#REF!,2,FALSE))))","v":""},null,0,2,null,null,null,null,"",0,0,"","棒高跳",{"$f":"COUNTIF($P$7:$P$56,56)+COUNTIF($U$7:$U$56,56)","v":0},null,null,null,null,null,null,null,null,null,0,"",""]
[null,{"$f":"名簿!Q51","v":""},null,null,null,null,null,null,null,null,null,null,null,null,null,null,null,null,null,null,null,null,0,2,null,{"$f":"IF(Y49=\"\",\"\",IF(I49=1,VLOOKUP(Y49,#REF!,2,FALSE),IF(I49=2,VLOOKUP(Y49,#REF!,2,FALSE))))","v":""},null,0,2,null,{"$f":"IF(AD49=\"\",\"\",IF(I49=1,VLOOKUP(AD49,#REF!,2,FALSE),IF(I49=2,VLOOKUP(AD49,#REF!,2,FALSE))))","v":""},null,0,2,null,{"$f":"IF(AI49=\"\",\"\",IF(I49=1,VLOOKUP(AI49,#REF!,2,FALSE),IF(I49=2,VLOOKUP(AI49,#REF!,2,FALSE))))","v":""},null,0,2,null,null,null,null,"",0,0,"","走幅跳",{"$f":"COUNTIF($P$7:$P$56,57)+COUNTIF($U$7:$U$56,57)","v":0},null,null,null,null,null,null,null,null,null,0,"",""]
[null,{"$f":"名簿!Q52","v":""},null,null,null,null,null,null,null,null,null,null,null,null,null,null,null,null,null,null,null,null,0,2,null,{"$f":"IF(Y50=\"\",\"\",IF(I50=1,VLOOKUP(Y50,#REF!,2,FALSE),IF(I50=2,VLOOKUP(Y50,#REF!,2,FALSE))))","v":""},null,0,2,null,{"$f":"IF(AD50=\"\",\"\",IF(I50=1,VLOOKUP(AD50,#REF!,2,FALSE),IF(I50=2,VLOOKUP(AD50,#REF!,2,FALSE))))","v":""},null,0,2,null,{"$f":"IF(AI50=\"\",\"\",IF(I50=1,VLOOKUP(AI50,#REF!,2,FALSE),IF(I50=2,VLOOKUP(AI50,#REF!,2,FALSE))))","v":""},null,0,2,null,null,null,null,"",0,0,"","三段跳",{"$f":"COUNTIF($P$7:$P$56,58)+COUNTIF($U$7:$U$56,58)","v":0},null,null,null,null,null,null,null,null,null,0,"",""]
[null,{"$f":"名簿!Q53","v":""},null,null,null,null,null,null,null,null,null,null,null,null,null,null,null,null,null,null,null,null,0,2,null,{"$f":"IF(Y51=\"\",\"\",IF(I51=1,VLOOKUP(Y51,#REF!,2,FALSE),IF(I51=2,VLOOKUP(Y51,#REF!,2,FALSE))))","v":""},null,0,2,null,{"$f":"IF(AD51=\"\",\"\",IF(I51=1,VLOOKUP(AD51,#REF!,2,FALSE),IF(I51=2,VLOOKUP(AD51,#REF!,2,FALSE))))","v":""},null,0,2,null,{"$f":"IF(AI51=\"\",\"\",IF(I51=1,VLOOKUP(AI51,#REF!,2,FALSE),IF(I51=2,VLOOKUP(AI51,#REF!,2,FALSE))))","v":""},null,0,2,null,null,null,null,"",0,0,"","砲丸投",{"$f":"COUNTIF($P$7:$P$56,59)+COUNTIF($U$7:$U$56,59)","v":0},null,null,null,null,null,null,null,null,null,0,"",""]
[null,{"$f":"名簿!Q54","v":""},null,null,null,null,null,null,null,null,null,null,null,null,null,null,null,null,null,null,null,null,0,2,null,{"$f":"IF(Y52=\"\",\"\",IF(I52=1,VLOOKUP(Y52,#REF!,2,FALSE),IF(I52=2,VLOOKUP(Y52,#REF!,2,FALSE))))","v":""},null,0,2,null,{"$f":"IF(AD52=\"\",\"\",IF(I52=1,VLOOKUP(AD52,#REF!,2,FALSE),IF(I52=2,VLOOKUP(AD52,#REF!,2,FALSE))))","v":""},null,0,2,null,{"$f":"IF(AI52=\"\",\"\",IF(I52=1,VLOOKUP(AI52,#REF!,2,FALSE),IF(I52=2,VLOOKUP(AI52,#REF!,2,FALSE))))","v":""},null,0,2,null,null,null,null,"",0,0,"","円盤投",{"$f":"COUNTIF($P$7:$P$56,60)+COUNTIF($U$7:$U$56,60)","v":0},null,null,null,null,null,null,null,null,null,0,"",""]
[null,{"$f":"名簿!Q55","v":""},null,null,null,null,null,null,null,null,null,null,null,null,null,null,null,null,null,null,null,null,0,2,null,{"$f":"IF(Y53=\"\",\"\",IF(I53=1,VLOOKUP(Y53,#REF!,2,FALSE),IF(I53=2,VLOOKUP(Y53,#REF!,2,FALSE))))","v":""},null,0,2,null,{"$f":"IF(AD53=\"\",\"\",IF(I53=1,VLOOKUP(AD53,#REF!,2,FALSE),IF(I53=2,VLOOKUP(AD53,#REF!,2,FALSE))))","v":""},null,0,2,null,{"$f":"IF(AI53=\"\",\"\",IF(I53=1,VLOOKUP(AI53,#REF!,2,FALSE),IF(I53=2,VLOOKUP(AI53,#REF!,2,FALSE))))","v":""},null,0,2,null,null,null,null,"",0,0,"","ハンマー投",{"$f":"COUNTIF($P$7:$P$56,61)+COUNTIF($U$7:$U$56,61)","v":0},null,null,null,null,null,null,null,null,null,0,"",""]
[null,{"$f":"名簿!Q56","v":""},null,null,null,null,null,null,null,null,null,null,null,null,null,null,null,null,null,null,null,null,0,2,null,{"$f":"IF(Y54=\"\",\"\",IF(I54=1,VLOOKUP(Y54,#REF!,2,FALSE),IF(I54=2,VLOOKUP(Y54,#REF!,2,FALSE))))","v":""},null,0,2,null,{"$f":"IF(AD54=\"\",\"\",IF(I54=1,VLOOKUP(AD54,#REF!,2,FALSE),IF(I54=2,VLOOKUP(AD54,#REF!,2,FALSE))))","v":""},null,0,2,null,{"$f":"IF(AI54=\"\",\"\",IF(I54=1,VLOOKUP(AI54,#REF!,2,FALSE),IF(I54=2,VLOOKUP(AI54,#REF!,2,FALSE))))","v":""},null,0,2,null,null,null,null,"",0,0,"","やり投",{"$f":"COUNTIF($P$7:$P$56,62)+COUNTIF($U$7:$U$56,62)","v":0},null,null,null,null,null,null,null,null,null,0,"",""]
[null,{"$f":"名簿!Q57","v":""},null,null,null,null,null,null,null,null,null,null,null,null,null,null,null,null,null,null,null,null,0,2,null,{"$f":"IF(Y55=\"\",\"\",IF(I55=1,VLOOKUP(Y55,#REF!,2,FALSE),IF(I55=2,VLOOKUP(Y55,#REF!,2,FALSE))))","v":""},null,0,2,null,{"$f":"IF(AD55=\"\",\"\",IF(I55=1,VLOOKUP(AD55,#REF!,2,FALSE),IF(I55=2,VLOOKUP(AD55,#REF!,2,FALSE))))","v":""},null,0,2,null,{"$f":"IF(AI55=\"\",\"\",IF(I55=1,VLOOKUP(AI55,#REF!,2,FALSE),IF(I55=2,VLOOKUP(AI55,#REF!,2,FALSE))))","v":""},null,0,2,null,null,null,null,"",0,0,"","計",{"$f":"SUM($AW$35:$AW$54)","v":0},null,null,null,null,null,null,null,null,null,0,"",""]
[null,{"$f":"名簿!Q58","v":""},null,null,null,null,null,null,null,null,null,null,null,null,null,null,null,null,null,null,null,null,0,2,null,{"$f":"IF(Y56=\"\",\"\",IF(I56=1,VLOOKUP(Y56,#REF!,2,FALSE),IF(I56=2,VLOOKUP(Y56,#REF!,2,FALSE))))","v":""},null,0,2,null,{"$f":"IF(AD56=\"\",\"\",IF(I56=1,VLOOKUP(AD56,#REF!,2,FALSE),IF(I56=2,VLOOKUP(AD56,#REF!,2,FALSE))))","v":""},null,0,2,null,{"$f":"IF(AI56=\"\",\"\",IF(I56=1,VLOOKUP(AI56,#REF!,2,FALSE),IF(I56=2,VLOOKUP(AI56,#REF!,2,FALSE))))","v":""},null,0,2,null,null,null,null,"",0,0,"","合計",{"$f":"AW33+AW55","v":0},null,null,null,null,null,null,null,null,null,0,"",""]
[null,null,null,null,null,null,null,null,null,null,{"$f":"名簿!K59","v":0},null,null,null,null,null,null,null,0,2,null,null,null,null,null,null,null,null,null,null,null,{"$f":"SUM(AR7:AR56)","v":0},{"$f":"SUM(AS7:AS56)","v":0},{"$f":"SUM(AT7:AT56)","v":0},{"$f":"SUM(AU7:AU56)","v":0}]
[null,null,null,null,null,null,null,null,null,null,{"$f":"名簿!K60","v":0},null,null,null,null,null,null,null,0,2,null,null,null,null,null,null,null,null,null,null,null,{"$f":"SUM(AF57:AH57)","v":0},null,null,{"$f":"(AF57+AI57)","v":0}]

{"sheet":"三重陸協記録会","index":6,"n_rows":59,"n_cols":46,"rows_kept":59,"cut":false,"hidden":false,"merged":[[1,7,1,8],[1,12,1,13],[1,14,1,15],[5,38,5,39]]}
[null,null,null,null,"所属名",{"$f":"IF(名簿!$P$9=\"\",\"\",名簿!$P$9)","v":"三重陸協"},null,null,"三重陸協記録会"]
[null,null,null,null,"所属コード",{"$f":"名簿!$Q$9","v":230000}]
[null,null,null,null,"申込者名",{"$f":"IF(名簿!$E$5=\"\",\"\",名簿!$E$5)","v":""}]
[null,null,null,null,"連絡先",{"$f":"IF(名簿!$I$5=\"\",\"\",名簿!$I$5)","v":""},null,null,"大会参加費",null,null,null,null,null,{"$f":"AN14*500+O5*300","v":0}]
[null,null,null,null,null,null,null,null,"プログラム冊数",null,null,null,null,null,null,null,"冊"]
["競技者コード","所属コード",null,null,"ナンバー","名前","カナ名","掲示板名","性別","学年","生年","月日","所属地","陸連コード","種目","コード","記録",null,null,"種目2",null,"記録",null,null,null,null,null,null,null,null,null,null,null,null,null,null,null,null,"種目別人数"]
[null,{"$f":"名簿!Q9","v":230000},null,null,{"$f":"名簿!E9","v":0},{"$f":"名簿!BN9","v":""},{"$f":"名簿!Z9","v":""},{"$f":"F7","v":""},{"$f":"名簿!O9","v":""},{"$f":"名簿!I9","v":0},{"$f":"名簿!BP9","v":0},{"$f":"名簿!N9","v":"0"},{"$f":"名簿!R9","v":{"$error":"#REF!"}},23,null,{"$f":"IF(O7=\"\",\"\",IF($I$7=1,VLOOKUP(O7,$AP$7:$AQ$9,2,FALSE),IF($I$7=2,VLOOKUP(O7,$AS$7:$AT$10,2,FALSE))))","v":""},null,0,2,null,{"$f":"IF(T7=\"\",\"\",IF($I$7=1,VLOOKUP(T7,#REF!,2,FALSE),IF($I$7=2,VLOOKUP(T7,#REF!,2,FALSE))))","v":""},null,null,"2",null,null,null,null,null,null,null,null,null,null,null,null,null,null,"男子100",{"$f":"COUNTIF($P$7:$P$58,101)+COUNTIF($U$7:$U$58,101)","v":0},null,"男子100m",101,null,"女子100m",104]
[null,{"$f":"名簿!Q10","v":""},null,null,null,null,null,null,null,null,null,null,null,null,null,null,null,0,2,null,null,null,null,null,null,null,null,null,null,null,null,null,null,null,null,null,null,null,"男子3000",{"$f":"COUNTIF($P$7:$P$58,102)+COUNTIF($U$7:$U$58,102)","v":0},null,"男子3000m",102,null,"女子1500m",105]
[null,{"$f":"名簿!Q11","v":""},null,null,null,null,null,null,null,null,null,null,null,null,null,null,null,0,2,null,null,null,null,null,null,null,null,null,null,null,null,null,null,null,null,null,null,null,"男子棒高跳",{"$f":"COUNTIF($P$7:$P$58,103)+COUNTIF($U$7:$U$58,103)","v":0},null,"男子棒高跳",103,null,"女子3000m",106]
[null,{"$f":"名簿!Q12","v":""},null,null,null,null,null,null,null,null,null,null,null,null,null,null,null,0,2,null,null,null,null,null,null,null,null,null,null,null,null,null,null,null,null,null,null,{"$f":"IF(O10=\"\",\"\",1)","v":""},"女子100",{"$f":"COUNTIF($P$7:$P$58,104)+COUNTIF($U$7:$U$58,104)","v":0},null,null,null,null,"女子棒高跳",107]
[null,null,null,null,null,null,null,null,null,null,null,null,null,null,null,null,null,null,null,null,null,null,null,null,null,null,null,null,null,null,null,null,null,null,null,null,null,null,"女子1500",{"$f":"COUNTIF($P$7:$P$58,105)+COUNTIF($U$7:$U$58,105)","v":0}]
[null,null,null,null,null,null,null,null,null,null,null,null,null,null,null,null,null,null,null,null,null,null,null,null,null,null,null,null,null,null,null,null,null,null,null,null,null,null,"女子3000",{"$f":"COUNTIF($P$7:$P$58,106)+COUNTIF($U$7:$U$58,106)","v":0}]
[null,{"$f":"名簿!Q13","v":""},null,null,null,null,null,null,null,null,null,null,null,null,null,null,null,0,2,null,null,null,null,null,null,null,null,null,null,null,null,null,null,null,null,null,null,"","女子棒高跳",{"$f":"COUNTIF($P$7:$P$58,107)+COUNTIF($U$7:$U$58,107)","v":0}]
[null,{"$f":"名簿!Q14","v":""},null,null,null,null,null,null,null,null,null,null,null,null,null,null,null,0,2,null,null,null,null,null,null,null,null,null,null,null,null,null,null,null,null,null,null,"","合計",{"$f":"SUM(AN7:AN13)","v":0}]
[null,{"$f":"名簿!Q15","v":""},null,null,null,null,null,null,null,null,null,null,null,null,null,null,null,0,2,null,null,null,null,null,null,null,null,null,null,null,null,null,null,null,null,null,null,""]
[null,{"$f":"名簿!Q16","v":""},null,null,null,null,null,null,null,null,null,null,null,null,null,null,null,0,2,null,null,null,null,null,null,null,null,null,null,null,null,null,null,null,null,null,null,""]
[null,{"$f":"名簿!Q17","v":""},null,null,null,null,null,null,null,null,null,null,null,null,null,null,null,0,2,null,null,null,null,null,null,null,null,null,null,null,null,null,null,null,null,null,null,""]
[null,{"$f":"名簿!Q18","v":""},null,null,null,null,null,null,null,null,null,null,null,null,null,null,null,0,2,null,null,null,null,null,null,null,null,null,null,null,null,null,null,null,null,null,null,""]
[null,{"$f":"名簿!Q19","v":""},null,null,null,null,null,null,null,null,null,null,null,null,null,null,null,0,2,null,null,null,null,null,null,null,null,null,null,null,null,null,null,null,null,null,null,""]
[null,{"$f":"名簿!Q20","v":""},null,null,null,null,null,null,null,null,null,null,null,null,null,null,null,0,2,null,null,null,null,null,null,null,null,null,null,null,null,null,null,null,null,null,null,""]
[null,{"$f":"名簿!Q21","v":""},null,null,null,null,null,null,null,null,null,null,null,null,null,null,null,0,2,null,null,null,null,null,null,null,null,null,null,null,null,null,null,null,null,null,null,""]
[null,{"$f":"名簿!Q22","v":""},null,null,null,null,null,null,null,null,null,null,null,null,null,null,null,0,2,null,null,null,null,null,null,null,null,null,null,null,null,null,null,null,null,null,null,""]
[null,{"$f":"名簿!Q23","v":""},null,null,null,null,null,null,null,null,null,null,null,null,null,null,null,0,2,null,null,null,null,null,null,null,null,null,null,null,null,null,null,null,null,null,null,""]
[null,{"$f":"名簿!Q24","v":""},null,null,null,null,null,null,null,null,null,null,null,null,null,null,null,0,2,null,null,null,null,null,null,null,null,null,null,null,null,null,null,null,null,null,null,""]
[null,{"$f":"名簿!Q25","v":""},null,null,null,null,null,null,null,null,null,null,null,null,null,null,null,0,2,null,null,null,null,null,null,null,null,null,null,null,null,null,null,null,null,null,null,""]
[null,{"$f":"名簿!Q26","v":""},null,null,null,null,null,null,null,null,null,null,null,null,null,null,null,0,2,null,null,null,null,null,null,null,null,null,null,null,null,null,null,null,null,null,null,""]
[null,{"$f":"名簿!Q27","v":""},null,null,null,null,null,null,null,null,null,null,null,null,null,null,null,0,2,null,null,null,null,null,null,null,null,null,null,null,null,null,null,null,null,null,null,""]
[null,{"$f":"名簿!Q28","v":""},null,null,null,null,null,null,null,null,null,null,null,null,null,null,null,0,2,null,null,null,null,null,null,null,null,null,null,null,null,null,null,null,null,null,null,""]
[null,{"$f":"名簿!Q29","v":""},null,null,null,null,null,null,null,null,null,null,null,null,null,null,null,0,2,null,null,null,null,null,null,null,null,null,null,null,null,null,null,null,null,null,null,""]
[null,{"$f":"名簿!Q30","v":""},null,null,null,null,null,null,null,null,null,null,null,null,null,null,null,0,2,null,null,null,null,null,null,null,null,null,null,null,null,null,null,null,null,null,null,""]
[null,{"$f":"名簿!Q31","v":""},null,null,null,null,null,null,null,null,null,null,null,null,null,null,null,0,2,null,null,null,null,null,null,null,null,null,null,null,null,null,null,null,null,null,null,""]
[null,{"$f":"名簿!Q32","v":""},null,null,null,null,null,null,null,null,null,null,null,null,null,null,null,0,2,null,null,null,null,null,null,null,null,null,null,null,null,null,null,null,null,null,null,""]
[null,{"$f":"名簿!Q33","v":""},null,null,null,null,null,null,null,null,null,null,null,null,null,null,null,0,2,null,null,null,null,null,null,null,null,null,null,null,null,null,null,null,null,null,null,""]
[null,{"$f":"名簿!Q34","v":""},null,null,null,null,null,null,null,null,null,null,null,null,null,null,null,0,2,null,null,null,null,null,null,null,null,null,null,null,null,null,null,null,null,null,null,""]
[null,{"$f":"名簿!Q35","v":""},null,null,null,null,null,null,null,null,null,null,null,null,null,null,null,0,2,null,null,null,null,null,null,null,null,null,null,null,null,null,null,null,null,null,null,""]
[null,{"$f":"名簿!Q36","v":""},null,null,null,null,null,null,null,null,null,null,null,null,null,null,null,0,2,null,null,null,null,null,null,null,null,null,null,null,null,null,null,null,null,null,null,""]
[null,{"$f":"名簿!Q37","v":""},null,null,null,null,null,null,null,null,null,null,null,null,null,null,null,0,2,null,null,null,null,null,null,null,null,null,null,null,null,null,null,null,null,null,null,""]
[null,{"$f":"名簿!Q38","v":""},null,null,null,null,null,null,null,null,null,null,null,null,null,null,null,0,2,null,null,null,null,null,null,null,null,null,null,null,null,null,null,null,null,null,null,""]
[null,{"$f":"名簿!Q39","v":""},null,null,null,null,null,null,null,null,null,null,null,null,null,null,null,0,2,null,null,null,null,null,null,null,null,null,null,null,null,null,null,null,null,null,null,""]
[null,{"$f":"名簿!Q40","v":""},null,null,null,null,null,null,null,null,null,null,null,null,null,null,null,0,2,null,null,null,null,null,null,null,null,null,null,null,null,null,null,null,null,null,null,""]
[null,{"$f":"名簿!Q41","v":""},null,null,null,null,null,null,null,null,null,null,null,null,null,null,null,0,2,null,null,null,null,null,null,null,null,null,null,null,null,null,null,null,null,null,null,""]
[null,{"$f":"名簿!Q42","v":""},null,null,null,null,null,null,null,null,null,null,null,null,null,null,null,0,2,null,null,null,null,null,null,null,null,null,null,null,null,null,null,null,null,null,null,""]
[null,{"$f":"名簿!Q43","v":""},null,null,null,null,null,null,null,null,null,null,null,null,null,null,null,0,2,null,null,null,null,null,null,null,null,null,null,null,null,null,null,null,null,null,null,""]
[null,{"$f":"名簿!Q44","v":""},null,null,null,null,null,null,null,null,null,null,null,null,null,null,null,0,2,null,null,null,null,null,null,null,null,null,null,null,null,null,null,null,null,null,null,""]
[null,{"$f":"名簿!Q45","v":""},null,null,null,null,null,null,null,null,null,null,null,null,null,null,null,0,2,null,null,null,null,null,null,null,null,null,null,null,null,null,null,null,null,null,null,""]
[null,{"$f":"名簿!Q46","v":""},null,null,null,null,null,null,null,null,null,null,null,null,null,null,null,0,2,null,null,null,null,null,null,null,null,null,null,null,null,null,null,null,null,null,null,""]
[null,{"$f":"名簿!Q47","v":""},null,null,null,null,null,null,null,null,null,null,null,null,null,null,null,0,2,null,null,null,null,null,null,null,null,null,null,null,null,null,null,null,null,null,null,""]
[null,{"$f":"名簿!Q48","v":""},null,null,null,null,null,null,null,null,null,null,null,null,null,null,null,0,2,null,null,null,null,null,null,null,null,null,null,null,null,null,null,null,null,null,null,""]
[null,{"$f":"名簿!Q49","v":""},null,null,null,null,null,null,null,null,null,null,null,null,null,null,null,0,2,null,null,null,null,null,null,null,null,null,null,null,null,null,null,null,null,null,null,""]
[null,{"$f":"名簿!Q50","v":""},null,null,null,null,null,null,null,null,null,null,null,null,null,null,null,0,2,null,null,null,null,null,null,null,null,null,null,null,null,null,null,null,null,null,null,""]
[null,{"$f":"名簿!Q51","v":""},null,null,null,null,null,null,null,null,null,null,null,null,null,null,null,0,2,null,null,null,null,null,null,null,null,null,null,null,null,null,null,null,null,null,null,""]
[null,{"$f":"名簿!Q52","v":""},null,null,null,null,null,null,null,null,null,null,null,null,null,null,null,0,2,null,null,null,null,null,null,null,null,null,null,null,null,null,null,null,null,null,null,""]
[null,{"$f":"名簿!Q53","v":""},null,null,null,null,null,null,null,null,null,null,null,null,null,null,null,0,2,null,null,null,null,null,null,null,null,null,null,null,null,null,null,null,null,null,null,""]
[null,{"$f":"名簿!Q54","v":""},null,null,null,null,null,null,null,null,null,null,null,null,null,null,null,0,2,null,null,null,null,null,null,null,null,null,null,null,null,null,null,null,null,null,null,""]
[null,{"$f":"名簿!Q55","v":""},null,null,null,null,null,null,null,null,null,null,null,null,null,null,null,0,2,null,null,null,null,null,null,null,null,null,null,null,null,null,null,null,null,null,null,""]
[null,{"$f":"名簿!Q56","v":""},null,null,null,null,null,null,null,null,null,null,null,null,null,null,null,0,2,null,null,null,null,null,null,null,null,null,null,null,null,null,null,null,null,null,null,""]
[null,{"$f":"名簿!Q57","v":""},null,null,null,null,null,null,null,null,null,null,null,null,null,null,null,0,2,null,null,null,null,null,null,null,null,null,null,null,null,null,null,null,null,null,null,""]
[null,{"$f":"名簿!Q58","v":""},null,null,null,null,null,null,null,null,null,null,null,null,null,null,null,0,2,null,null,null,null,null,null,null,null,null,null,null,null,null,null,null,null,null,null,""]
[null,null,null,null,null,null,null,null,null,null,null,null,null,null,null,null,null,null,null,null,null,null,null,null,null,null,null,null,null,null,null,null,null,null,null,{"$f":"SUM(AL7:AL58)","v":0}]

{"sheet":"県選","index":7,"n_rows":73,"n_cols":88,"rows_kept":73,"cut":false,"hidden":false,"merged":[[11,5,11,21],[0,19,0,21],[5,57,5,58],[3,14,3,16],[4,19,4,20],[9,5,9,21]]}
[null,null,null,null,"所属名",{"$f":"IF(名簿!$P$9=\"\",\"\",名簿!$P$9)","v":"三重陸協"},null,null,"三重県選手権",null,null,null,null,null,null,null,null,null,null,"参加人数"]
[null,null,null,null,"所属コード",{"$f":"名簿!$Q$9","v":230000},null,null,"個人種目数",null,null,null,null,null,{"$f":"$BB$57","v":0},null,null,null,null,"男子",null,{"$f":"COUNTIF($I$7:$I$56,1)-COUNTIF($BD$7:$BD$56,0)","v":0}]
[null,null,null,null,"申込者名",{"$f":"IF(名簿!$E$5=\"\",\"\",名簿!$E$5)","v":""},null,null,null,null,null,null,null,null,null,null,null,null,null,"女子",null,{"$f":"COUNTIF($I$7:$I$56,2)-COUNTIF($BE$7:$BE$56,0)","v":0}]
[null,null,null,null,"連絡先",{"$f":"IF(名簿!$I$5=\"\",\"\",名簿!$I$5)","v":""},null,null,"大会参加費",null,null,null,null,null,{"$f":"O2*1000+O3*2000+Q5*800","v":0},null,null,null,null,"計",null,{"$f":"V2+V3","v":0}]
[null,null,null,null,null,"参加標準記録が設定されました",null,null,null,null,null,null,null,null,"プログラム必要冊数",null,null,2,null,"冊"]
["競技者コード","所属コード","所属コード２","ナンバーA","ナンバー","名前","カナ名","掲示板名","性別",null,"生年","月日","所属地","陸連コード","1種目","コード","今年度公認記録",null,null,"2種目","コード","今年度公認記録","種目3","コード","記録3",null,null,"4×100R","コード","記録",null,null,"4×400R","コード","記録",null,null,null,null,null,100,null,null,null,null,null,null,null,null,null,100,100,"男子A","個人種目","種目","男子","女子","種目別人数",null,"男子4×100mR　Ａ",null,"男子4×400mR　Ａ",null,"女子4×100mR　Ａ",null,"女子4×400mR　Ａ"]
[{"$f":"AB7","v":0},{"$f":"名簿!Q9","v":230000},{"$f":"AG7","v":0},null,{"$f":"名簿!E9","v":0},{"$f":"名簿!BN9","v":""},{"$f":"名簿!Z9","v":""},{"$f":"F7","v":""},{"$f":"名簿!O9","v":""},{"$f":"名簿!I9","v":0},{"$f":"名簿!BP9","v":0},{"$f":"名簿!N9","v":"0"},{"$f":"名簿!R9","v":{"$error":"#REF!"}},{"$f":"名簿!D9","v":""},null,{"$f":"IF(O7=\"\",\"\",IF(I7=1,VLOOKUP(O7,$CG$7:$CH$32,2,FALSE),IF(I7=2,VLOOKUP(O7,$CI$7:$CJ$27,2,FALSE))))","v":""},null,0,2,null,{"$f":"IF(T7=\"\",\"\",IF(I7=1,VLOOKUP(T7,$CG$7:$CH$32,2,FALSE),IF(I7=2,VLOOKUP(T7,$CI$7:$CJ$27,2,FALSE))))","v":""},null,null,{"$f":"IF(W7=\"\",\"\",IF(I7=1,VLOOKUP(W7,#REF!,2,FALSE),IF(I7=2,VLOOKUP(W7,#REF!,2,FALSE))))","v":""},null,null,null,null,{"$f":"IF(AB7=\"\",\"\",IF(I7=1,VLOOKUP(AB7,#REF!,2,FALSE),IF(I7=2,VLOOKUP(AB7,#REF!,2,FALSE))))","v":""},null,0,2,null,{"$f":"IF(AG7=\"\",\"\",IF(I7=1,VLOOKUP(AG7,#REF!,2,FALSE),IF(I7=2,VLOOKUP(AG7,#REF!,2,FALSE))))","v":""},null,0,2,0,null,null,200,{"$f":"IF(O7=\"\",\"\",1)","v":""},{"$f":"IF(T7=\"\",\"\",1)","v":""},null,null,{"$f":"IF(O7=\"\",\"\",1)","v":""},{"$f":"IF(OR(AT7=1,T7=\"\"),0,1)","v":0},{"$f":"IF(OR(AT7=1,AU7=1,AB7=\"\"),0,1)","v":0},{"$f":"IF(OR(AT7=1,AU7=1,AV7=1,AG7=\"\"),0,1)","v":0},{"$f":"SUM(AT7:AW7)","v":0},200,200,"男子B",{"$f":"COUNT(P7,U7)","v":0},{"$f":"COUNT(P7,U7,AC7,AH7)","v":0},{"$f":"IF(I7=1,BC7,\"\")","v":""},{"$f":"IF(I7=2,BC7,\"\")","v":""},"男子",null,"記録",null,"記録",null,"記録",null,"記録",null,null,null,null,null,null,null,null,null,null,null,null,null,null,null,null,null,null,"男子100m",1,"女子100m",40]
[{"$f":"AB8","v":0},{"$f":"名簿!Q10","v":""},{"$f":"AG8","v":0},null,null,null,null,null,null,null,null,null,null,null,null,null,null,null,null,null,null,null,null,{"$f":"IF(W8=\"\",\"\",IF(I8=1,VLOOKUP(W8,#REF!,2,FALSE),IF(I8=2,VLOOKUP(W8,#REF!,2,FALSE))))","v":""},null,null,null,null,{"$f":"IF(AB8=\"\",\"\",IF(I8=1,VLOOKUP(AB8,#REF!,2,FALSE),IF(I8=2,VLOOKUP(AB8,#REF!,2,FALSE))))","v":""},null,0,2,null,{"$f":"IF(AG8=\"\",\"\",IF(I8=1,VLOOKUP(AG8,#REF!,2,FALSE),IF(I8=2,VLOOKUP(AG8,#REF!,2,FALSE))))","v":""},null,0,2,0,null,null,400,{"$f":"IF(O8=\"\",\"\",1)","v":""},{"$f":"IF(T8=\"\",\"\",1)","v":""},null,null,{"$f":"IF(O8=\"\",\"\",1)","v":""},0,0,0,{"$f":"SUM(AT8:AW8)","v":0},400,400,"男子C",{"$f":"COUNT(P8,U8)","v":0},{"$f":"COUNT(O8,T8,AC8,AH8)","v":0},{"$f":"IF(I8=1,BC8,\"\")","v":""},{"$f":"IF(I8=2,BC8,\"\")","v":""},100,{"$f":"COUNTIF($P$7:$P$56,1)+COUNTIF($U$7:$U$56,1)","v":0},{"$f":"IF(ISERROR(BP8),\"\",BP8)","v":""},{"$f":"IF(ISERROR(BQ8),\"\",BQ8)","v":""},{"$f":"IF(ISERROR(BR8),\"\",BR8)","v":""},{"$f":"IF(ISERROR(BS8),\"\",BS8)","v":""},{"$f":"IF(ISERROR(BT8),\"\",BT8)","v":""},{"$f":"IF(ISERROR(BU8),\"\",BU8)","v":""},{"$f":"IF(ISERROR(BV8),\"\",BV8)","v":""},{"$f":"IF(ISERROR(BW8),\"\",BW8)","v":""},{"$error":"#NAME?"},{"$error":"#NAME?"},{"$error":"#NAME?"},{"$error":"#NAME?"},{"$error":"#NAME?"},{"$error":"#NAME?"},{"$error":"#NAME?"},{"$error":"#NAME?"},{"$f":"IF(BH8=\"\",\"\",1)","v":""},{"$f":"IF(BJ8=\"\",\"\",1)","v":""},{"$f":"IF(BL8=\"\",\"\",1)","v":""},{"$f":"IF(BN8=\"\",\"\",1)","v":""},null,null,null,null,null,"男子200m",2,"女子200m",41]
[0,{"$f":"名簿!Q11","v":""},0,null,null,null,null,null,null,null,null,null,null,null,null,null,null,null,null,null,null,null,null,{"$f":"IF(W9=\"\",\"\",IF(I9=1,VLOOKUP(W9,#REF!,2,FALSE),IF(I9=2,VLOOKUP(W9,#REF!,2,FALSE))))","v":""},null,null,null,null,{"$f":"IF(AB9=\"\",\"\",IF(I9=1,VLOOKUP(AB9,#REF!,2,FALSE),IF(I9=2,VLOOKUP(AB9,#REF!,2,FALSE))))","v":""},null,0,2,null,{"$f":"IF(AG9=\"\",\"\",IF(I9=1,VLOOKUP(AG9,#REF!,2,FALSE),IF(I9=2,VLOOKUP(AG9,#REF!,2,FALSE))))","v":""},null,0,2,0,null,null,800,{"$f":"IF(O9=\"\",\"\",1)","v":""},"",null,null,"",0,0,0,0,800,800,"男子D",0,0,"","",200,{"$f":"COUNTIF($P$7:$P$56,2)+COUNTIF($U$7:$U$56,2)","v":0},"","","","","","","","",{"$error":"#NAME?"},{"$error":"#NAME?"},{"$error":"#NAME?"},{"$error":"#NAME?"},{"$error":"#NAME?"},{"$error":"#NAME?"},{"$error":"#NAME?"},{"$error":"#NAME?"},null,null,null,null,null,null,null,null,null,"男子400m",3,"女子400m",42]
[0,{"$f":"名簿!Q12","v":""},0,null,null,"今年度公認記録がない場合は、昨年の公認記録を記載の事。",null,null,null,null,null,null,null,null,null,null,null,null,null,null,null,null,null,{"$f":"IF(W10=\"\",\"\",IF(I10=1,VLOOKUP(W10,#REF!,2,FALSE),IF(I10=2,VLOOKUP(W10,#REF!,2,FALSE))))","v":""},null,null,null,null,{"$f":"IF(AB10=\"\",\"\",IF(I10=1,VLOOKUP(AB10,#REF!,2,FALSE),IF(I10=2,VLOOKUP(AB10,#REF!,2,FALSE))))","v":""},null,0,2,null,{"$f":"IF(AG10=\"\",\"\",IF(I10=1,VLOOKUP(AG10,#REF!,2,FALSE),IF(I10=2,VLOOKUP(AG10,#REF!,2,FALSE))))","v":""},null,0,2,0,null,null,1500,"","",null,null,"",0,0,0,0,1500,1500,"女子A",0,0,"","",400,{"$f":"COUNTIF($P$7:$P$56,3)+COUNTIF($U$7:$U$56,3)","v":0},"","","","","","","","",{"$error":"#NAME?"},{"$error":"#NAME?"},{"$error":"#NAME?"},{"$error":"#NAME?"},{"$error":"#NAME?"},{"$error":"#NAME?"},{"$error":"#NAME?"},{"$error":"#NAME?"},null,null,null,null,null,null,null,null,null,"男子800m",4,"女子800m",43]
[0,{"$f":"名簿!Q13","v":""},0,null,null,null,null,null,null,null,null,null,null,null,null,null,null,null,null,null,null,null,null,{"$f":"IF(W11=\"\",\"\",IF(I11=1,VLOOKUP(W11,#REF!,2,FALSE),IF(I11=2,VLOOKUP(W11,#REF!,2,FALSE))))","v":""},null,null,null,null,{"$f":"IF(AB11=\"\",\"\",IF(I11=1,VLOOKUP(AB11,#REF!,2,FALSE),IF(I11=2,VLOOKUP(AB11,#REF!,2,FALSE))))","v":""},null,0,2,null,{"$f":"IF(AG11=\"\",\"\",IF(I11=1,VLOOKUP(AG11,#REF!,2,FALSE),IF(I11=2,VLOOKUP(AG11,#REF!,2,FALSE))))","v":""},null,0,2,0,null,null,5000,"","",null,null,"",0,0,0,0,"少年3000","少年3000","女子B",0,0,"","",800,{"$f":"COUNTIF($P$7:$P$56,4)+COUNTIF($U$7:$U$56,4)","v":0},"","","","","","","","",{"$error":"#NAME?"},{"$error":"#NAME?"},{"$error":"#NAME?"},{"$error":"#NAME?"},{"$error":"#NAME?"},{"$error":"#NAME?"},{"$error":"#NAME?"},{"$error":"#NAME?"},null,null,null,null,null,null,null,null,null,"男子1500m",5,"女子1500m",44]
[0,{"$f":"名簿!Q14","v":""},0,null,null,"過去の記録又は過去の自己最高記録は認めません",null,null,null,null,null,null,null,null,null,null,null,null,null,null,null,null,null,{"$f":"IF(W12=\"\",\"\",IF(I12=1,VLOOKUP(W12,#REF!,2,FALSE),IF(I12=2,VLOOKUP(W12,#REF!,2,FALSE))))","v":""},null,null,null,null,{"$f":"IF(AB12=\"\",\"\",IF(I12=1,VLOOKUP(AB12,#REF!,2,FALSE),IF(I12=2,VLOOKUP(AB12,#REF!,2,FALSE))))","v":""},null,0,2,null,{"$f":"IF(AG12=\"\",\"\",IF(I12=1,VLOOKUP(AG12,#REF!,2,FALSE),IF(I12=2,VLOOKUP(AG12,#REF!,2,FALSE))))","v":""},null,0,2,0,null,null,10000,"","",null,null,"",0,0,0,0,5000,5000,"女子C",0,0,"","",1500,{"$f":"COUNTIF($P$7:$P$56,5)+COUNTIF($U$7:$U$56,5)","v":0},"","","","","","","","",{"$error":"#NAME?"},{"$error":"#NAME?"},{"$error":"#NAME?"},{"$error":"#NAME?"},{"$error":"#NAME?"},{"$error":"#NAME?"},{"$error":"#NAME?"},{"$error":"#NAME?"},null,null,null,null,null,null,null,null,null,"男子5000m",6,"女子5000m",46]
[0,{"$f":"名簿!Q15","v":""},0,null,null,null,null,null,null,null,null,null,null,null,null,null,null,null,null,null,null,null,null,{"$f":"IF(W13=\"\",\"\",IF(I13=1,VLOOKUP(W13,#REF!,2,FALSE),IF(I13=2,VLOOKUP(W13,#REF!,2,FALSE))))","v":""},null,null,null,null,{"$f":"IF(AB13=\"\",\"\",IF(I13=1,VLOOKUP(AB13,#REF!,2,FALSE),IF(I13=2,VLOOKUP(AB13,#REF!,2,FALSE))))","v":""},null,0,2,null,{"$f":"IF(AG13=\"\",\"\",IF(I13=1,VLOOKUP(AG13,#REF!,2,FALSE),IF(I13=2,VLOOKUP(AG13,#REF!,2,FALSE))))","v":""},null,0,2,0,null,null,"100H","","",null,null,"",0,0,0,0,10000,10000,"女子D",0,0,"","","少3000",{"$f":"COUNTIF($P$7:$P$56,24)+COUNTIF($U$7:$U$56,24)","v":0},"","","","","","","","",{"$error":"#NAME?"},{"$error":"#NAME?"},{"$error":"#NAME?"},{"$error":"#NAME?"},{"$error":"#NAME?"},{"$error":"#NAME?"},{"$error":"#NAME?"},{"$error":"#NAME?"},null,null,null,null,null,null,null,null,null,"男子10000m",7,"女子10000m",47]
[0,{"$f":"名簿!Q16","v":""},0,null,null,null,null,null,null,null,null,null,null,null,null,null,null,null,null,null,null,null,null,{"$f":"IF(W14=\"\",\"\",IF(I14=1,VLOOKUP(W14,#REF!,2,FALSE),IF(I14=2,VLOOKUP(W14,#REF!,2,FALSE))))","v":""},null,null,null,null,{"$f":"IF(AB14=\"\",\"\",IF(I14=1,VLOOKUP(AB14,#REF!,2,FALSE),IF(I14=2,VLOOKUP(AB14,#REF!,2,FALSE))))","v":""},null,0,2,null,{"$f":"IF(AG14=\"\",\"\",IF(I14=1,VLOOKUP(AG14,#REF!,2,FALSE),IF(I14=2,VLOOKUP(AG14,#REF!,2,FALSE))))","v":""},null,0,2,0,null,null,"110H","","",null,null,"",0,0,0,0,"110H","100H",null,0,0,"","",5000,{"$f":"COUNTIF($P$7:$P$56,6)+COUNTIF($U$7:$U$56,6)","v":0},"男子4×100mR　Ｂ",null,"男子4×400mR　Ｂ",null,"女子4×100mR　Ｂ",null,"女子4×400mR　Ｂ",null,null,null,null,null,null,null,null,null,null,null,null,null,null,null,null,null,null,"男子110mH",8,"女子100mH",48]
[0,{"$f":"名簿!Q17","v":""},0,null,null,null,null,null,null,null,null,null,null,null,null,null,null,null,null,null,null,null,null,{"$f":"IF(W15=\"\",\"\",IF(I15=1,VLOOKUP(W15,#REF!,2,FALSE),IF(I15=2,VLOOKUP(W15,#REF!,2,FALSE))))","v":""},null,null,null,null,{"$f":"IF(AB15=\"\",\"\",IF(I15=1,VLOOKUP(AB15,#REF!,2,FALSE),IF(I15=2,VLOOKUP(AB15,#REF!,2,FALSE))))","v":""},null,0,2,null,{"$f":"IF(AG15=\"\",\"\",IF(I15=1,VLOOKUP(AG15,#REF!,2,FALSE),IF(I15=2,VLOOKUP(AG15,#REF!,2,FALSE))))","v":""},null,0,2,0,null,null,"400H","","",null,null,"",0,0,0,0,"400H","400H",null,0,0,"","",10000,{"$f":"COUNTIF($P$7:$P$56,7)+COUNTIF($U$7:$U$56,7)","v":0},"記録",null,"記録",null,"記録",null,"記録",null,null,null,null,null,null,null,null,null,null,null,null,null,null,null,null,null,null,"男子400mH",9,"女子400mH",49]
[0,{"$f":"名簿!Q18","v":""},0,null,null,null,null,null,null,null,null,null,null,null,null,null,null,null,null,null,null,null,null,{"$f":"IF(W16=\"\",\"\",IF(I16=1,VLOOKUP(W16,#REF!,2,FALSE),IF(I16=2,VLOOKUP(W16,#REF!,2,FALSE))))","v":""},null,null,null,null,{"$f":"IF(AB16=\"\",\"\",IF(I16=1,VLOOKUP(AB16,#REF!,2,FALSE),IF(I16=2,VLOOKUP(AB16,#REF!,2,FALSE))))","v":""},null,0,2,null,{"$f":"IF(AG16=\"\",\"\",IF(I16=1,VLOOKUP(AG16,#REF!,2,FALSE),IF(I16=2,VLOOKUP(AG16,#REF!,2,FALSE))))","v":""},null,0,2,0,null,null,"3000SC","","",null,null,"",0,0,0,0,"3000SC","3000SC",null,0,0,"","","110H",{"$f":"COUNTIF($P$7:$P$56,8)+COUNTIF($U$7:$U$56,8)","v":0},{"$f":"IF(ISERROR(BP16),\"\",BP16)","v":""},{"$f":"IF(ISERROR(BQ16),\"\",BQ16)","v":""},{"$f":"IF(ISERROR(BR16),\"\",BR16)","v":""},{"$f":"IF(ISERROR(BS16),\"\",BS16)","v":""},{"$f":"IF(ISERROR(BT16),\"\",BT16)","v":""},{"$f":"IF(ISERROR(BU16),\"\",BU16)","v":""},{"$f":"IF(ISERROR(BV16),\"\",BV16)","v":""},{"$f":"IF(ISERROR(BW16),\"\",BW16)","v":""},{"$error":"#NAME?"},{"$error":"#NAME?"},{"$error":"#NAME?"},{"$error":"#NAME?"},{"$error":"#NAME?"},{"$error":"#NAME?"},{"$error":"#NAME?"},{"$error":"#NAME?"},{"$f":"IF(BH16=\"\",\"\",1)","v":""},{"$f":"IF(BJ16=\"\",\"\",1)","v":""},{"$f":"IF(BL16=\"\",\"\",1)","v":""},{"$f":"IF(BN16=\"\",\"\",1)","v":""},null,null,null,null,null,"男子3000mSC",10,"女子3000mSC",50]
[0,{"$f":"名簿!Q19","v":""},0,null,null,null,null,null,null,null,null,null,null,null,null,null,null,null,null,null,null,null,null,{"$f":"IF(W17=\"\",\"\",IF(I17=1,VLOOKUP(W17,#REF!,2,FALSE),IF(I17=2,VLOOKUP(W17,#REF!,2,FALSE))))","v":""},null,null,null,null,{"$f":"IF(AB17=\"\",\"\",IF(I17=1,VLOOKUP(AB17,#REF!,2,FALSE),IF(I17=2,VLOOKUP(AB17,#REF!,2,FALSE))))","v":""},null,0,2,null,{"$f":"IF(AG17=\"\",\"\",IF(I17=1,VLOOKUP(AG17,#REF!,2,FALSE),IF(I17=2,VLOOKUP(AG17,#REF!,2,FALSE))))","v":""},null,0,2,0,null,null,"5000W","","",null,null,"",0,0,0,0,"5000W","5000W",null,0,0,"","","400H",{"$f":"COUNTIF($P$7:$P$56,9)+COUNTIF($U$7:$U$56,9)","v":0},"","","","","","","","",{"$error":"#NAME?"},{"$error":"#NAME?"},{"$error":"#NAME?"},{"$error":"#NAME?"},{"$error":"#NAME?"},{"$error":"#NAME?"},{"$error":"#NAME?"},{"$error":"#NAME?"},null,null,null,null,null,null,null,null,null,"男子5000mW",12,"女子5000mW",52]
[0,{"$f":"名簿!Q20","v":""},0,null,null,null,null,null,null,null,null,null,null,null,null,null,null,null,null,null,null,null,null,{"$f":"IF(W18=\"\",\"\",IF(I18=1,VLOOKUP(W18,#REF!,2,FALSE),IF(I18=2,VLOOKUP(W18,#REF!,2,FALSE))))","v":""},null,null,null,null,{"$f":"IF(AB18=\"\",\"\",IF(I18=1,VLOOKUP(AB18,#REF!,2,FALSE),IF(I18=2,VLOOKUP(AB18,#REF!,2,FALSE))))","v":""},null,0,2,null,{"$f":"IF(AG18=\"\",\"\",IF(I18=1,VLOOKUP(AG18,#REF!,2,FALSE),IF(I18=2,VLOOKUP(AG18,#REF!,2,FALSE))))","v":""},null,0,2,0,null,null,"走高跳","","",null,null,"",0,0,0,0,"走高跳","走高跳",null,0,0,"","","3000SC",{"$f":"COUNTIF($P$7:$P$56,10)+COUNTIF($U$7:$U$56,10)","v":0},"","","","","","","","",{"$error":"#NAME?"},{"$error":"#NAME?"},{"$error":"#NAME?"},{"$error":"#NAME?"},{"$error":"#NAME?"},{"$error":"#NAME?"},{"$error":"#NAME?"},{"$error":"#NAME?"},null,null,null,null,null,null,null,null,null,"男子走高跳",15,"女子走高跳",55]
[0,{"$f":"名簿!Q21","v":""},0,null,null,null,null,null,null,null,null,null,null,null,null,null,null,null,null,null,null,null,null,{"$f":"IF(W19=\"\",\"\",IF(I19=1,VLOOKUP(W19,#REF!,2,FALSE),IF(I19=2,VLOOKUP(W19,#REF!,2,FALSE))))","v":""},null,null,null,null,{"$f":"IF(AB19=\"\",\"\",IF(I19=1,VLOOKUP(AB19,#REF!,2,FALSE),IF(I19=2,VLOOKUP(AB19,#REF!,2,FALSE))))","v":""},null,0,2,null,{"$f":"IF(AG19=\"\",\"\",IF(I19=1,VLOOKUP(AG19,#REF!,2,FALSE),IF(I19=2,VLOOKUP(AG19,#REF!,2,FALSE))))","v":""},null,0,2,0,null,null,"棒高跳","","",null,null,"",0,0,0,0,"棒高跳","棒高跳",null,0,0,"","","5000W",{"$f":"COUNTIF($P$7:$P$56,12)+COUNTIF($U$7:$U$56,12)","v":0},"","","","","","","","",{"$error":"#NAME?"},{"$error":"#NAME?"},{"$error":"#NAME?"},{"$error":"#NAME?"},{"$error":"#NAME?"},{"$error":"#NAME?"},{"$error":"#NAME?"},{"$error":"#NAME?"},null,null,null,null,null,null,null,null,null,"男子棒高跳",16,"女子棒高跳",56]
[0,{"$f":"名簿!Q22","v":""},0,null,null,null,null,null,null,null,null,null,null,null,null,null,null,null,null,null,null,null,null,{"$f":"IF(W20=\"\",\"\",IF(I20=1,VLOOKUP(W20,#REF!,2,FALSE),IF(I20=2,VLOOKUP(W20,#REF!,2,FALSE))))","v":""},null,null,null,null,{"$f":"IF(AB20=\"\",\"\",IF(I20=1,VLOOKUP(AB20,#REF!,2,FALSE),IF(I20=2,VLOOKUP(AB20,#REF!,2,FALSE))))","v":""},null,0,2,null,{"$f":"IF(AG20=\"\",\"\",IF(I20=1,VLOOKUP(AG20,#REF!,2,FALSE),IF(I20=2,VLOOKUP(AG20,#REF!,2,FALSE))))","v":""},null,0,2,0,null,null,"走幅跳","","",null,null,"",0,0,0,0,"走幅跳","走幅跳",null,0,0,"","","走高跳",{"$f":"COUNTIF($P$7:$P$56,15)+COUNTIF($U$7:$U$56,15)","v":0},"","","","","","","","",{"$error":"#NAME?"},{"$error":"#NAME?"},{"$error":"#NAME?"},{"$error":"#NAME?"},{"$error":"#NAME?"},{"$error":"#NAME?"},{"$error":"#NAME?"},{"$error":"#NAME?"},null,null,null,null,null,null,null,null,null,"男子走幅跳",17,"女子走幅跳",57]
[0,{"$f":"名簿!Q23","v":""},0,null,null,null,null,null,null,null,null,null,null,null,null,null,null,null,null,null,null,null,null,{"$f":"IF(W21=\"\",\"\",IF(I21=1,VLOOKUP(W21,#REF!,2,FALSE),IF(I21=2,VLOOKUP(W21,#REF!,2,FALSE))))","v":""},null,null,null,null,{"$f":"IF(AB21=\"\",\"\",IF(I21=1,VLOOKUP(AB21,#REF!,2,FALSE),IF(I21=2,VLOOKUP(AB21,#REF!,2,FALSE))))","v":""},null,0,2,null,{"$f":"IF(AG21=\"\",\"\",IF(I21=1,VLOOKUP(AG21,#REF!,2,FALSE),IF(I21=2,VLOOKUP(AG21,#REF!,2,FALSE))))","v":""},null,0,2,0,null,null,"三段跳","","",null,null,"",0,0,0,0,"三段跳","三段跳",null,0,0,"","","棒高跳",{"$f":"COUNTIF($P$7:$P$56,16)+COUNTIF($U$7:$U$56,16)","v":0},"","","","","","","","",{"$error":"#NAME?"},{"$error":"#NAME?"},{"$error":"#NAME?"},{"$error":"#NAME?"},{"$error":"#NAME?"},{"$error":"#NAME?"},{"$error":"#NAME?"},{"$error":"#NAME?"},null,null,null,null,null,null,null,null,null,"男子三段跳",18,"女子三段跳",58]
[0,{"$f":"名簿!Q24","v":""},0,null,null,null,null,null,null,null,null,null,null,null,null,null,null,null,null,null,null,null,null,{"$f":"IF(W22=\"\",\"\",IF(I22=1,VLOOKUP(W22,#REF!,2,FALSE),IF(I22=2,VLOOKUP(W22,#REF!,2,FALSE))))","v":""},null,null,null,null,{"$f":"IF(AB22=\"\",\"\",IF(I22=1,VLOOKUP(AB22,#REF!,2,FALSE),IF(I22=2,VLOOKUP(AB22,#REF!,2,FALSE))))","v":""},null,0,2,null,{"$f":"IF(AG22=\"\",\"\",IF(I22=1,VLOOKUP(AG22,#REF!,2,FALSE),IF(I22=2,VLOOKUP(AG22,#REF!,2,FALSE))))","v":""},null,0,2,0,null,null,"砲丸投","","",null,null,"",0,0,0,0,"砲丸投","砲丸投",null,0,0,"","","走幅跳",{"$f":"COUNTIF($P$7:$P$56,17)+COUNTIF($U$7:$U$56,17)","v":0},"男子4×100mR　Ｃ",null,"男子4×400mR　Ｃ",null,"女子4×100mR　Ｃ",null,"女子4×400mR　Ｃ",null,null,null,null,null,null,null,null,null,null,null,null,null,null,null,null,null,null,"男子砲丸投（7.26ｋ）",19,"女子砲丸投",59]
[0,{"$f":"名簿!Q25","v":""},0,null,null,null,null,null,null,null,null,null,null,null,null,null,null,null,null,null,null,null,null,{"$f":"IF(W23=\"\",\"\",IF(I23=1,VLOOKUP(W23,#REF!,2,FALSE),IF(I23=2,VLOOKUP(W23,#REF!,2,FALSE))))","v":""},null,null,null,null,{"$f":"IF(AB23=\"\",\"\",IF(I23=1,VLOOKUP(AB23,#REF!,2,FALSE),IF(I23=2,VLOOKUP(AB23,#REF!,2,FALSE))))","v":""},null,0,2,null,{"$f":"IF(AG23=\"\",\"\",IF(I23=1,VLOOKUP(AG23,#REF!,2,FALSE),IF(I23=2,VLOOKUP(AG23,#REF!,2,FALSE))))","v":""},null,0,2,0,null,null,"円盤投","","",null,null,"",0,0,0,0,"少年砲丸投","円盤投",null,0,0,"","","三段跳",{"$f":"COUNTIF($P$7:$P$56,18)+COUNTIF($U$7:$U$56,18)","v":0},"記録",null,"記録",null,"記録",null,"記録",null,null,null,null,null,null,null,null,null,null,null,null,null,null,null,null,null,null,"男子円盤投(2.0k)",20,"女子円盤投",60]
[0,{"$f":"名簿!Q26","v":""},0,null,null,null,null,null,null,null,null,null,null,null,null,null,null,null,null,null,null,null,null,{"$f":"IF(W24=\"\",\"\",IF(I24=1,VLOOKUP(W24,#REF!,2,FALSE),IF(I24=2,VLOOKUP(W24,#REF!,2,FALSE))))","v":""},null,null,null,null,{"$f":"IF(AB24=\"\",\"\",IF(I24=1,VLOOKUP(AB24,#REF!,2,FALSE),IF(I24=2,VLOOKUP(AB24,#REF!,2,FALSE))))","v":""},null,0,2,null,{"$f":"IF(AG24=\"\",\"\",IF(I24=1,VLOOKUP(AG24,#REF!,2,FALSE),IF(I24=2,VLOOKUP(AG24,#REF!,2,FALSE))))","v":""},null,0,2,0,null,null,"ハンマー投","","",null,null,"",0,0,0,0,"円盤投","ハンマー投",null,0,0,"","","砲丸投",{"$f":"COUNTIF($P$7:$P$56,19)+COUNTIF($U$7:$U$56,19)","v":0},{"$f":"IF(ISERROR(BP24),\"\",BP24)","v":""},{"$f":"IF(ISERROR(BQ24),\"\",BQ24)","v":""},{"$f":"IF(ISERROR(BR24),\"\",BR24)","v":""},{"$f":"IF(ISERROR(BS24),\"\",BS24)","v":""},{"$f":"IF(ISERROR(BT24),\"\",BT24)","v":""},{"$f":"IF(ISERROR(BU24),\"\",BU24)","v":""},{"$f":"IF(ISERROR(BV24),\"\",BV24)","v":""},{"$f":"IF(ISERROR(BW24),\"\",BW24)","v":""},{"$error":"#NAME?"},{"$error":"#NAME?"},{"$error":"#NAME?"},{"$error":"#NAME?"},{"$error":"#NAME?"},{"$error":"#NAME?"},{"$error":"#NAME?"},{"$error":"#NAME?"},{"$f":"IF(BH24=\"\",\"\",1)","v":""},{"$f":"IF(BJ24=\"\",\"\",1)","v":""},{"$f":"IF(BL24=\"\",\"\",1)","v":""},{"$f":"IF(BN24=\"\",\"\",1)","v":""},null,null,null,null,null,"男子ハンマー投（7.26ｋ）",21,"女子ハンマー投",61]
[0,{"$f":"名簿!Q27","v":""},0,null,null,null,null,null,null,null,null,null,null,null,null,null,null,null,null,null,null,null,null,{"$f":"IF(W25=\"\",\"\",IF(I25=1,VLOOKUP(W25,#REF!,2,FALSE),IF(I25=2,VLOOKUP(W25,#REF!,2,FALSE))))","v":""},null,null,null,null,{"$f":"IF(AB25=\"\",\"\",IF(I25=1,VLOOKUP(AB25,#REF!,2,FALSE),IF(I25=2,VLOOKUP(AB25,#REF!,2,FALSE))))","v":""},null,0,2,null,{"$f":"IF(AG25=\"\",\"\",IF(I25=1,VLOOKUP(AG25,#REF!,2,FALSE),IF(I25=2,VLOOKUP(AG25,#REF!,2,FALSE))))","v":""},null,0,2,0,null,null,"やり投","","",null,null,"",0,0,0,0,"少年円盤投","やり投",null,0,0,"","","円盤投",{"$f":"COUNTIF($P$7:$P$56,20)+COUNTIF($U$7:$U$56,20)","v":0},"","","","","","","","",{"$error":"#NAME?"},{"$error":"#NAME?"},{"$error":"#NAME?"},{"$error":"#NAME?"},{"$error":"#NAME?"},{"$error":"#NAME?"},{"$error":"#NAME?"},{"$error":"#NAME?"},null,null,null,null,null,null,null,null,null,"男子やり投",22,"女子やり投",62]
[0,{"$f":"名簿!Q28","v":""},0,null,null,null,null,null,null,null,null,null,null,null,null,null,null,null,null,null,null,null,null,{"$f":"IF(W26=\"\",\"\",IF(I26=1,VLOOKUP(W26,#REF!,2,FALSE),IF(I26=2,VLOOKUP(W26,#REF!,2,FALSE))))","v":""},null,null,null,null,{"$f":"IF(AB26=\"\",\"\",IF(I26=1,VLOOKUP(AB26,#REF!,2,FALSE),IF(I26=2,VLOOKUP(AB26,#REF!,2,FALSE))))","v":""},null,0,2,null,{"$f":"IF(AG26=\"\",\"\",IF(I26=1,VLOOKUP(AG26,#REF!,2,FALSE),IF(I26=2,VLOOKUP(AG26,#REF!,2,FALSE))))","v":""},null,0,2,0,null,null,"少年3000","","",null,null,"",0,0,0,0,"ハンマー投",null,null,0,0,"","","ハンマー投",{"$f":"COUNTIF($P$7:$P$56,21)+COUNTIF($U$7:$U$56,21)","v":0},"","","","","","","","",{"$error":"#NAME?"},{"$error":"#NAME?"},{"$error":"#NAME?"},{"$error":"#NAME?"},{"$error":"#NAME?"},{"$error":"#NAME?"},{"$error":"#NAME?"},{"$error":"#NAME?"},null,null,null,null,null,null,null,null,null,"少年男子3000m",24,"少年女子3000m",64]
[0,{"$f":"名簿!Q29","v":""},0,null,null,null,null,null,null,null,null,null,null,null,null,null,null,null,null,null,null,null,null,{"$f":"IF(W27=\"\",\"\",IF(I27=1,VLOOKUP(W27,#REF!,2,FALSE),IF(I27=2,VLOOKUP(W27,#REF!,2,FALSE))))","v":""},null,null,null,null,{"$f":"IF(AB27=\"\",\"\",IF(I27=1,VLOOKUP(AB27,#REF!,2,FALSE),IF(I27=2,VLOOKUP(AB27,#REF!,2,FALSE))))","v":""},null,0,2,null,{"$f":"IF(AG27=\"\",\"\",IF(I27=1,VLOOKUP(AG27,#REF!,2,FALSE),IF(I27=2,VLOOKUP(AG27,#REF!,2,FALSE))))","v":""},null,0,2,0,null,null,"少年B100H","","",null,null,"",0,0,0,0,"少年ハンマー投",null,null,0,0,"","","やり投",{"$f":"COUNTIF($P$7:$P$56,22)+COUNTIF($U$7:$U$56,22)","v":0},"","","","","","","","",{"$error":"#NAME?"},{"$error":"#NAME?"},{"$error":"#NAME?"},{"$error":"#NAME?"},{"$error":"#NAME?"},{"$error":"#NAME?"},{"$error":"#NAME?"},{"$error":"#NAME?"},null,null,null,null,null,null,null,null,null,"少年男子砲丸投(6.0kg)",25,"少年B女子100m",66]
[0,{"$f":"名簿!Q30","v":""},0,null,null,null,null,null,null,null,null,null,null,null,null,null,null,null,null,null,null,null,null,{"$f":"IF(W28=\"\",\"\",IF(I28=1,VLOOKUP(W28,#REF!,2,FALSE),IF(I28=2,VLOOKUP(W28,#REF!,2,FALSE))))","v":""},null,null,null,null,{"$f":"IF(AB28=\"\",\"\",IF(I28=1,VLOOKUP(AB28,#REF!,2,FALSE),IF(I28=2,VLOOKUP(AB28,#REF!,2,FALSE))))","v":""},null,0,2,null,{"$f":"IF(AG28=\"\",\"\",IF(I28=1,VLOOKUP(AG28,#REF!,2,FALSE),IF(I28=2,VLOOKUP(AG28,#REF!,2,FALSE))))","v":""},null,0,2,0,null,null,"少年B110JH","","",null,null,"",0,0,0,0,"やり投",null,null,0,0,"","","少年B110JH",{"$f":"COUNTIF($P$7:$P$56,28)+COUNTIF($U$7:$U$56,28)","v":0},"","","","","","","","",{"$error":"#NAME?"},{"$error":"#NAME?"},{"$error":"#NAME?"},{"$error":"#NAME?"},{"$error":"#NAME?"},{"$error":"#NAME?"},{"$error":"#NAME?"},{"$error":"#NAME?"},null,null,null,null,null,null,null,null,null,"少年男子円盤投(1.75kg)",26]
[0,{"$f":"名簿!Q31","v":""},0,null,null,null,null,null,null,null,null,null,null,null,null,null,null,null,null,null,null,null,null,{"$f":"IF(W29=\"\",\"\",IF(I29=1,VLOOKUP(W29,#REF!,2,FALSE),IF(I29=2,VLOOKUP(W29,#REF!,2,FALSE))))","v":""},null,null,null,null,{"$f":"IF(AB29=\"\",\"\",IF(I29=1,VLOOKUP(AB29,#REF!,2,FALSE),IF(I29=2,VLOOKUP(AB29,#REF!,2,FALSE))))","v":""},null,0,2,null,{"$f":"IF(AG29=\"\",\"\",IF(I29=1,VLOOKUP(AG29,#REF!,2,FALSE),IF(I29=2,VLOOKUP(AG29,#REF!,2,FALSE))))","v":""},null,0,2,0,null,null,"少年砲丸投","","",null,null,"",0,0,0,0,null,null,null,0,0,"","","少年砲丸投",{"$f":"COUNTIF($P$7:$P$56,25)+COUNTIF($U$7:$U$56,25)","v":0},"","","","","","","","",{"$error":"#NAME?"},{"$error":"#NAME?"},{"$error":"#NAME?"},{"$error":"#NAME?"},{"$error":"#NAME?"},{"$error":"#NAME?"},{"$error":"#NAME?"},{"$error":"#NAME?"},null,null,null,null,null,null,null,null,null,"少年男子ハンマー投(6.0kg)",27]
[0,{"$f":"名簿!Q32","v":""},0,null,null,null,null,null,null,null,null,null,null,null,null,null,null,null,null,null,null,null,null,{"$f":"IF(W30=\"\",\"\",IF(I30=1,VLOOKUP(W30,#REF!,2,FALSE),IF(I30=2,VLOOKUP(W30,#REF!,2,FALSE))))","v":""},null,null,null,null,{"$f":"IF(AB30=\"\",\"\",IF(I30=1,VLOOKUP(AB30,#REF!,2,FALSE),IF(I30=2,VLOOKUP(AB30,#REF!,2,FALSE))))","v":""},null,0,2,null,{"$f":"IF(AG30=\"\",\"\",IF(I30=1,VLOOKUP(AG30,#REF!,2,FALSE),IF(I30=2,VLOOKUP(AG30,#REF!,2,FALSE))))","v":""},null,0,2,0,null,null,"少年円盤投","","",null,null,"",0,0,0,0,100,100,null,0,0,"","","少年Ｂ砲丸投",{"$f":"COUNTIF($P$7:$P$56,29)+COUNTIF($U$7:$U$56,29)","v":0},"男子4×100mR　Ｄ",null,"男子4×400mR　Ｄ",null,"女子4×100mR　Ｄ",null,"女子4×400mR　Ｄ",null,null,null,null,null,null,null,null,null,null,null,null,null,null,null,null,null,null,"少年B男子100m",28]
[0,{"$f":"名簿!Q33","v":""},0,null,null,null,null,null,null,null,null,null,null,null,null,null,null,null,null,null,null,null,null,{"$f":"IF(W31=\"\",\"\",IF(I31=1,VLOOKUP(W31,#REF!,2,FALSE),IF(I31=2,VLOOKUP(W31,#REF!,2,FALSE))))","v":""},null,null,null,null,{"$f":"IF(AB31=\"\",\"\",IF(I31=1,VLOOKUP(AB31,#REF!,2,FALSE),IF(I31=2,VLOOKUP(AB31,#REF!,2,FALSE))))","v":""},null,0,2,null,{"$f":"IF(AG31=\"\",\"\",IF(I31=1,VLOOKUP(AG31,#REF!,2,FALSE),IF(I31=2,VLOOKUP(AG31,#REF!,2,FALSE))))","v":""},null,0,2,0,null,null,"少年ハンマー投","","",null,null,"",0,0,0,0,200,200,null,0,0,"","","少年円盤投",{"$f":"COUNTIF($P$7:$P$56,26)+COUNTIF($U$7:$U$56,26)","v":0},"記録",null,"記録",null,"記録",null,"記録",null,null,null,null,null,null,null,null,null,null,null,null,null,null,null,null,null,null,"少年B男子砲丸投(5.0kg)",29]
[0,{"$f":"名簿!Q34","v":""},0,null,null,null,null,null,null,null,null,null,null,null,null,null,null,null,null,null,null,null,null,{"$f":"IF(W32=\"\",\"\",IF(I32=1,VLOOKUP(W32,#REF!,2,FALSE),IF(I32=2,VLOOKUP(W32,#REF!,2,FALSE))))","v":""},null,null,null,null,{"$f":"IF(AB32=\"\",\"\",IF(I32=1,VLOOKUP(AB32,#REF!,2,FALSE),IF(I32=2,VLOOKUP(AB32,#REF!,2,FALSE))))","v":""},null,0,2,null,{"$f":"IF(AG32=\"\",\"\",IF(I32=1,VLOOKUP(AG32,#REF!,2,FALSE),IF(I32=2,VLOOKUP(AG32,#REF!,2,FALSE))))","v":""},null,0,2,0,null,null,"男子A","","",null,null,"",0,0,0,0,400,400,null,0,0,"","","少年ハンマー",{"$f":"COUNTIF($P$7:$P$56,27)+COUNTIF($U$7:$U$56,27)","v":0},{"$f":"IF(ISERROR(BP32),\"\",BP32)","v":""},{"$f":"IF(ISERROR(BQ32),\"\",BQ32)","v":""},{"$f":"IF(ISERROR(BR32),\"\",BR32)","v":""},{"$f":"IF(ISERROR(BS32),\"\",BS32)","v":""},{"$f":"IF(ISERROR(BT32),\"\",BT32)","v":""},{"$f":"IF(ISERROR(BU32),\"\",BU32)","v":""},{"$f":"IF(ISERROR(BV32),\"\",BV32)","v":""},{"$f":"IF(ISERROR(BW32),\"\",BW32)","v":""},{"$error":"#NAME?"},{"$error":"#NAME?"},{"$error":"#NAME?"},{"$error":"#NAME?"},{"$error":"#NAME?"},{"$error":"#NAME?"},{"$error":"#NAME?"},{"$error":"#NAME?"},{"$f":"IF(BH32=\"\",\"\",1)","v":""},{"$f":"IF(BJ32=\"\",\"\",1)","v":""},{"$f":"IF(BL32=\"\",\"\",1)","v":""},{"$f":"IF(BN32=\"\",\"\",1)","v":""},null,null,null,null,null,"少年B男子走幅跳",30]
[0,{"$f":"名簿!Q35","v":""},0,null,null,null,null,null,null,null,null,null,null,null,null,null,null,null,null,null,null,null,null,{"$f":"IF(W33=\"\",\"\",IF(I33=1,VLOOKUP(W33,#REF!,2,FALSE),IF(I33=2,VLOOKUP(W33,#REF!,2,FALSE))))","v":""},null,null,null,null,{"$f":"IF(AB33=\"\",\"\",IF(I33=1,VLOOKUP(AB33,#REF!,2,FALSE),IF(I33=2,VLOOKUP(AB33,#REF!,2,FALSE))))","v":""},null,0,2,null,{"$f":"IF(AG33=\"\",\"\",IF(I33=1,VLOOKUP(AG33,#REF!,2,FALSE),IF(I33=2,VLOOKUP(AG33,#REF!,2,FALSE))))","v":""},null,0,2,0,null,null,"男子B","","",null,null,"",0,0,0,0,800,800,null,0,0,"","","計",{"$f":"SUM(BG8:BG32)","v":0},"","","","","","","","",{"$error":"#NAME?"},{"$error":"#NAME?"},{"$error":"#NAME?"},{"$error":"#NAME?"},{"$error":"#NAME?"},{"$error":"#NAME?"},{"$error":"#NAME?"},{"$error":"#NAME?"}]
[0,{"$f":"名簿!Q36","v":""},0,null,null,null,null,null,null,null,null,null,null,null,null,null,null,null,null,null,null,null,null,{"$f":"IF(W34=\"\",\"\",IF(I34=1,VLOOKUP(W34,#REF!,2,FALSE),IF(I34=2,VLOOKUP(W34,#REF!,2,FALSE))))","v":""},null,null,null,null,{"$f":"IF(AB34=\"\",\"\",IF(I34=1,VLOOKUP(AB34,#REF!,2,FALSE),IF(I34=2,VLOOKUP(AB34,#REF!,2,FALSE))))","v":""},null,0,2,null,{"$f":"IF(AG34=\"\",\"\",IF(I34=1,VLOOKUP(AG34,#REF!,2,FALSE),IF(I34=2,VLOOKUP(AG34,#REF!,2,FALSE))))","v":""},null,0,2,0,null,null,"男子C","","",null,null,"",0,0,0,0,1500,1500,null,0,0,"","","女子",null,"","","","","","","","",{"$error":"#NAME?"},{"$error":"#NAME?"},{"$error":"#NAME?"},{"$error":"#NAME?"},{"$error":"#NAME?"},{"$error":"#NAME?"},{"$error":"#NAME?"},{"$error":"#NAME?"}]
[0,{"$f":"名簿!Q37","v":""},0,null,null,null,null,null,null,null,null,null,null,null,null,null,null,null,null,null,null,null,null,{"$f":"IF(W35=\"\",\"\",IF(I35=1,VLOOKUP(W35,#REF!,2,FALSE),IF(I35=2,VLOOKUP(W35,#REF!,2,FALSE))))","v":""},null,null,null,null,{"$f":"IF(AB35=\"\",\"\",IF(I35=1,VLOOKUP(AB35,#REF!,2,FALSE),IF(I35=2,VLOOKUP(AB35,#REF!,2,FALSE))))","v":""},null,0,2,null,{"$f":"IF(AG35=\"\",\"\",IF(I35=1,VLOOKUP(AG35,#REF!,2,FALSE),IF(I35=2,VLOOKUP(AG35,#REF!,2,FALSE))))","v":""},null,0,2,0,null,null,"女子A","","",null,null,"",0,0,0,0,"少年3000","少年3000",null,0,0,"","",100,{"$f":"COUNTIF($P$7:$P$56,40)+COUNTIF($U$7:$U$56,40)","v":0},"","","","","","","","",{"$error":"#NAME?"},{"$error":"#NAME?"},{"$error":"#NAME?"},{"$error":"#NAME?"},{"$error":"#NAME?"},{"$error":"#NAME?"},{"$error":"#NAME?"},{"$error":"#NAME?"}]
[0,{"$f":"名簿!Q38","v":""},0,null,null,null,null,null,null,null,null,null,null,null,null,null,null,null,null,null,null,null,null,{"$f":"IF(W36=\"\",\"\",IF(I36=1,VLOOKUP(W36,#REF!,2,FALSE),IF(I36=2,VLOOKUP(W36,#REF!,2,FALSE))))","v":""},null,null,null,null,{"$f":"IF(AB36=\"\",\"\",IF(I36=1,VLOOKUP(AB36,#REF!,2,FALSE),IF(I36=2,VLOOKUP(AB36,#REF!,2,FALSE))))","v":""},null,0,2,null,{"$f":"IF(AG36=\"\",\"\",IF(I36=1,VLOOKUP(AG36,#REF!,2,FALSE),IF(I36=2,VLOOKUP(AG36,#REF!,2,FALSE))))","v":""},null,0,2,0,null,null,"女子B","","",null,null,"",0,0,0,0,5000,5000,null,0,0,"","",200,{"$f":"COUNTIF($P$7:$P$56,41)+COUNTIF($U$7:$U$56,41)","v":0},"","","","","","","","",{"$error":"#NAME?"},{"$error":"#NAME?"},{"$error":"#NAME?"},{"$error":"#NAME?"},{"$error":"#NAME?"},{"$error":"#NAME?"},{"$error":"#NAME?"},{"$error":"#NAME?"}]
[0,{"$f":"名簿!Q39","v":""},0,null,null,null,null,null,null,null,null,null,null,null,null,null,null,null,null,null,null,null,null,{"$f":"IF(W37=\"\",\"\",IF(I37=1,VLOOKUP(W37,#REF!,2,FALSE),IF(I37=2,VLOOKUP(W37,#REF!,2,FALSE))))","v":""},null,null,null,null,{"$f":"IF(AB37=\"\",\"\",IF(I37=1,VLOOKUP(AB37,#REF!,2,FALSE),IF(I37=2,VLOOKUP(AB37,#REF!,2,FALSE))))","v":""},null,0,2,null,{"$f":"IF(AG37=\"\",\"\",IF(I37=1,VLOOKUP(AG37,#REF!,2,FALSE),IF(I37=2,VLOOKUP(AG37,#REF!,2,FALSE))))","v":""},null,0,2,0,null,null,"女子C","","",null,null,"",0,0,0,0,10000,10000,null,0,0,"","",400,{"$f":"COUNTIF($P$7:$P$56,42)+COUNTIF($U$7:$U$56,42)","v":0},"","","","","","","","",{"$error":"#NAME?"},{"$error":"#NAME?"},{"$error":"#NAME?"},{"$error":"#NAME?"},{"$error":"#NAME?"},{"$error":"#NAME?"},{"$error":"#NAME?"},{"$error":"#NAME?"}]
[0,{"$f":"名簿!Q40","v":""},0,null,null,null,null,null,null,null,null,null,null,null,null,null,null,null,null,null,null,null,null,{"$f":"IF(W38=\"\",\"\",IF(I38=1,VLOOKUP(W38,#REF!,2,FALSE),IF(I38=2,VLOOKUP(W38,#REF!,2,FALSE))))","v":""},null,null,null,null,{"$f":"IF(AB38=\"\",\"\",IF(I38=1,VLOOKUP(AB38,#REF!,2,FALSE),IF(I38=2,VLOOKUP(AB38,#REF!,2,FALSE))))","v":""},null,0,2,null,{"$f":"IF(AG38=\"\",\"\",IF(I38=1,VLOOKUP(AG38,#REF!,2,FALSE),IF(I38=2,VLOOKUP(AG38,#REF!,2,FALSE))))","v":""},null,0,2,0,null,null,null,"","",null,null,"",0,0,0,0,"110H","100H",null,0,0,"","",800,{"$f":"COUNTIF($P$7:$P$56,43)+COUNTIF($U$7:$U$56,43)","v":0},null,null,null,null,null,null,null,null,null,null,null,null,null,null,null,null,{"$f":"SUM(BX8:BX37)","v":0},{"$f":"SUM(BY8:BY37)","v":0},{"$f":"SUM(BZ8:BZ37)","v":0},{"$f":"SUM(CA8:CA37)","v":0},{"$f":"SUM(BX38:CA38)","v":0}]
[0,{"$f":"名簿!Q41","v":""},0,null,null,null,null,null,null,null,null,null,null,null,null,null,null,null,null,null,null,null,null,{"$f":"IF(W39=\"\",\"\",IF(I39=1,VLOOKUP(W39,#REF!,2,FALSE),IF(I39=2,VLOOKUP(W39,#REF!,2,FALSE))))","v":""},null,null,null,null,{"$f":"IF(AB39=\"\",\"\",IF(I39=1,VLOOKUP(AB39,#REF!,2,FALSE),IF(I39=2,VLOOKUP(AB39,#REF!,2,FALSE))))","v":""},null,0,2,null,{"$f":"IF(AG39=\"\",\"\",IF(I39=1,VLOOKUP(AG39,#REF!,2,FALSE),IF(I39=2,VLOOKUP(AG39,#REF!,2,FALSE))))","v":""},null,0,2,0,null,null,null,{"$f":"IF(O39=\"\",\"\",1)","v":""},"",null,null,"",{"$f":"IF(OR(AT39=1,T39=\"\"),0,1)","v":0},{"$f":"IF(OR(AT39=1,AU39=1,AB39=\"\"),0,1)","v":0},{"$f":"IF(OR(AT39=1,AU39=1,AV39=1,AG39=\"\"),0,1)","v":0},0,null,"少年B100YH",null,0,0,"","",1500,{"$f":"COUNTIF($P$7:$P$56,44)+COUNTIF($U$7:$U$56,44)","v":0}]
[0,{"$f":"名簿!Q42","v":""},0,null,null,null,null,null,null,null,null,null,null,null,null,null,null,null,null,null,null,null,null,{"$f":"IF(W40=\"\",\"\",IF(I40=1,VLOOKUP(W40,#REF!,2,FALSE),IF(I40=2,VLOOKUP(W40,#REF!,2,FALSE))))","v":""},null,null,null,null,{"$f":"IF(AB40=\"\",\"\",IF(I40=1,VLOOKUP(AB40,#REF!,2,FALSE),IF(I40=2,VLOOKUP(AB40,#REF!,2,FALSE))))","v":""},null,0,2,null,{"$f":"IF(AG40=\"\",\"\",IF(I40=1,VLOOKUP(AG40,#REF!,2,FALSE),IF(I40=2,VLOOKUP(AG40,#REF!,2,FALSE))))","v":""},null,0,2,0,null,null,null,"","",null,null,"",0,0,0,0,"400H","400H",null,0,0,"","","少年3000",{"$f":"COUNTIF($P$7:$P$56,64)+COUNTIF($U$7:$U$56,64)","v":0}]
[0,{"$f":"名簿!Q43","v":""},0,null,null,null,null,null,null,null,null,null,null,null,null,null,null,null,null,null,null,null,null,{"$f":"IF(W41=\"\",\"\",IF(I41=1,VLOOKUP(W41,#REF!,2,FALSE),IF(I41=2,VLOOKUP(W41,#REF!,2,FALSE))))","v":""},null,null,null,null,{"$f":"IF(AB41=\"\",\"\",IF(I41=1,VLOOKUP(AB41,#REF!,2,FALSE),IF(I41=2,VLOOKUP(AB41,#REF!,2,FALSE))))","v":""},null,0,2,null,{"$f":"IF(AG41=\"\",\"\",IF(I41=1,VLOOKUP(AG41,#REF!,2,FALSE),IF(I41=2,VLOOKUP(AG41,#REF!,2,FALSE))))","v":""},null,0,2,0,null,null,null,"","",null,null,"",0,0,0,0,"3000SC","3000SC",null,0,0,"","",5000,{"$f":"COUNTIF($P$7:$P$56,46)+COUNTIF($U$7:$U$56,46)","v":0}]
[0,{"$f":"名簿!Q44","v":""},0,null,null,null,null,null,null,null,null,null,null,null,null,null,null,null,null,null,null,null,null,{"$f":"IF(W42=\"\",\"\",IF(I42=1,VLOOKUP(W42,#REF!,2,FALSE),IF(I42=2,VLOOKUP(W42,#REF!,2,FALSE))))","v":""},null,null,null,null,{"$f":"IF(AB42=\"\",\"\",IF(I42=1,VLOOKUP(AB42,#REF!,2,FALSE),IF(I42=2,VLOOKUP(AB42,#REF!,2,FALSE))))","v":""},null,0,2,null,{"$f":"IF(AG42=\"\",\"\",IF(I42=1,VLOOKUP(AG42,#REF!,2,FALSE),IF(I42=2,VLOOKUP(AG42,#REF!,2,FALSE))))","v":""},null,0,2,0,null,null,null,"","",null,null,"",0,0,0,0,"5000W","5000W",null,0,0,"","",10000,{"$f":"COUNTIF($P$7:$P$56,47)+COUNTIF($U$7:$U$56,47)","v":0}]
[0,{"$f":"名簿!Q45","v":""},0,null,null,null,null,null,null,null,null,null,null,null,null,null,null,null,null,null,null,null,null,{"$f":"IF(W43=\"\",\"\",IF(I43=1,VLOOKUP(W43,#REF!,2,FALSE),IF(I43=2,VLOOKUP(W43,#REF!,2,FALSE))))","v":""},null,null,null,null,{"$f":"IF(AB43=\"\",\"\",IF(I43=1,VLOOKUP(AB43,#REF!,2,FALSE),IF(I43=2,VLOOKUP(AB43,#REF!,2,FALSE))))","v":""},null,0,2,null,{"$f":"IF(AG43=\"\",\"\",IF(I43=1,VLOOKUP(AG43,#REF!,2,FALSE),IF(I43=2,VLOOKUP(AG43,#REF!,2,FALSE))))","v":""},null,0,2,0,null,null,null,"","",null,null,"",0,0,0,0,"走高跳","走高跳",null,0,0,"","","100H",{"$f":"COUNTIF($P$7:$P$56,48)+COUNTIF($U$7:$U$56,48)","v":0}]
[0,{"$f":"名簿!Q46","v":""},0,null,null,null,null,null,null,null,null,null,null,null,null,null,null,null,null,null,null,null,null,{"$f":"IF(W44=\"\",\"\",IF(I44=1,VLOOKUP(W44,#REF!,2,FALSE),IF(I44=2,VLOOKUP(W44,#REF!,2,FALSE))))","v":""},null,null,null,null,{"$f":"IF(AB44=\"\",\"\",IF(I44=1,VLOOKUP(AB44,#REF!,2,FALSE),IF(I44=2,VLOOKUP(AB44,#REF!,2,FALSE))))","v":""},null,0,2,null,{"$f":"IF(AG44=\"\",\"\",IF(I44=1,VLOOKUP(AG44,#REF!,2,FALSE),IF(I44=2,VLOOKUP(AG44,#REF!,2,FALSE))))","v":""},null,0,2,0,null,null,null,"","",null,null,"",0,0,0,0,"棒高跳","棒高跳",null,0,0,"","","少年B100YH",{"$f":"COUNTIF($P$7:$P$56,65)+COUNTIF($U$7:$U$56,65)","v":0}]
[0,{"$f":"名簿!Q47","v":""},0,null,null,null,null,null,null,null,null,null,null,null,null,null,null,null,null,null,null,null,null,{"$f":"IF(W45=\"\",\"\",IF(I45=1,VLOOKUP(W45,#REF!,2,FALSE),IF(I45=2,VLOOKUP(W45,#REF!,2,FALSE))))","v":""},null,null,null,null,{"$f":"IF(AB45=\"\",\"\",IF(I45=1,VLOOKUP(AB45,#REF!,2,FALSE),IF(I45=2,VLOOKUP(AB45,#REF!,2,FALSE))))","v":""},null,0,2,null,{"$f":"IF(AG45=\"\",\"\",IF(I45=1,VLOOKUP(AG45,#REF!,2,FALSE),IF(I45=2,VLOOKUP(AG45,#REF!,2,FALSE))))","v":""},null,0,2,0,null,null,null,"","",null,null,"",0,0,0,0,"走幅跳","走幅跳",null,0,0,"","","400H",{"$f":"COUNTIF($P$7:$P$56,49)+COUNTIF($U$7:$U$56,49)","v":0}]
[0,{"$f":"名簿!Q48","v":""},0,null,null,null,null,null,null,null,null,null,null,null,null,null,null,null,null,null,null,null,null,{"$f":"IF(W46=\"\",\"\",IF(I46=1,VLOOKUP(W46,#REF!,2,FALSE),IF(I46=2,VLOOKUP(W46,#REF!,2,FALSE))))","v":""},null,null,null,null,{"$f":"IF(AB46=\"\",\"\",IF(I46=1,VLOOKUP(AB46,#REF!,2,FALSE),IF(I46=2,VLOOKUP(AB46,#REF!,2,FALSE))))","v":""},null,0,2,null,{"$f":"IF(AG46=\"\",\"\",IF(I46=1,VLOOKUP(AG46,#REF!,2,FALSE),IF(I46=2,VLOOKUP(AG46,#REF!,2,FALSE))))","v":""},null,0,2,0,null,null,null,"","",null,null,"",0,0,0,0,"少年B走幅跳","三段跳",null,0,0,"","","5000W",{"$f":"COUNTIF($P$7:$P$56,52)+COUNTIF($U$7:$U$56,52)","v":0}]
[0,{"$f":"名簿!Q49","v":""},0,null,null,null,null,null,null,null,null,null,null,null,null,null,null,null,null,null,null,null,null,{"$f":"IF(W47=\"\",\"\",IF(I47=1,VLOOKUP(W47,#REF!,2,FALSE),IF(I47=2,VLOOKUP(W47,#REF!,2,FALSE))))","v":""},null,null,null,null,{"$f":"IF(AB47=\"\",\"\",IF(I47=1,VLOOKUP(AB47,#REF!,2,FALSE),IF(I47=2,VLOOKUP(AB47,#REF!,2,FALSE))))","v":""},null,0,2,null,{"$f":"IF(AG47=\"\",\"\",IF(I47=1,VLOOKUP(AG47,#REF!,2,FALSE),IF(I47=2,VLOOKUP(AG47,#REF!,2,FALSE))))","v":""},null,0,2,0,null,null,null,"","",null,null,"",0,0,0,0,"三段跳","砲丸投",null,0,0,"","","走高跳",{"$f":"COUNTIF($P$7:$P$56,55)+COUNTIF($U$7:$U$56,55)","v":0}]
[0,{"$f":"名簿!Q50","v":""},0,null,null,null,null,null,null,null,null,null,null,null,null,null,null,null,null,null,null,null,null,{"$f":"IF(W48=\"\",\"\",IF(I48=1,VLOOKUP(W48,#REF!,2,FALSE),IF(I48=2,VLOOKUP(W48,#REF!,2,FALSE))))","v":""},null,null,null,null,{"$f":"IF(AB48=\"\",\"\",IF(I48=1,VLOOKUP(AB48,#REF!,2,FALSE),IF(I48=2,VLOOKUP(AB48,#REF!,2,FALSE))))","v":""},null,0,2,null,{"$f":"IF(AG48=\"\",\"\",IF(I48=1,VLOOKUP(AG48,#REF!,2,FALSE),IF(I48=2,VLOOKUP(AG48,#REF!,2,FALSE))))","v":""},null,0,2,0,null,null,null,"","",null,null,"",0,0,0,0,"砲丸投","円盤投",null,0,0,"","","棒高跳",{"$f":"COUNTIF($P$7:$P$56,56)+COUNTIF($U$7:$U$56,56)","v":0}]
[0,{"$f":"名簿!Q51","v":""},0,null,null,null,null,null,null,null,null,null,null,null,null,null,null,null,null,null,null,null,null,{"$f":"IF(W49=\"\",\"\",IF(I49=1,VLOOKUP(W49,#REF!,2,FALSE),IF(I49=2,VLOOKUP(W49,#REF!,2,FALSE))))","v":""},null,null,null,null,{"$f":"IF(AB49=\"\",\"\",IF(I49=1,VLOOKUP(AB49,#REF!,2,FALSE),IF(I49=2,VLOOKUP(AB49,#REF!,2,FALSE))))","v":""},null,0,2,null,{"$f":"IF(AG49=\"\",\"\",IF(I49=1,VLOOKUP(AG49,#REF!,2,FALSE),IF(I49=2,VLOOKUP(AG49,#REF!,2,FALSE))))","v":""},null,0,2,0,null,null,null,"","",null,null,"",0,0,0,0,"少年砲丸投","ハンマー投",null,0,0,"","","走幅跳",{"$f":"COUNTIF($P$7:$P$56,57)+COUNTIF($U$7:$U$56,57)","v":0}]
[0,{"$f":"名簿!Q52","v":""},0,null,null,null,null,null,null,null,null,null,null,null,null,null,null,null,null,null,null,null,null,{"$f":"IF(W50=\"\",\"\",IF(I50=1,VLOOKUP(W50,#REF!,2,FALSE),IF(I50=2,VLOOKUP(W50,#REF!,2,FALSE))))","v":""},null,null,null,null,{"$f":"IF(AB50=\"\",\"\",IF(I50=1,VLOOKUP(AB50,#REF!,2,FALSE),IF(I50=2,VLOOKUP(AB50,#REF!,2,FALSE))))","v":""},null,0,2,null,{"$f":"IF(AG50=\"\",\"\",IF(I50=1,VLOOKUP(AG50,#REF!,2,FALSE),IF(I50=2,VLOOKUP(AG50,#REF!,2,FALSE))))","v":""},null,0,2,0,null,null,null,"","",null,null,"",0,0,0,0,"少年B砲丸投","やり投",null,0,0,"","","三段跳",{"$f":"COUNTIF($P$7:$P$56,58)+COUNTIF($U$7:$U$56,58)","v":0}]
[0,{"$f":"名簿!Q53","v":""},0,null,null,null,null,null,null,null,null,null,null,null,null,null,null,null,null,null,null,null,null,{"$f":"IF(W51=\"\",\"\",IF(I51=1,VLOOKUP(W51,#REF!,2,FALSE),IF(I51=2,VLOOKUP(W51,#REF!,2,FALSE))))","v":""},null,null,null,null,{"$f":"IF(AB51=\"\",\"\",IF(I51=1,VLOOKUP(AB51,#REF!,2,FALSE),IF(I51=2,VLOOKUP(AB51,#REF!,2,FALSE))))","v":""},null,0,2,null,{"$f":"IF(AG51=\"\",\"\",IF(I51=1,VLOOKUP(AG51,#REF!,2,FALSE),IF(I51=2,VLOOKUP(AG51,#REF!,2,FALSE))))","v":""},null,0,2,0,null,null,null,"","",null,null,"",0,0,0,0,"円盤投",null,null,0,0,"","","砲丸投",{"$f":"COUNTIF($P$7:$P$56,59)+COUNTIF($U$7:$U$56,59)","v":0}]
[0,{"$f":"名簿!Q54","v":""},0,null,null,null,null,null,null,null,null,null,null,null,null,null,null,null,null,null,null,null,null,{"$f":"IF(W52=\"\",\"\",IF(I52=1,VLOOKUP(W52,#REF!,2,FALSE),IF(I52=2,VLOOKUP(W52,#REF!,2,FALSE))))","v":""},null,null,null,null,{"$f":"IF(AB52=\"\",\"\",IF(I52=1,VLOOKUP(AB52,#REF!,2,FALSE),IF(I52=2,VLOOKUP(AB52,#REF!,2,FALSE))))","v":""},null,0,2,null,{"$f":"IF(AG52=\"\",\"\",IF(I52=1,VLOOKUP(AG52,#REF!,2,FALSE),IF(I52=2,VLOOKUP(AG52,#REF!,2,FALSE))))","v":""},null,0,2,0,null,null,null,"","",null,null,"",0,0,0,0,"少年円盤投",null,null,0,0,"","","円盤投",{"$f":"COUNTIF($P$7:$P$56,60)+COUNTIF($U$7:$U$56,60)","v":0}]
[0,{"$f":"名簿!Q55","v":""},0,null,null,null,null,null,null,null,null,null,null,null,null,null,null,null,null,null,null,null,null,{"$f":"IF(W53=\"\",\"\",IF(I53=1,VLOOKUP(W53,#REF!,2,FALSE),IF(I53=2,VLOOKUP(W53,#REF!,2,FALSE))))","v":""},null,null,null,null,{"$f":"IF(AB53=\"\",\"\",IF(I53=1,VLOOKUP(AB53,#REF!,2,FALSE),IF(I53=2,VLOOKUP(AB53,#REF!,2,FALSE))))","v":""},null,0,2,null,{"$f":"IF(AG53=\"\",\"\",IF(I53=1,VLOOKUP(AG53,#REF!,2,FALSE),IF(I53=2,VLOOKUP(AG53,#REF!,2,FALSE))))","v":""},null,0,2,0,null,null,null,"","",null,null,"",0,0,0,0,"ハンマー投",null,null,0,0,"","","ハンマー投",{"$f":"COUNTIF($P$7:$P$56,61)+COUNTIF($U$7:$U$56,61)","v":0}]
[0,{"$f":"名簿!Q56","v":""},0,null,null,null,null,null,null,null,null,null,null,null,null,null,null,null,null,null,null,null,null,{"$f":"IF(W54=\"\",\"\",IF(I54=1,VLOOKUP(W54,#REF!,2,FALSE),IF(I54=2,VLOOKUP(W54,#REF!,2,FALSE))))","v":""},null,null,null,null,{"$f":"IF(AB54=\"\",\"\",IF(I54=1,VLOOKUP(AB54,#REF!,2,FALSE),IF(I54=2,VLOOKUP(AB54,#REF!,2,FALSE))))","v":""},null,0,2,null,{"$f":"IF(AG54=\"\",\"\",IF(I54=1,VLOOKUP(AG54,#REF!,2,FALSE),IF(I54=2,VLOOKUP(AG54,#REF!,2,FALSE))))","v":""},null,0,2,0,null,null,null,"","",null,null,"",0,0,0,0,"少年ハンマー投",null,null,0,0,"","","やり投",{"$f":"COUNTIF($P$7:$P$56,62)+COUNTIF($U$7:$U$56,62)","v":0}]
[0,{"$f":"名簿!Q57","v":""},0,null,null,null,null,null,null,null,null,null,null,null,null,null,null,null,null,null,null,null,null,{"$f":"IF(W55=\"\",\"\",IF(I55=1,VLOOKUP(W55,#REF!,2,FALSE),IF(I55=2,VLOOKUP(W55,#REF!,2,FALSE))))","v":""},null,null,null,null,{"$f":"IF(AB55=\"\",\"\",IF(I55=1,VLOOKUP(AB55,#REF!,2,FALSE),IF(I55=2,VLOOKUP(AB55,#REF!,2,FALSE))))","v":""},null,0,2,null,{"$f":"IF(AG55=\"\",\"\",IF(I55=1,VLOOKUP(AG55,#REF!,2,FALSE),IF(I55=2,VLOOKUP(AG55,#REF!,2,FALSE))))","v":""},null,0,2,0,null,null,null,"","",null,null,"",0,0,0,0,"やり投",null,null,0,0,"","","計",{"$f":"SUM(BG35:BG54)","v":0}]
[0,{"$f":"名簿!Q58","v":""},0,null,{"$f":"名簿!E58","v":0},{"$f":"名簿!BN58","v":""},{"$f":"名簿!Z58","v":""},{"$f":"F56","v":""},{"$f":"名簿!O58","v":""},{"$f":"名簿!I58","v":0},{"$f":"名簿!BP58","v":"19"},{"$f":"名簿!N58","v":"0"},{"$f":"名簿!R58","v":""},null,null,{"$f":"IF(O56=\"\",\"\",IF(I56=1,VLOOKUP(O56,#REF!,2,FALSE),IF(I56=2,VLOOKUP(O56,#REF!,2,FALSE))))","v":""},{"$f":"IF(O56=\"\",\"\",HLOOKUP(O56,名簿!$AB$8:$BG$58,2,FALSE))","v":""},0,2,null,{"$f":"IF(T56=\"\",\"\",IF(I56=1,VLOOKUP(T56,#REF!,2,FALSE),IF(I56=2,VLOOKUP(T56,#REF!,2,FALSE))))","v":""},{"$f":"IF(T56=\"\",\"\",HLOOKUP(T56,名簿!$AB$8:$BG$58,2,FALSE))","v":""},null,{"$f":"IF(W56=\"\",\"\",IF(I56=1,VLOOKUP(W56,#REF!,2,FALSE),IF(I56=2,VLOOKUP(W56,#REF!,2,FALSE))))","v":""},null,null,null,null,{"$f":"IF(AB56=\"\",\"\",IF(I56=1,VLOOKUP(AB56,#REF!,2,FALSE),IF(I56=2,VLOOKUP(AB56,#REF!,2,FALSE))))","v":""},null,0,2,null,{"$f":"IF(AG56=\"\",\"\",IF(I56=1,VLOOKUP(AG56,#REF!,2,FALSE),IF(I56=2,VLOOKUP(AG56,#REF!,2,FALSE))))","v":""},null,0,2,0,null,null,null,"","",null,null,"",0,0,0,0,null,null,null,0,0,"",""]
[null,null,null,null,null,null,null,null,null,null,null,null,null,null,null,null,null,null,null,null,null,null,null,null,null,null,null,null,null,null,null,null,null,null,null,null,null,null,null,null,null,null,null,null,null,null,null,null,null,null,null,null,null,{"$f":"SUM(BB7:BB56)","v":0},{"$f":"SUM(BC7:BC56)","v":0},{"$f":"SUM(BD7:BD56)","v":0},{"$f":"SUM(BE7:BE56)","v":0}]
[]
[]
[]
[]
[]
[]
[]
[]
[null,null,null,null,null,null,null,null,null,null,null,null,null,null,null,null,null,null,null,null,null,"男子A",null,null,null,null,null,{"$f":"COUNTIF($AB$7:$AB$56,\"男子A\")","v":0},{"$f":"COUNTIF($AB$7:$AB$56,\"男子A\")","v":0},{"$f":"COUNTIF($AB$7:$AB$56,\"男子A\")","v":0},{"$f":"COUNTIF($AB$7:$AB$56,\"男子A\")","v":0},{"$f":"COUNTIF($AB$7:$AB$56,\"男子A\")","v":0},{"$f":"COUNTIF($AG$7:$AG$56,\"男子A\")","v":0}]
[null,null,null,null,null,null,null,null,null,null,null,null,null,null,null,null,null,null,null,null,null,"男子B",null,null,null,null,null,{"$f":"COUNTIF($AB$7:$AB$56,\"男子B\")","v":0},{"$f":"COUNTIF($AB$7:$AB$56,\"男子B\")","v":0},{"$f":"COUNTIF($AB$7:$AB$56,\"男子B\")","v":0},{"$f":"COUNTIF($AB$7:$AB$56,\"男子B\")","v":0},{"$f":"COUNTIF($AB$7:$AB$56,\"男子B\")","v":0},{"$f":"COUNTIF($AG$7:$AG$56,\"男子B\")","v":0}]
[null,null,null,null,null,null,null,null,null,null,null,null,null,null,null,null,null,null,null,null,null,"男子C",null,null,null,null,null,{"$f":"COUNTIF($AB$7:$AB$56,\"男子C\")","v":0},{"$f":"COUNTIF($AB$7:$AB$56,\"男子C\")","v":0},{"$f":"COUNTIF($AB$7:$AB$56,\"男子C\")","v":0},{"$f":"COUNTIF($AB$7:$AB$56,\"男子C\")","v":0},{"$f":"COUNTIF($AB$7:$AB$56,\"男子C\")","v":0},{"$f":"COUNTIF($AG$7:$AG$56,\"男子C\")","v":0}]
[null,null,null,null,null,null,null,null,null,null,null,null,null,null,null,null,null,null,null,null,null,"男子D",null,null,null,null,null,{"$f":"COUNTIF($AB$7:$AB$56,\"男子D\")","v":0},{"$f":"COUNTIF($AB$7:$AB$56,\"男子D\")","v":0},{"$f":"COUNTIF($AB$7:$AB$56,\"男子D\")","v":0},{"$f":"COUNTIF($AB$7:$AB$56,\"男子D\")","v":0},{"$f":"COUNTIF($AB$7:$AB$56,\"男子D\")","v":0},{"$f":"COUNTIF($AG$7:$AG$56,\"男子D\")","v":0}]
[null,null,null,null,null,null,null,null,null,null,null,null,null,null,null,null,null,null,null,null,null,"女子A",null,null,null,null,null,{"$f":"COUNTIF($AB$7:$AB$56,\"女子A\")","v":0},null,null,null,null,{"$f":"COUNTIF($AG$7:$AG$56,\"女子A\")","v":0}]
[null,null,null,null,null,null,null,null,null,null,null,null,null,null,null,null,null,null,null,null,null,"女子B",null,null,null,null,null,{"$f":"COUNTIF($AB$7:$AB$56,\"女子B\")","v":0},null,null,null,null,{"$f":"COUNTIF($AG$7:$AG$56,\"女子B\")","v":0}]
[null,null,null,null,null,null,null,null,null,null,null,null,null,null,null,null,null,null,null,null,null,"女子C",null,null,null,null,null,{"$f":"COUNTIF($AB$7:$AB$56,\"女子C\")","v":0},null,null,null,null,{"$f":"COUNTIF($AG$7:$AG$56,\"女子C\")","v":0}]
[null,null,null,null,null,null,null,null,null,null,null,null,null,null,null,null,null,null,null,null,null,"女子D",null,null,null,null,null,{"$f":"COUNTIF($AB$7:$AB$56,\"女子D\")","v":0},null,null,null,null,{"$f":"COUNTIF($AG$7:$AG$56,\"女子D\")","v":0}]

{"sheet":"ロードレース","index":8,"n_rows":72,"n_cols":38,"rows_kept":72,"cut":false,"hidden":false,"merged":[[1,12,1,13],[9,36,9,37],[1,7,1,8],[1,14,1,15],[8,4,8,16]]}
[null,null,null,null,"所属名",{"$f":"IF(名簿!$P$9=\"\",\"\",名簿!$P$9)","v":"三重陸協"},null,null,"中日三重お伊勢さんマラソン公認の部"]
[null,null,null,null,"所属コード",{"$f":"名簿!$Q$9","v":230000}]
[null,null,null,null,"申込者名",{"$f":"IF(名簿!$E$5=\"\",\"\",名簿!$E$5)","v":""}]
[null,null,null,null,"連絡先",{"$f":"IF(名簿!$I$5=\"\",\"\",名簿!$I$5)","v":""},null,null,"大会参加費","5000円"]
[null,null,null,null,"ナンバーカード引換え証を送付しますので、下記を入力願います。"]
[null,null,null,null,"郵便番号"]
[null,null,null,null,"住所"]
[null,null,null,null,"名前",{"$f":"F3","v":""}]
[null,null,null,null,"計測チップを使用します。引換証を受付で提出し、ナンバーをもらって下さい"]
["競技者コード","所属コード",null,null,"登録　　　　　　ナンバー","名前","カナ名","掲示板名","性別","学年又は年齢","生年","生年月日(年)","個人所属地コード","陸連コード","種目","コード","記録",null,null,"今回で連続何回目ですか？",null,null,null,null,null,null,null,null,null,null,null,null,null,null,null,null,"種目別人数"]
[null,{"$f":"名簿!Q9","v":230000},null,null,{"$f":"名簿!E9","v":0},{"$f":"名簿!BN9","v":""},{"$f":"名簿!Z9","v":""},{"$f":"F11","v":""},{"$f":"名簿!O9","v":""},{"$f":"名簿!I9","v":0},{"$f":"名簿!BP9","v":0},{"$f":"名簿!N9","v":"0"},{"$f":"名簿!R9","v":{"$error":"#REF!"}},null,"ハーフ",{"$f":"IF(O11=\"\",\"\",IF(I11=1,VLOOKUP(O11,#REF!,2,FALSE),IF(I11=2,VLOOKUP(O11,#REF!,2,FALSE))))","v":false},null,null,2,null,null,null,null,null,null,null,null,null,null,null,null,null,null,null,null,{"$f":"IF(O11=\"\",\"\",1)","v":1},"男子ハーフ",{"$f":"COUNTIF($P$11:$P$60,1)","v":0}]
[null,{"$f":"名簿!Q10","v":""},null,null,{"$f":"名簿!E10","v":0},{"$f":"名簿!BN10","v":""},{"$f":"名簿!Z10","v":""},"",{"$f":"名簿!O10","v":""},{"$f":"名簿!I10","v":0},{"$f":"名簿!BP10","v":"19"},{"$f":"名簿!N10","v":"0"},{"$f":"名簿!R10","v":""},null,null,{"$f":"IF(O12=\"\",\"\",IF(I12=1,VLOOKUP(O12,#REF!,2,FALSE),IF(I12=2,VLOOKUP(O12,#REF!,2,FALSE))))","v":""},null,null,2,null,null,null,null,null,null,null,null,null,null,null,null,null,null,null,null,"","女子ハーフ",{"$f":"COUNTIF($P$11:$P$60,2)","v":0}]
[null,{"$f":"名簿!Q11","v":""},null,null,{"$f":"名簿!E11","v":0},{"$f":"名簿!BN11","v":""},{"$f":"名簿!Z11","v":""},"",{"$f":"名簿!O11","v":""},{"$f":"名簿!I11","v":0},{"$f":"名簿!BP11","v":"19"},{"$f":"名簿!N11","v":"0"},{"$f":"名簿!R11","v":""},null,null,{"$f":"IF(O13=\"\",\"\",IF(I13=1,VLOOKUP(O13,#REF!,2,FALSE),IF(I13=2,VLOOKUP(O13,#REF!,2,FALSE))))","v":""},null,null,2,null,null,null,null,null,null,null,null,null,null,null,null,null,null,null,null,"","合計",{"$f":"SUM(AL11:AL12)","v":0}]
[null,{"$f":"名簿!Q12","v":""},null,null,{"$f":"名簿!E12","v":0},{"$f":"名簿!BN12","v":""},{"$f":"名簿!Z12","v":""},"",{"$f":"名簿!O12","v":""},{"$f":"名簿!I12","v":0},{"$f":"名簿!BP12","v":"19"},{"$f":"名簿!N12","v":"0"},{"$f":"名簿!R12","v":""},null,null,{"$f":"IF(O14=\"\",\"\",IF(I14=1,VLOOKUP(O14,#REF!,2,FALSE),IF(I14=2,VLOOKUP(O14,#REF!,2,FALSE))))","v":""},null,null,2,null,null,null,null,null,null,null,null,null,null,null,null,null,null,null,null,""]
[null,{"$f":"名簿!Q13","v":""},null,null,{"$f":"名簿!E13","v":0},{"$f":"名簿!BN13","v":""},{"$f":"名簿!Z13","v":""},"",{"$f":"名簿!O13","v":""},{"$f":"名簿!I13","v":0},{"$f":"名簿!BP13","v":"19"},{"$f":"名簿!N13","v":"0"},{"$f":"名簿!R13","v":""},null,null,{"$f":"IF(O15=\"\",\"\",IF(I15=1,VLOOKUP(O15,#REF!,2,FALSE),IF(I15=2,VLOOKUP(O15,#REF!,2,FALSE))))","v":""},null,null,2,null,null,null,null,null,null,null,null,null,null,null,null,null,null,null,null,""]
[null,{"$f":"名簿!Q14","v":""},null,null,{"$f":"名簿!E14","v":0},{"$f":"名簿!BN14","v":""},{"$f":"名簿!Z14","v":""},"",{"$f":"名簿!O14","v":""},{"$f":"名簿!I14","v":0},{"$f":"名簿!BP14","v":"19"},{"$f":"名簿!N14","v":"0"},{"$f":"名簿!R14","v":""},null,null,{"$f":"IF(O16=\"\",\"\",IF(I16=1,VLOOKUP(O16,#REF!,2,FALSE),IF(I16=2,VLOOKUP(O16,#REF!,2,FALSE))))","v":""},null,null,2,null,null,null,null,null,null,null,null,null,null,null,null,null,null,null,null,""]
[null,{"$f":"名簿!Q15","v":""},null,null,{"$f":"名簿!E15","v":0},{"$f":"名簿!BN15","v":""},{"$f":"名簿!Z15","v":""},"",{"$f":"名簿!O15","v":""},{"$f":"名簿!I15","v":0},{"$f":"名簿!BP15","v":"19"},{"$f":"名簿!N15","v":"0"},{"$f":"名簿!R15","v":""},null,null,{"$f":"IF(O17=\"\",\"\",IF(I17=1,VLOOKUP(O17,#REF!,2,FALSE),IF(I17=2,VLOOKUP(O17,#REF!,2,FALSE))))","v":""},null,null,2,null,null,null,null,null,null,null,null,null,null,null,null,null,null,null,null,""]
[null,{"$f":"名簿!Q16","v":""},null,null,{"$f":"名簿!E16","v":0},{"$f":"名簿!BN16","v":""},{"$f":"名簿!Z16","v":""},"",{"$f":"名簿!O16","v":""},{"$f":"名簿!I16","v":0},{"$f":"名簿!BP16","v":"19"},{"$f":"名簿!N16","v":"0"},{"$f":"名簿!R16","v":""},null,null,{"$f":"IF(O18=\"\",\"\",IF(I18=1,VLOOKUP(O18,#REF!,2,FALSE),IF(I18=2,VLOOKUP(O18,#REF!,2,FALSE))))","v":""},null,null,2,null,null,null,null,null,null,null,null,null,null,null,null,null,null,null,null,""]
[null,{"$f":"名簿!Q17","v":""},null,null,{"$f":"名簿!E17","v":0},{"$f":"名簿!BN17","v":""},{"$f":"名簿!Z17","v":""},"",{"$f":"名簿!O17","v":""},{"$f":"名簿!I17","v":0},{"$f":"名簿!BP17","v":"19"},{"$f":"名簿!N17","v":"0"},{"$f":"名簿!R17","v":""},null,null,{"$f":"IF(O19=\"\",\"\",IF(I19=1,VLOOKUP(O19,#REF!,2,FALSE),IF(I19=2,VLOOKUP(O19,#REF!,2,FALSE))))","v":""},null,null,2,null,null,null,null,null,null,null,null,null,null,null,null,null,null,null,null,""]
[null,{"$f":"名簿!Q18","v":""},null,null,{"$f":"名簿!E18","v":0},{"$f":"名簿!BN18","v":""},{"$f":"名簿!Z18","v":""},"",{"$f":"名簿!O18","v":""},{"$f":"名簿!I18","v":0},{"$f":"名簿!BP18","v":"19"},{"$f":"名簿!N18","v":"0"},{"$f":"名簿!R18","v":""},null,null,{"$f":"IF(O20=\"\",\"\",IF(I20=1,VLOOKUP(O20,#REF!,2,FALSE),IF(I20=2,VLOOKUP(O20,#REF!,2,FALSE))))","v":""},null,null,2,null,null,null,null,null,null,null,null,null,null,null,null,null,null,null,null,""]
[null,{"$f":"名簿!Q19","v":""},null,null,{"$f":"名簿!E19","v":0},{"$f":"名簿!BN19","v":""},{"$f":"名簿!Z19","v":""},"",{"$f":"名簿!O19","v":""},{"$f":"名簿!I19","v":0},{"$f":"名簿!BP19","v":"19"},{"$f":"名簿!N19","v":"0"},{"$f":"名簿!R19","v":""},null,null,{"$f":"IF(O21=\"\",\"\",IF(I21=1,VLOOKUP(O21,#REF!,2,FALSE),IF(I21=2,VLOOKUP(O21,#REF!,2,FALSE))))","v":""},null,null,2,null,null,null,null,null,null,null,null,null,null,null,null,null,null,null,null,""]
[null,{"$f":"名簿!Q20","v":""},null,null,{"$f":"名簿!E20","v":0},{"$f":"名簿!BN20","v":""},{"$f":"名簿!Z20","v":""},"",{"$f":"名簿!O20","v":""},{"$f":"名簿!I20","v":0},{"$f":"名簿!BP20","v":"19"},{"$f":"名簿!N20","v":"0"},{"$f":"名簿!R20","v":""},null,null,{"$f":"IF(O22=\"\",\"\",IF(I22=1,VLOOKUP(O22,#REF!,2,FALSE),IF(I22=2,VLOOKUP(O22,#REF!,2,FALSE))))","v":""},null,null,2,null,null,null,null,null,null,null,null,null,null,null,null,null,null,null,null,""]
[null,{"$f":"名簿!Q21","v":""},null,null,{"$f":"名簿!E21","v":0},{"$f":"名簿!BN21","v":""},{"$f":"名簿!Z21","v":""},"",{"$f":"名簿!O21","v":""},{"$f":"名簿!I21","v":0},{"$f":"名簿!BP21","v":"19"},{"$f":"名簿!N21","v":"0"},{"$f":"名簿!R21","v":""},null,null,{"$f":"IF(O23=\"\",\"\",IF(I23=1,VLOOKUP(O23,#REF!,2,FALSE),IF(I23=2,VLOOKUP(O23,#REF!,2,FALSE))))","v":""},null,null,2,null,null,null,null,null,null,null,null,null,null,null,null,null,null,null,null,""]
[null,{"$f":"名簿!Q22","v":""},null,null,{"$f":"名簿!E22","v":0},{"$f":"名簿!BN22","v":""},{"$f":"名簿!Z22","v":""},"",{"$f":"名簿!O22","v":""},{"$f":"名簿!I22","v":0},{"$f":"名簿!BP22","v":"19"},{"$f":"名簿!N22","v":"0"},{"$f":"名簿!R22","v":""},null,null,{"$f":"IF(O24=\"\",\"\",IF(I24=1,VLOOKUP(O24,#REF!,2,FALSE),IF(I24=2,VLOOKUP(O24,#REF!,2,FALSE))))","v":""},null,null,2,null,null,null,null,null,null,null,null,null,null,null,null,null,null,null,null,""]
[null,{"$f":"名簿!Q23","v":""},null,null,{"$f":"名簿!E23","v":0},{"$f":"名簿!BN23","v":""},{"$f":"名簿!Z23","v":""},"",{"$f":"名簿!O23","v":""},{"$f":"名簿!I23","v":0},{"$f":"名簿!BP23","v":"19"},{"$f":"名簿!N23","v":"0"},{"$f":"名簿!R23","v":""},null,null,{"$f":"IF(O25=\"\",\"\",IF(I25=1,VLOOKUP(O25,#REF!,2,FALSE),IF(I25=2,VLOOKUP(O25,#REF!,2,FALSE))))","v":""},null,null,2,null,null,null,null,null,null,null,null,null,null,null,null,null,null,null,null,""]
[null,{"$f":"名簿!Q24","v":""},null,null,{"$f":"名簿!E24","v":0},{"$f":"名簿!BN24","v":""},{"$f":"名簿!Z24","v":""},"",{"$f":"名簿!O24","v":""},{"$f":"名簿!I24","v":0},{"$f":"名簿!BP24","v":"19"},{"$f":"名簿!N24","v":"0"},{"$f":"名簿!R24","v":""},null,null,{"$f":"IF(O26=\"\",\"\",IF(I26=1,VLOOKUP(O26,#REF!,2,FALSE),IF(I26=2,VLOOKUP(O26,#REF!,2,FALSE))))","v":""},null,null,2,null,null,null,null,null,null,null,null,null,null,null,null,null,null,null,null,""]
[null,{"$f":"名簿!Q25","v":""},null,null,{"$f":"名簿!E25","v":0},{"$f":"名簿!BN25","v":""},{"$f":"名簿!Z25","v":""},"",{"$f":"名簿!O25","v":""},{"$f":"名簿!I25","v":0},{"$f":"名簿!BP25","v":"19"},{"$f":"名簿!N25","v":"0"},{"$f":"名簿!R25","v":""},null,null,{"$f":"IF(O27=\"\",\"\",IF(I27=1,VLOOKUP(O27,#REF!,2,FALSE),IF(I27=2,VLOOKUP(O27,#REF!,2,FALSE))))","v":""},null,null,2,null,null,null,null,null,null,null,null,null,null,null,null,null,null,null,null,""]
[null,{"$f":"名簿!Q26","v":""},null,null,{"$f":"名簿!E26","v":0},{"$f":"名簿!BN26","v":""},{"$f":"名簿!Z26","v":""},"",{"$f":"名簿!O26","v":""},{"$f":"名簿!I26","v":0},{"$f":"名簿!BP26","v":"19"},{"$f":"名簿!N26","v":"0"},{"$f":"名簿!R26","v":""},null,null,{"$f":"IF(O28=\"\",\"\",IF(I28=1,VLOOKUP(O28,#REF!,2,FALSE),IF(I28=2,VLOOKUP(O28,#REF!,2,FALSE))))","v":""},null,null,2,null,null,null,null,null,null,null,null,null,null,null,null,null,null,null,null,""]
[null,{"$f":"名簿!Q27","v":""},null,null,{"$f":"名簿!E27","v":0},{"$f":"名簿!BN27","v":""},{"$f":"名簿!Z27","v":""},"",{"$f":"名簿!O27","v":""},{"$f":"名簿!I27","v":0},{"$f":"名簿!BP27","v":"19"},{"$f":"名簿!N27","v":"0"},{"$f":"名簿!R27","v":""},null,null,{"$f":"IF(O29=\"\",\"\",IF(I29=1,VLOOKUP(O29,#REF!,2,FALSE),IF(I29=2,VLOOKUP(O29,#REF!,2,FALSE))))","v":""},null,null,2,null,null,null,null,null,null,null,null,null,null,null,null,null,null,null,null,""]
[null,{"$f":"名簿!Q28","v":""},null,null,{"$f":"名簿!E28","v":0},{"$f":"名簿!BN28","v":""},{"$f":"名簿!Z28","v":""},"",{"$f":"名簿!O28","v":""},{"$f":"名簿!I28","v":0},{"$f":"名簿!BP28","v":"19"},{"$f":"名簿!N28","v":"0"},{"$f":"名簿!R28","v":""},null,null,{"$f":"IF(O30=\"\",\"\",IF(I30=1,VLOOKUP(O30,#REF!,2,FALSE),IF(I30=2,VLOOKUP(O30,#REF!,2,FALSE))))","v":""},null,null,2,null,null,null,null,null,null,null,null,null,null,null,null,null,null,null,null,""]
[null,{"$f":"名簿!Q29","v":""},null,null,{"$f":"名簿!E29","v":0},{"$f":"名簿!BN29","v":""},{"$f":"名簿!Z29","v":""},"",{"$f":"名簿!O29","v":""},{"$f":"名簿!I29","v":0},{"$f":"名簿!BP29","v":"19"},{"$f":"名簿!N29","v":"0"},{"$f":"名簿!R29","v":""},null,null,{"$f":"IF(O31=\"\",\"\",IF(I31=1,VLOOKUP(O31,#REF!,2,FALSE),IF(I31=2,VLOOKUP(O31,#REF!,2,FALSE))))","v":""},null,null,2,null,null,null,null,null,null,null,null,null,null,null,null,null,null,null,null,""]
[null,{"$f":"名簿!Q30","v":""},null,null,{"$f":"名簿!E30","v":0},{"$f":"名簿!BN30","v":""},{"$f":"名簿!Z30","v":""},"",{"$f":"名簿!O30","v":""},{"$f":"名簿!I30","v":0},{"$f":"名簿!BP30","v":"19"},{"$f":"名簿!N30","v":"0"},{"$f":"名簿!R30","v":""},null,null,{"$f":"IF(O32=\"\",\"\",IF(I32=1,VLOOKUP(O32,#REF!,2,FALSE),IF(I32=2,VLOOKUP(O32,#REF!,2,FALSE))))","v":""},null,null,2,null,null,null,null,null,null,null,null,null,null,null,null,null,null,null,null,""]
[null,{"$f":"名簿!Q31","v":""},null,null,{"$f":"名簿!E31","v":0},{"$f":"名簿!BN31","v":""},{"$f":"名簿!Z31","v":""},"",{"$f":"名簿!O31","v":""},{"$f":"名簿!I31","v":0},{"$f":"名簿!BP31","v":"19"},{"$f":"名簿!N31","v":"0"},{"$f":"名簿!R31","v":""},null,null,{"$f":"IF(O33=\"\",\"\",IF(I33=1,VLOOKUP(O33,#REF!,2,FALSE),IF(I33=2,VLOOKUP(O33,#REF!,2,FALSE))))","v":""},null,null,2,null,null,null,null,null,null,null,null,null,null,null,null,null,null,null,null,""]
[null,{"$f":"名簿!Q32","v":""},null,null,{"$f":"名簿!E32","v":0},{"$f":"名簿!BN32","v":""},{"$f":"名簿!Z32","v":""},"",{"$f":"名簿!O32","v":""},{"$f":"名簿!I32","v":0},{"$f":"名簿!BP32","v":"19"},{"$f":"名簿!N32","v":"0"},{"$f":"名簿!R32","v":""},null,null,{"$f":"IF(O34=\"\",\"\",IF(I34=1,VLOOKUP(O34,#REF!,2,FALSE),IF(I34=2,VLOOKUP(O34,#REF!,2,FALSE))))","v":""},null,null,2,null,null,null,null,null,null,null,null,null,null,null,null,null,null,null,null,""]
[null,{"$f":"名簿!Q33","v":""},null,null,{"$f":"名簿!E33","v":0},{"$f":"名簿!BN33","v":""},{"$f":"名簿!Z33","v":""},"",{"$f":"名簿!O33","v":""},{"$f":"名簿!I33","v":0},{"$f":"名簿!BP33","v":"19"},{"$f":"名簿!N33","v":"0"},{"$f":"名簿!R33","v":""},null,null,{"$f":"IF(O35=\"\",\"\",IF(I35=1,VLOOKUP(O35,#REF!,2,FALSE),IF(I35=2,VLOOKUP(O35,#REF!,2,FALSE))))","v":""},null,null,2,null,null,null,null,null,null,null,null,null,null,null,null,null,null,null,null,""]
[null,{"$f":"名簿!Q34","v":""},null,null,{"$f":"名簿!E34","v":0},{"$f":"名簿!BN34","v":""},{"$f":"名簿!Z34","v":""},"",{"$f":"名簿!O34","v":""},{"$f":"名簿!I34","v":0},{"$f":"名簿!BP34","v":"19"},{"$f":"名簿!N34","v":"0"},{"$f":"名簿!R34","v":""},null,null,{"$f":"IF(O36=\"\",\"\",IF(I36=1,VLOOKUP(O36,#REF!,2,FALSE),IF(I36=2,VLOOKUP(O36,#REF!,2,FALSE))))","v":""},null,null,2,null,null,null,null,null,null,null,null,null,null,null,null,null,null,null,null,""]
[null,{"$f":"名簿!Q35","v":""},null,null,{"$f":"名簿!E35","v":0},{"$f":"名簿!BN35","v":""},{"$f":"名簿!Z35","v":""},"",{"$f":"名簿!O35","v":""},{"$f":"名簿!I35","v":0},{"$f":"名簿!BP35","v":"19"},{"$f":"名簿!N35","v":"0"},{"$f":"名簿!R35","v":""},null,null,{"$f":"IF(O37=\"\",\"\",IF(I37=1,VLOOKUP(O37,#REF!,2,FALSE),IF(I37=2,VLOOKUP(O37,#REF!,2,FALSE))))","v":""},null,null,2,null,null,null,null,null,null,null,null,null,null,null,null,null,null,null,null,""]
[null,{"$f":"名簿!Q36","v":""},null,null,{"$f":"名簿!E36","v":0},{"$f":"名簿!BN36","v":""},{"$f":"名簿!Z36","v":""},"",{"$f":"名簿!O36","v":""},{"$f":"名簿!I36","v":0},{"$f":"名簿!BP36","v":"19"},{"$f":"名簿!N36","v":"0"},{"$f":"名簿!R36","v":""},null,null,{"$f":"IF(O38=\"\",\"\",IF(I38=1,VLOOKUP(O38,#REF!,2,FALSE),IF(I38=2,VLOOKUP(O38,#REF!,2,FALSE))))","v":""},null,null,2,null,null,null,null,null,null,null,null,null,null,null,null,null,null,null,null,""]
[null,{"$f":"名簿!Q37","v":""},null,null,{"$f":"名簿!E37","v":0},{"$f":"名簿!BN37","v":""},{"$f":"名簿!Z37","v":""},"",{"$f":"名簿!O37","v":""},{"$f":"名簿!I37","v":0},{"$f":"名簿!BP37","v":"19"},{"$f":"名簿!N37","v":"0"},{"$f":"名簿!R37","v":""},null,null,{"$f":"IF(O39=\"\",\"\",IF(I39=1,VLOOKUP(O39,#REF!,2,FALSE),IF(I39=2,VLOOKUP(O39,#REF!,2,FALSE))))","v":""},null,null,2,null,null,null,null,null,null,null,null,null,null,null,null,null,null,null,null,""]
[null,{"$f":"名簿!Q38","v":""},null,null,{"$f":"名簿!E38","v":0},{"$f":"名簿!BN38","v":""},{"$f":"名簿!Z38","v":""},"",{"$f":"名簿!O38","v":""},{"$f":"名簿!I38","v":0},{"$f":"名簿!BP38","v":"19"},{"$f":"名簿!N38","v":"0"},{"$f":"名簿!R38","v":""},null,null,{"$f":"IF(O40=\"\",\"\",IF(I40=1,VLOOKUP(O40,#REF!,2,FALSE),IF(I40=2,VLOOKUP(O40,#REF!,2,FALSE))))","v":""},null,null,2,null,null,null,null,null,null,null,null,null,null,null,null,null,null,null,null,""]
[null,{"$f":"名簿!Q39","v":""},null,null,{"$f":"名簿!E39","v":0},{"$f":"名簿!BN39","v":""},{"$f":"名簿!Z39","v":""},"",{"$f":"名簿!O39","v":""},{"$f":"名簿!I39","v":0},{"$f":"名簿!BP39","v":"19"},{"$f":"名簿!N39","v":"0"},{"$f":"名簿!R39","v":""},null,null,{"$f":"IF(O41=\"\",\"\",IF(I41=1,VLOOKUP(O41,#REF!,2,FALSE),IF(I41=2,VLOOKUP(O41,#REF!,2,FALSE))))","v":""},null,null,2,null,null,null,null,null,null,null,null,null,null,null,null,null,null,null,null,""]
[null,{"$f":"名簿!Q40","v":""},null,null,{"$f":"名簿!E40","v":0},{"$f":"名簿!BN40","v":""},{"$f":"名簿!Z40","v":""},"",{"$f":"名簿!O40","v":""},{"$f":"名簿!I40","v":0},{"$f":"名簿!BP40","v":"19"},{"$f":"名簿!N40","v":"0"},{"$f":"名簿!R40","v":""},null,null,{"$f":"IF(O42=\"\",\"\",IF(I42=1,VLOOKUP(O42,#REF!,2,FALSE),IF(I42=2,VLOOKUP(O42,#REF!,2,FALSE))))","v":""},null,null,2,null,null,null,null,null,null,null,null,null,null,null,null,null,null,null,null,""]
[null,{"$f":"名簿!Q41","v":""},null,null,{"$f":"名簿!E41","v":0},{"$f":"名簿!BN41","v":""},{"$f":"名簿!Z41","v":""},{"$f":"F43","v":""},{"$f":"名簿!O41","v":""},{"$f":"名簿!I41","v":0},{"$f":"名簿!BP41","v":"19"},{"$f":"名簿!N41","v":"0"},{"$f":"名簿!R41","v":""},null,null,{"$f":"IF(O43=\"\",\"\",IF(I43=1,VLOOKUP(O43,#REF!,2,FALSE),IF(I43=2,VLOOKUP(O43,#REF!,2,FALSE))))","v":""},null,null,2,null,null,null,null,null,null,null,null,null,null,null,null,null,null,null,null,{"$f":"IF(O43=\"\",\"\",1)","v":""}]
[null,{"$f":"名簿!Q42","v":""},null,null,{"$f":"名簿!E42","v":0},{"$f":"名簿!BN42","v":""},{"$f":"名簿!Z42","v":""},"",{"$f":"名簿!O42","v":""},{"$f":"名簿!I42","v":0},{"$f":"名簿!BP42","v":"19"},{"$f":"名簿!N42","v":"0"},{"$f":"名簿!R42","v":""},null,null,{"$f":"IF(O44=\"\",\"\",IF(I44=1,VLOOKUP(O44,#REF!,2,FALSE),IF(I44=2,VLOOKUP(O44,#REF!,2,FALSE))))","v":""},null,null,2,null,null,null,null,null,null,null,null,null,null,null,null,null,null,null,null,""]
[null,{"$f":"名簿!Q43","v":""},null,null,{"$f":"名簿!E43","v":0},{"$f":"名簿!BN43","v":""},{"$f":"名簿!Z43","v":""},"",{"$f":"名簿!O43","v":""},{"$f":"名簿!I43","v":0},{"$f":"名簿!BP43","v":"19"},{"$f":"名簿!N43","v":"0"},{"$f":"名簿!R43","v":""},null,null,{"$f":"IF(O45=\"\",\"\",IF(I45=1,VLOOKUP(O45,#REF!,2,FALSE),IF(I45=2,VLOOKUP(O45,#REF!,2,FALSE))))","v":""},null,null,2,null,null,null,null,null,null,null,null,null,null,null,null,null,null,null,null,""]
[null,{"$f":"名簿!Q44","v":""},null,null,{"$f":"名簿!E44","v":0},{"$f":"名簿!BN44","v":""},{"$f":"名簿!Z44","v":""},"",{"$f":"名簿!O44","v":""},{"$f":"名簿!I44","v":0},{"$f":"名簿!BP44","v":"19"},{"$f":"名簿!N44","v":"0"},{"$f":"名簿!R44","v":""},null,null,{"$f":"IF(O46=\"\",\"\",IF(I46=1,VLOOKUP(O46,#REF!,2,FALSE),IF(I46=2,VLOOKUP(O46,#REF!,2,FALSE))))","v":""},null,null,2,null,null,null,null,null,null,null,null,null,null,null,null,null,null,null,null,""]
[null,{"$f":"名簿!Q45","v":""},null,null,{"$f":"名簿!E45","v":0},{"$f":"名簿!BN45","v":""},{"$f":"名簿!Z45","v":""},"",{"$f":"名簿!O45","v":""},{"$f":"名簿!I45","v":0},{"$f":"名簿!BP45","v":"19"},{"$f":"名簿!N45","v":"0"},{"$f":"名簿!R45","v":""},null,null,{"$f":"IF(O47=\"\",\"\",IF(I47=1,VLOOKUP(O47,#REF!,2,FALSE),IF(I47=2,VLOOKUP(O47,#REF!,2,FALSE))))","v":""},null,null,2,null,null,null,null,null,null,null,null,null,null,null,null,null,null,null,null,""]
[null,{"$f":"名簿!Q46","v":""},null,null,{"$f":"名簿!E46","v":0},{"$f":"名簿!BN46","v":""},{"$f":"名簿!Z46","v":""},"",{"$f":"名簿!O46","v":""},{"$f":"名簿!I46","v":0},{"$f":"名簿!BP46","v":"19"},{"$f":"名簿!N46","v":"0"},{"$f":"名簿!R46","v":""},null,null,{"$f":"IF(O48=\"\",\"\",IF(I48=1,VLOOKUP(O48,#REF!,2,FALSE),IF(I48=2,VLOOKUP(O48,#REF!,2,FALSE))))","v":""},null,null,2,null,null,null,null,null,null,null,null,null,null,null,null,null,null,null,null,""]
[null,{"$f":"名簿!Q47","v":""},null,null,{"$f":"名簿!E47","v":0},{"$f":"名簿!BN47","v":""},{"$f":"名簿!Z47","v":""},"",{"$f":"名簿!O47","v":""},{"$f":"名簿!I47","v":0},{"$f":"名簿!BP47","v":"19"},{"$f":"名簿!N47","v":"0"},{"$f":"名簿!R47","v":""},null,null,{"$f":"IF(O49=\"\",\"\",IF(I49=1,VLOOKUP(O49,#REF!,2,FALSE),IF(I49=2,VLOOKUP(O49,#REF!,2,FALSE))))","v":""},null,null,2,null,null,null,null,null,null,null,null,null,null,null,null,null,null,null,null,""]
[null,{"$f":"名簿!Q48","v":""},null,null,{"$f":"名簿!E48","v":0},{"$f":"名簿!BN48","v":""},{"$f":"名簿!Z48","v":""},"",{"$f":"名簿!O48","v":""},{"$f":"名簿!I48","v":0},{"$f":"名簿!BP48","v":"19"},{"$f":"名簿!N48","v":"0"},{"$f":"名簿!R48","v":""},null,null,{"$f":"IF(O50=\"\",\"\",IF(I50=1,VLOOKUP(O50,#REF!,2,FALSE),IF(I50=2,VLOOKUP(O50,#REF!,2,FALSE))))","v":""},null,null,2,null,null,null,null,null,null,null,null,null,null,null,null,null,null,null,null,""]
[null,{"$f":"名簿!Q49","v":""},null,null,{"$f":"名簿!E49","v":0},{"$f":"名簿!BN49","v":""},{"$f":"名簿!Z49","v":""},"",{"$f":"名簿!O49","v":""},{"$f":"名簿!I49","v":0},{"$f":"名簿!BP49","v":"19"},{"$f":"名簿!N49","v":"0"},{"$f":"名簿!R49","v":""},null,null,{"$f":"IF(O51=\"\",\"\",IF(I51=1,VLOOKUP(O51,#REF!,2,FALSE),IF(I51=2,VLOOKUP(O51,#REF!,2,FALSE))))","v":""},null,null,2,null,null,null,null,null,null,null,null,null,null,null,null,null,null,null,null,""]
[null,{"$f":"名簿!Q50","v":""},null,null,{"$f":"名簿!E50","v":0},{"$f":"名簿!BN50","v":""},{"$f":"名簿!Z50","v":""},"",{"$f":"名簿!O50","v":""},{"$f":"名簿!I50","v":0},{"$f":"名簿!BP50","v":"19"},{"$f":"名簿!N50","v":"0"},{"$f":"名簿!R50","v":""},null,null,{"$f":"IF(O52=\"\",\"\",IF(I52=1,VLOOKUP(O52,#REF!,2,FALSE),IF(I52=2,VLOOKUP(O52,#REF!,2,FALSE))))","v":""},null,null,2,null,null,null,null,null,null,null,null,null,null,null,null,null,null,null,null,""]
[null,{"$f":"名簿!Q51","v":""},null,null,{"$f":"名簿!E51","v":0},{"$f":"名簿!BN51","v":""},{"$f":"名簿!Z51","v":""},"",{"$f":"名簿!O51","v":""},{"$f":"名簿!I51","v":0},{"$f":"名簿!BP51","v":"19"},{"$f":"名簿!N51","v":"0"},{"$f":"名簿!R51","v":""},null,null,{"$f":"IF(O53=\"\",\"\",IF(I53=1,VLOOKUP(O53,#REF!,2,FALSE),IF(I53=2,VLOOKUP(O53,#REF!,2,FALSE))))","v":""},null,null,2,null,null,null,null,null,null,null,null,null,null,null,null,null,null,null,null,""]
[null,{"$f":"名簿!Q52","v":""},null,null,{"$f":"名簿!E52","v":0},{"$f":"名簿!BN52","v":""},{"$f":"名簿!Z52","v":""},"",{"$f":"名簿!O52","v":""},{"$f":"名簿!I52","v":0},{"$f":"名簿!BP52","v":"19"},{"$f":"名簿!N52","v":"0"},{"$f":"名簿!R52","v":""},null,null,{"$f":"IF(O54=\"\",\"\",IF(I54=1,VLOOKUP(O54,#REF!,2,FALSE),IF(I54=2,VLOOKUP(O54,#REF!,2,FALSE))))","v":""},null,null,2,null,null,null,null,null,null,null,null,null,null,null,null,null,null,null,null,""]
[null,{"$f":"名簿!Q53","v":""},null,null,{"$f":"名簿!E53","v":0},{"$f":"名簿!BN53","v":""},{"$f":"名簿!Z53","v":""},"",{"$f":"名簿!O53","v":""},{"$f":"名簿!I53","v":0},{"$f":"名簿!BP53","v":"19"},{"$f":"名簿!N53","v":"0"},{"$f":"名簿!R53","v":""},null,null,{"$f":"IF(O55=\"\",\"\",IF(I55=1,VLOOKUP(O55,#REF!,2,FALSE),IF(I55=2,VLOOKUP(O55,#REF!,2,FALSE))))","v":""},null,null,2,null,null,null,null,null,null,null,null,null,null,null,null,null,null,null,null,""]
[null,{"$f":"名簿!Q54","v":""},null,null,{"$f":"名簿!E54","v":0},{"$f":"名簿!BN54","v":""},{"$f":"名簿!Z54","v":""},"",{"$f":"名簿!O54","v":""},{"$f":"名簿!I54","v":0},{"$f":"名簿!BP54","v":"19"},{"$f":"名簿!N54","v":"0"},{"$f":"名簿!R54","v":""},null,null,{"$f":"IF(O56=\"\",\"\",IF(I56=1,VLOOKUP(O56,#REF!,2,FALSE),IF(I56=2,VLOOKUP(O56,#REF!,2,FALSE))))","v":""},null,null,2,null,null,null,null,null,null,null,null,null,null,null,null,null,null,null,null,""]
[null,{"$f":"名簿!Q55","v":""},null,null,{"$f":"名簿!E55","v":0},{"$f":"名簿!BN55","v":""},{"$f":"名簿!Z55","v":""},"",{"$f":"名簿!O55","v":""},{"$f":"名簿!I55","v":0},{"$f":"名簿!BP55","v":"19"},{"$f":"名簿!N55","v":"0"},{"$f":"名簿!R55","v":""},null,null,{"$f":"IF(O57=\"\",\"\",IF(I57=1,VLOOKUP(O57,#REF!,2,FALSE),IF(I57=2,VLOOKUP(O57,#REF!,2,FALSE))))","v":""},null,null,2,null,null,null,null,null,null,null,null,null,null,null,null,null,null,null,null,""]
[null,{"$f":"名簿!Q56","v":""},null,null,{"$f":"名簿!E56","v":0},{"$f":"名簿!BN56","v":""},{"$f":"名簿!Z56","v":""},"",{"$f":"名簿!O56","v":""},{"$f":"名簿!I56","v":0},{"$f":"名簿!BP56","v":"19"},{"$f":"名簿!N56","v":"0"},{"$f":"名簿!R56","v":""},null,null,{"$f":"IF(O58=\"\",\"\",IF(I58=1,VLOOKUP(O58,#REF!,2,FALSE),IF(I58=2,VLOOKUP(O58,#REF!,2,FALSE))))","v":""},null,null,2,null,null,null,null,null,null,null,null,null,null,null,null,null,null,null,null,""]
[null,{"$f":"名簿!Q57","v":""},null,null,{"$f":"名簿!E57","v":0},{"$f":"名簿!BN57","v":""},{"$f":"名簿!Z57","v":""},"",{"$f":"名簿!O57","v":""},{"$f":"名簿!I57","v":0},{"$f":"名簿!BP57","v":"19"},{"$f":"名簿!N57","v":"0"},{"$f":"名簿!R57","v":""},null,null,{"$f":"IF(O59=\"\",\"\",IF(I59=1,VLOOKUP(O59,#REF!,2,FALSE),IF(I59=2,VLOOKUP(O59,#REF!,2,FALSE))))","v":""},null,null,2,null,null,null,null,null,null,null,null,null,null,null,null,null,null,null,null,""]
[null,{"$f":"名簿!Q58","v":""},null,null,{"$f":"名簿!E58","v":0},{"$f":"名簿!BN58","v":""},{"$f":"名簿!Z58","v":""},"",{"$f":"名簿!O58","v":""},{"$f":"名簿!I58","v":0},{"$f":"名簿!BP58","v":"19"},{"$f":"名簿!N58","v":"0"},{"$f":"名簿!R58","v":""},null,null,{"$f":"IF(O60=\"\",\"\",IF(I60=1,VLOOKUP(O60,#REF!,2,FALSE),IF(I60=2,VLOOKUP(O60,#REF!,2,FALSE))))","v":""},null,null,2,null,null,null,null,null,null,null,null,null,null,null,null,null,null,null,null,""]
[null,null,null,null,null,null,null,null,null,null,null,null,null,null,null,null,null,null,null,null,null,null,null,null,null,null,null,null,null,null,null,null,null,{"$f":"SUM(AJ11:AJ60)","v":1}]
[]
[]
[]
[]
[]
[]
[]
[]
[]
[null,null,null,null,"種目",{"$f":"AL12+#REF!+#REF!","v":{"$error":"#REF!"}}]
[null,null,null,null,"ハーフ",{"$f":"AL11+#REF!","v":{"$error":"#REF!"}}]

{"sheet":"SF","index":9,"n_rows":57,"n_cols":40,"rows_kept":57,"cut":false,"hidden":false,"merged":[[1,7,1,8],[1,12,1,13],[1,14,1,15],[5,38,5,39]]}
[null,null,null,null,"所属名",{"$f":"IF(名簿!$P$9=\"\",\"\",名簿!$P$9)","v":"三重陸協"},null,null,"みえスポーツフェスティバル"]
[null,null,null,null,"所属コード",{"$f":"名簿!$Q$9","v":230000}]
[null,null,null,null,"申込者名",{"$f":"IF(名簿!$E$5=\"\",\"\",名簿!$E$5)","v":""}]
[null,null,null,null,"連絡先",{"$f":"IF(名簿!$I$5=\"\",\"\",名簿!$I$5)","v":""},null,null,"大会参加費",null,null,null,null,null,{"$f":"AN11*1000+O5*800","v":0}]
[null,null,null,null,null,null,null,null,"プログラム冊数",null,null,null,null,null,null,null,"冊"]
["競技者コード","所属コード",null,null,"ナンバー","名前","カナ名","掲示板名","性別","学年","生年","月日","所属地","陸連コード","種目","コード","記録",null,null,"種目2",null,"記録",null,null,null,null,null,null,null,null,null,null,null,null,null,null,null,null,"種目別人数"]
[null,{"$f":"名簿!Q9","v":230000},null,null,{"$f":"名簿!E9","v":0},{"$f":"名簿!BN9","v":""},{"$f":"名簿!Z9","v":""},{"$f":"F7","v":""},{"$f":"名簿!O9","v":""},{"$f":"名簿!I9","v":0},{"$f":"名簿!BP9","v":0},{"$f":"名簿!N9","v":"0"},{"$f":"名簿!R9","v":{"$error":"#REF!"}},23,null,{"$f":"IF(O7=\"\",\"\",IF($I$7=1,VLOOKUP(O7,#REF!,2,FALSE),IF($I$7=2,VLOOKUP(O7,#REF!,2,FALSE))))","v":""},null,0,2,null,{"$f":"IF(T7=\"\",\"\",IF($I$7=1,VLOOKUP(T7,#REF!,2,FALSE),IF($I$7=2,VLOOKUP(T7,#REF!,2,FALSE))))","v":""},null,null,"2",null,null,null,null,null,null,null,null,null,null,null,null,100,{"$f":"IF(O7=\"\",\"\",1)","v":""},"男子100",{"$f":"COUNTIF($P$7:$P$56,1)+COUNTIF($U$7:$U$56,1)","v":0}]
[null,{"$f":"名簿!Q10","v":""},null,null,null,null,null,null,null,null,null,null,null,null,null,null,null,0,2,null,null,null,null,null,null,null,null,null,null,null,null,null,null,null,null,null,3000,"","男子5000",{"$f":"COUNTIF($P$7:$P$56,3)+COUNTIF($U$7:$U$56,3)","v":0}]
[null,{"$f":"名簿!Q11","v":""},null,null,null,null,null,null,null,null,null,null,null,null,null,null,null,0,2,null,null,null,null,null,null,null,null,null,null,null,null,null,null,null,null,null,5000,"","女子100",{"$f":"COUNTIF($P$7:$P$56,5)+COUNTIF($U$7:$U$56,5)","v":0}]
[null,{"$f":"名簿!Q12","v":""},null,null,null,null,null,null,null,null,null,null,null,null,null,null,null,0,2,null,null,null,null,null,null,null,null,null,null,null,null,null,null,null,null,null,null,"","一般高校女子3000",{"$f":"COUNTIF($P$7:$P$56,6)+COUNTIF($U$7:$U$56,6)","v":0}]
[null,{"$f":"名簿!Q13","v":""},null,null,null,null,null,null,null,null,null,null,null,null,null,null,null,0,2,null,null,null,null,null,null,null,null,null,null,null,null,null,null,null,null,null,null,"","合計",{"$f":"SUM(AN7:AN10)","v":0}]
[null,{"$f":"名簿!Q14","v":""},null,null,null,null,null,null,null,null,null,null,null,null,null,null,null,0,2,null,null,null,null,null,null,null,null,null,null,null,null,null,null,null,null,null,null,""]
[null,{"$f":"名簿!Q15","v":""},null,null,null,null,null,null,null,null,null,null,null,null,null,null,null,0,2,null,null,null,null,null,null,null,null,null,null,null,null,null,null,null,null,null,null,""]
[null,{"$f":"名簿!Q16","v":""},null,null,null,null,null,null,null,null,null,null,null,null,null,null,null,0,2,null,null,null,null,null,null,null,null,null,null,null,null,null,null,null,null,null,null,""]
[null,{"$f":"名簿!Q17","v":""},null,null,null,null,null,null,null,null,null,null,null,null,null,null,null,0,2,null,null,null,null,null,null,null,null,null,null,null,null,null,null,null,null,null,null,""]
[null,{"$f":"名簿!Q18","v":""},null,null,null,null,null,null,null,null,null,null,null,null,null,null,null,0,2,null,null,null,null,null,null,null,null,null,null,null,null,null,null,null,null,null,null,""]
[null,{"$f":"名簿!Q19","v":""},null,null,null,null,null,null,null,null,null,null,null,null,null,null,null,0,2,null,null,null,null,null,null,null,null,null,null,null,null,null,null,null,null,null,null,""]
[null,{"$f":"名簿!Q20","v":""},null,null,null,null,null,null,null,null,null,null,null,null,null,null,null,0,2,null,null,null,null,null,null,null,null,null,null,null,null,null,null,null,null,null,null,""]
[null,{"$f":"名簿!Q21","v":""},null,null,null,null,null,null,null,null,null,null,null,null,null,null,null,0,2,null,null,null,null,null,null,null,null,null,null,null,null,null,null,null,null,null,null,""]
[null,{"$f":"名簿!Q22","v":""},null,null,null,null,null,null,null,null,null,null,null,null,null,null,null,0,2,null,null,null,null,null,null,null,null,null,null,null,null,null,null,null,null,null,null,""]
[null,{"$f":"名簿!Q23","v":""},null,null,null,null,null,null,null,null,null,null,null,null,null,null,null,0,2,null,null,null,null,null,null,null,null,null,null,null,null,null,null,null,null,null,null,""]
[null,{"$f":"名簿!Q24","v":""},null,null,null,null,null,null,null,null,null,null,null,null,null,null,null,0,2,null,null,null,null,null,null,null,null,null,null,null,null,null,null,null,null,null,null,""]
[null,{"$f":"名簿!Q25","v":""},null,null,null,null,null,null,null,null,null,null,null,null,null,null,null,0,2,null,null,null,null,null,null,null,null,null,null,null,null,null,null,null,null,null,null,""]
[null,{"$f":"名簿!Q26","v":""},null,null,null,null,null,null,null,null,null,null,null,null,null,null,null,0,2,null,null,null,null,null,null,null,null,null,null,null,null,null,null,null,null,null,null,""]
[null,{"$f":"名簿!Q27","v":""},null,null,null,null,null,null,null,null,null,null,null,null,null,null,null,0,2,null,null,null,null,null,null,null,null,null,null,null,null,null,null,null,null,null,null,""]
[null,{"$f":"名簿!Q28","v":""},null,null,null,null,null,null,null,null,null,null,null,null,null,null,null,0,2,null,null,null,null,null,null,null,null,null,null,null,null,null,null,null,null,null,null,""]
[null,{"$f":"名簿!Q29","v":""},null,null,null,null,null,null,null,null,null,null,null,null,null,null,null,0,2,null,null,null,null,null,null,null,null,null,null,null,null,null,null,null,null,null,null,""]
[null,{"$f":"名簿!Q30","v":""},null,null,null,null,null,null,null,null,null,null,null,null,null,null,null,0,2,null,null,null,null,null,null,null,null,null,null,null,null,null,null,null,null,null,null,""]
[null,{"$f":"名簿!Q31","v":""},null,null,null,null,null,null,null,null,null,null,null,null,null,null,null,0,2,null,null,null,null,null,null,null,null,null,null,null,null,null,null,null,null,null,null,""]
[null,{"$f":"名簿!Q32","v":""},null,null,null,null,null,null,null,null,null,null,null,null,null,null,null,0,2,null,null,null,null,null,null,null,null,null,null,null,null,null,null,null,null,null,null,""]
[null,{"$f":"名簿!Q33","v":""},null,null,null,null,null,null,null,null,null,null,null,null,null,null,null,0,2,null,null,null,null,null,null,null,null,null,null,null,null,null,null,null,null,null,null,""]
[null,{"$f":"名簿!Q34","v":""},null,null,null,null,null,null,null,null,null,null,null,null,null,null,null,0,2,null,null,null,null,null,null,null,null,null,null,null,null,null,null,null,null,null,null,""]
[null,{"$f":"名簿!Q35","v":""},null,null,null,null,null,null,null,null,null,null,null,null,null,null,null,0,2,null,null,null,null,null,null,null,null,null,null,null,null,null,null,null,null,null,null,""]
[null,{"$f":"名簿!Q36","v":""},null,null,null,null,null,null,null,null,null,null,null,null,null,null,null,0,2,null,null,null,null,null,null,null,null,null,null,null,null,null,null,null,null,null,null,""]
[null,{"$f":"名簿!Q37","v":""},null,null,null,null,null,null,null,null,null,null,null,null,null,null,null,0,2,null,null,null,null,null,null,null,null,null,null,null,null,null,null,null,null,null,null,""]
[null,{"$f":"名簿!Q38","v":""},null,null,null,null,null,null,null,null,null,null,null,null,null,null,null,0,2,null,null,null,null,null,null,null,null,null,null,null,null,null,null,null,null,null,null,""]
[null,{"$f":"名簿!Q39","v":""},null,null,null,null,null,null,null,null,null,null,null,null,null,null,null,0,2,null,null,null,null,null,null,null,null,null,null,null,null,null,null,null,null,null,null,""]
[null,{"$f":"名簿!Q40","v":""},null,null,null,null,null,null,null,null,null,null,null,null,null,null,null,0,2,null,null,null,null,null,null,null,null,null,null,null,null,null,null,null,null,null,null,""]
[null,{"$f":"名簿!Q41","v":""},null,null,null,null,null,null,null,null,null,null,null,null,null,null,null,0,2,null,null,null,null,null,null,null,null,null,null,null,null,null,null,null,null,null,null,""]
[null,{"$f":"名簿!Q42","v":""},null,null,null,null,null,null,null,null,null,null,null,null,null,null,null,0,2,null,null,null,null,null,null,null,null,null,null,null,null,null,null,null,null,null,null,""]
[null,{"$f":"名簿!Q43","v":""},null,null,null,null,null,null,null,null,null,null,null,null,null,null,null,0,2,null,null,null,null,null,null,null,null,null,null,null,null,null,null,null,null,null,null,""]
[null,{"$f":"名簿!Q44","v":""},null,null,null,null,null,null,null,null,null,null,null,null,null,null,null,0,2,null,null,null,null,null,null,null,null,null,null,null,null,null,null,null,null,null,null,""]
[null,{"$f":"名簿!Q45","v":""},null,null,null,null,null,null,null,null,null,null,null,null,null,null,null,0,2,null,null,null,null,null,null,null,null,null,null,null,null,null,null,null,null,null,null,""]
[null,{"$f":"名簿!Q46","v":""},null,null,null,null,null,null,null,null,null,null,null,null,null,null,null,0,2,null,null,null,null,null,null,null,null,null,null,null,null,null,null,null,null,null,null,""]
[null,{"$f":"名簿!Q47","v":""},null,null,null,null,null,null,null,null,null,null,null,null,null,null,null,0,2,null,null,null,null,null,null,null,null,null,null,null,null,null,null,null,null,null,null,""]
[null,{"$f":"名簿!Q48","v":""},null,null,null,null,null,null,null,null,null,null,null,null,null,null,null,0,2,null,null,null,null,null,null,null,null,null,null,null,null,null,null,null,null,null,null,""]
[null,{"$f":"名簿!Q49","v":""},null,null,null,null,null,null,null,null,null,null,null,null,null,null,null,0,2,null,null,null,null,null,null,null,null,null,null,null,null,null,null,null,null,null,null,""]
[null,{"$f":"名簿!Q50","v":""},null,null,null,null,null,null,null,null,null,null,null,null,null,null,null,0,2,null,null,null,null,null,null,null,null,null,null,null,null,null,null,null,null,null,null,""]
[null,{"$f":"名簿!Q51","v":""},null,null,null,null,null,null,null,null,null,null,null,null,null,null,null,0,2,null,null,null,null,null,null,null,null,null,null,null,null,null,null,null,null,null,null,""]
[null,{"$f":"名簿!Q52","v":""},null,null,null,null,null,null,null,null,null,null,null,null,null,null,null,0,2,null,null,null,null,null,null,null,null,null,null,null,null,null,null,null,null,null,null,""]
[null,{"$f":"名簿!Q53","v":""},null,null,null,null,null,null,null,null,null,null,null,null,null,null,null,0,2,null,null,null,null,null,null,null,null,null,null,null,null,null,null,null,null,null,null,""]
[null,{"$f":"名簿!Q54","v":""},null,null,null,null,null,null,null,null,null,null,null,null,null,null,null,0,2,null,null,null,null,null,null,null,null,null,null,null,null,null,null,null,null,null,null,""]
[null,{"$f":"名簿!Q55","v":""},null,null,null,null,null,null,null,null,null,null,null,null,null,null,null,0,2,null,null,null,null,null,null,null,null,null,null,null,null,null,null,null,null,null,null,""]
[null,{"$f":"名簿!Q56","v":""},null,null,null,null,null,null,null,null,null,null,null,null,null,null,null,0,2,null,null,null,null,null,null,null,null,null,null,null,null,null,null,null,null,null,null,""]
[null,{"$f":"名簿!Q57","v":""},null,null,null,null,null,null,null,null,null,null,null,null,null,null,null,0,2,null,null,null,null,null,null,null,null,null,null,null,null,null,null,null,null,null,null,""]
[null,{"$f":"名簿!Q58","v":""},null,null,null,null,null,null,null,null,null,null,null,null,null,null,null,0,2,null,null,null,null,null,null,null,null,null,null,null,null,null,null,null,null,null,null,""]
[null,null,null,null,null,null,null,null,null,null,null,null,null,null,null,null,null,null,null,null,null,null,null,null,null,null,null,null,null,null,null,null,null,null,null,{"$f":"SUM(AL7:AL56)","v":0}]

{"sheet":"振込票貼付用紙","index":10,"n_rows":46,"n_cols":11,"rows_kept":46,"cut":false,"hidden":false,"merged":[[7,10,27,10],[0,0,0,9],[45,4,45,5],[46,4,46,5],[44,4,44,5],[44,6,44,7]]}
["大会参加料　振込票貼付用紙"]
[]
["大会名",null,"三重陸協記録会"]
[]
["所属名",null,{"$f":"名簿!P9","v":"三重陸協"},null,null,null,null,null,{"$f":"名簿!Q9","v":230000}]
[]
["個人名",null,{"$f":"名簿!E5","v":0},null,null,"連絡先",{"$f":"名簿!I5","v":0}]
[null,null,null,null,null,null,null,null,null,null,"メニューへ戻り、上書き保存して下さい"]
[]
[]
[]
[]
[]
[]
[]
[]
[]
[]
[]
[]
[]
[]
[]
[]
[]
[]
[]
[]
[]
[]
[]
[]
[]
[]
[]
[]
[]
[]
[]
[]
[]
[]
[null,"参加人数",null,null,null,"個人種目"]
[]
[]
[null,null,null,null,"参加費合計"]

{"sheet":"作業","index":11,"n_rows":1,"n_cols":4,"rows_kept":1,"cut":false,"hidden":false,"merged":[]}
[1,"選　手","コード","コード"]